Department family,Entity,Date,Expense Type,Expense Area,Supplier,Transaction number, AP Amount (�) ,VAT registration number,Purchase invoice number
Department of Health,NHS Arden CSU,31/07/2014,Consultancy services,CSUs,KPMG LLP,4406373," 35,804.63 ",791788859 ,5500880867
Department of Health,NHS Arden CSU,31/07/2014,Consultancy services,CSUs,MOTT MACDONALD LTD,4034234," 32,460.00 ", -   ,IN00291230
Department of Health,NHS Arden CSU,31/07/2014,Establishment,CSUs,COVENTRY AND WARWICKSHIRE PARTNERSHIP NHS TRUST,4465882," 123,222.99 ",654438521 ,19903
Department of Health,NHS Arden CSU,31/07/2014,Establishment,CSUs,WORCESTERSHIRE ACUTE HOSPITALS NHS TRUST,4365722," 38,420.00 ", -   ,4427260
Department of Health,NHS Arden CSU,31/07/2014,Establishment,CSUs,WORCESTERSHIRE ACUTE HOSPITALS NHS TRUST,4454964," 98,115.00 ", -   ,4426695
Department of Health,NHS Arden CSU,31/07/2014,Establishment,CSUs,WORCESTERSHIRE ACUTE HOSPITALS NHS TRUST,4455806,"-98,115.00 ", -   ,4426773
Department of Health,NHS Central Eastern CSU,31/07/2014,Establishment,CSUs,COMPUTACENTER (UK) LTD,4130064," 25,680.00 ",GB490334648,3880175060
Department of Health,NHS Central Eastern CSU,31/07/2014,Establishment,CSUs,COMPUTACENTER (UK) LTD,4447551," 51,360.00 ",GB490334648,3880200602
Department of Health,NHS Central Eastern CSU,31/07/2014,Establishment,CSUs,VIRGIN MEDIA BUSINESS LTD,4140104," 31,970.80 ", -   ,931138001
Department of Health,NHS Central Eastern CSU,31/07/2014,Establishment,CSUs,VIRGIN MEDIA BUSINESS LTD,4466805," 98,943.60 ", -   ,931138002
Department of Health,NHS Central Eastern CSU,31/07/2014,Establishment,CSUs,LA INTERNATIONAL COMPUTER CONSULTANTS LTD,4394954," 140,479.68 ", -   ,LA286560
Department of Health,NHS Central Eastern CSU,31/07/2014,Other professional fees,CSUs,GARTNER UK LTD,4140178," 28,980.00 ", -   ,20078076
Department of Health,NHS Central Eastern CSU,31/07/2014,Supplies and services � general,CSUs,LA INTERNATIONAL COMPUTER CONSULTANTS LTD,4367097,"-141,267.54 ", -   ,LA287374
Department of Health,NHS Central Eastern CSU,31/07/2014,Supplies and services � general,NHS England Running Costs,ATTAIN COMMISIONING SERVICES LTD,4190886," 74,214.00 ", -   ,688
Department of Health,NHS Central Eastern CSU,31/07/2014,Supplies and services � general,NHS England Running Costs,ATTAIN COMMISIONING SERVICES LTD,4190914," 74,214.00 ", -   ,694
Department of Health,NHS Central Eastern CSU,31/07/2014,Supplies and services � general,NHS England Running Costs,ATTAIN COMMISIONING SERVICES LTD,4466869," 74,214.00 ", -   ,721
Department of Health,NHS Central Midlands CSU,31/07/2014,Consultancy services,CSUs,A TO Z INTERPRETING & TRANSLATION,4346213," 57,792.12 ", -   ,INV023
Department of Health,NHS Central Midlands CSU,31/07/2014,Consultancy services,CSUs,EXPRESS INTERPRETING & TRANSLATION,4380881," 41,272.80 ", -   ,EX145
Department of Health,NHS Central Midlands CSU,31/07/2014,Consultancy services,CSUs,GLOBAL TRANSLATION SERVICES,4447260," 26,015.10 ", -   ,100350
Department of Health,NHS Central Midlands CSU,31/07/2014,Consultancy services,CSUs,PA CONSULTING SERVICES LTD,4317898," 74,875.00 ",238535057 ,10103976
Department of Health,NHS Central Midlands CSU,31/07/2014,Consultancy services,CSUs,PROFESSIONAL LINGUISTS LTD,4331791," 47,606.40 ", -   ,INV191
Department of Health,NHS Central Midlands CSU,31/07/2014,Consultancy services,CSUs,ELKIN CONSULTING LTD,3389081," 27,448.30 ", -   ,31403
Department of Health,NHS Central Midlands CSU,31/07/2014,Consultancy services,CSUs,PRICEWATERHOUSECOOPERS LLP,4317893," 74,810.00 ",714775323 ,1354172108
Department of Health,NHS Central Midlands CSU,31/07/2014,Consultancy services,Consultancy services,PA CONSULTING SERVICES LTD,4317894," 74,875.00 ",238535057 ,10104118
Department of Health,NHS Central Midlands CSU,31/07/2014,Establishment,CSUs,DUDLEY GROUP HOSPITALS NHS FOUNDATION TRUST,4212214," 61,496.11 ", -   ,1000018811
Department of Health,NHS Central Southern CSU,31/07/2014,Consultancy services,CSUs,ERNST & YOUNG LLP,4366028," 60,000.00 ",773831408 ,GB10300014074
Department of Health,NHS Central Southern CSU,31/07/2014,Consultancy services,CSUs,ERNST & YOUNG LLP,4380207," 120,000.00 ",773831408 ,GB10300014232
Department of Health,NHS Central Southern CSU,31/07/2014,Establishment,CSUs,BT PLC,4300594,"-53,421.02 ", -   ,256510220003
Department of Health,NHS Central Southern CSU,31/07/2014,Establishment,CSUs,BT PLC,4424675," 62,691.97 ", -   ,25650332N002
Department of Health,NHS Central Southern CSU,31/07/2014,Establishment,CSUs,OXFORD UNIVERSITY HOSPITALS NHS TRUST,4288041," 41,975.00 ", -   ,8185590
Department of Health,NHS Central Southern CSU,31/07/2014,Establishment,CSUs,SIRONA CARE & HEALTH CIC,4379962," 41,280.00 ",153892583 ,31550
Department of Health,NHS Central Southern CSU,31/07/2014,Establishment,CSUs,UNIVERSITY HOSPITAL BIRMINGHAM NHS FOUNDATION TRUST,4167717," 27,500.00 ", -   ,OPQ011396
Department of Health,NHS Central Southern CSU,31/07/2014,Establishment,CSUs,DACOLL LTD,4441842," 38,550.00 ", -   ,1790122
Department of Health,NHS Central Southern CSU,31/07/2014,Establishment,CSUs,DACOLL LTD,4441853," 38,550.00 ", -   ,1790123
Department of Health,NHS Central Southern CSU,31/07/2014,Establishment,CSUs,SOLLIS PARTNERSHIP LTD,4455623," 25,584.00 ",644186137 ,3334
Department of Health,NHS Central Southern CSU,31/07/2014,Establishment,Establishment,BT GLOBAL SERVICES,4441783," 35,886.16 ",245719348 ,790122506
Department of Health,NHS Central Southern CSU,31/07/2014,Establishment,Establishment,BYTES SOFTWARE SERVICES LTD,4424943," 105,965.57 ",823818226 ,382056
Department of Health,NHS Central Southern CSU,31/07/2014,Supplies and services � general,CSUs,EGTON MEDICAL INFORMATION SYSTEMS LTD,4331464," 39,317.02 ",482122369 ,IN8071111
Department of Health,NHS Central Southern CSU,31/07/2014,Supplies and services � general,CSUs,AZZURRI COMMUNICATIONS LTD,4051331," 36,438.50 ", -   ,11397472
Department of Health,NHS Cheshire And Merseyside CSU,31/07/2014,Consultancy services,CSUs,BENCHMARK MANAGEMENT CONSULTING LTD,4127350," 56,141.52 ",748739771 ,BMC515
Department of Health,NHS Cheshire And Merseyside CSU,31/07/2014,Consultancy services,CSUs,BENCHMARK MANAGEMENT CONSULTING LTD,4407294," 54,113.40 ",748739771 ,BMC520
Department of Health,NHS Cheshire And Merseyside CSU,31/07/2014,Consultancy services,CSUs,BENCHMARK MANAGEMENT CONSULTING LTD,4407488," 107,973.24 ",748739771 ,BMC524
Department of Health,NHS Cheshire And Merseyside CSU,31/07/2014,Establishment,CSUs,EGTON MEDICAL INFORMATION SYSTEMS LTD,4140366,"-90,000.00 ",482122369 ,CR808111
Department of Health,NHS Cheshire And Merseyside CSU,31/07/2014,Establishment,CSUs,EGTON MEDICAL INFORMATION SYSTEMS LTD,4425612," 90,000.00 ",482122369 ,IN8081111
Department of Health,NHS Cheshire And Merseyside CSU,31/07/2014,Establishment,CSUs,BNP PARIBAS LEASE GROUP PLC,4236916," 69,060.00 ", -   ,100193-02-JUL-2014
Department of Health,NHS Cheshire And Merseyside CSU,31/07/2014,Establishment,CSUs,PARITY MEDICAL,4383153," 83,380.00 ", -   ,PC75114
Department of Health,NHS Cheshire And Merseyside CSU,31/07/2014,Establishment,CSUs,CIVICA UK LTD,4456260," 124,453.13 ", -   ,MPR022969
Department of Health,NHS Cheshire And Merseyside CSU,31/07/2014,Establishment,London,DOCUMENT CAPTURE CO LTD,4303073," 26,723.40 ", -   ,101472
Department of Health,NHS Cheshire And Merseyside CSU,31/07/2014,Establishment,Establishment,BRAY LEINO LTD,4105585," 346,740.00 ", -   ,L29062
Department of Health,NHS Cheshire And Merseyside CSU,31/07/2014,Premises,CSUs,NHS PROPERTY SERVICES LTD,4407224," 126,157.36 ", -   ,48319050
Department of Health,NHS England,31/07/2014,Capital,Capital,BT GLOBAL SERVICES,4397095," 279,186.83 ",245719348 ,790122540
Department of Health,NHS England,31/07/2014,Capital,Capital,BT GLOBAL SERVICES,4397161," 219,884.00 ",245719348 ,790122574
Department of Health,NHS England,31/07/2014,Capital,Capital,NHS BEXLEY CCG,4151716," 66,953.30 ", -   ,7022500476
Department of Health,NHS England,31/07/2014,Capital,Capital,HEALTH & SOCIAL CARE INFORMATION CENTRE,4163497," 206,633.00 ",654434435 ,12667655
Department of Health,NHS England,31/07/2014,Capital,Capital,CSC COMPUTER SCIENCES LTD,4151909," 33,565.20 ",584686581 ,5201362353
Department of Health,NHS England,31/07/2014,Capital,Capital,OFFICESCAPE CONTRACTS LTD,4236707," 38,860.34 ", -   ,6512
Department of Health,NHS England,31/07/2014,Capital,Capital,OFFICESCAPE CONTRACTS LTD,4236708," 77,385.28 ", -   ,6511
Department of Health,NHS England,31/07/2014,Supplies and services � general,NHS England Running Costs,ANGLIAN COMMUNITY ENTERPRISE CIC,4216625," 153,813.30 ",587172605 ,AC7000007526
Department of Health,NHS England,31/07/2014,Supplies and services � general,NHS England Running Costs,INTERQUEST GROUP (UK) LTD T/A IQ PUBLIC SECTOR,4458612," 52,920.00 ",820437161 ,55788
Department of Health,NHS England,31/07/2014,Supplies and services � general,NHS England Running Costs,IPSOS MORI NORTH,4410117," 77,072.87 ", -   ,14001296
Department of Health,NHS England,31/07/2014,Consultancy services,NHS England Running Costs,MCKINSEY & CO,4163681," 55,990.00 ",239157155 ,16508
Department of Health,NHS England,31/07/2014,Consultancy services,NHS England Running Costs,MCKINSEY & CO,4276043," 108,000.00 ",239157155 ,16033
Department of Health,NHS England,31/07/2014,Consultancy services,NHS England Running Costs,NHS CHORLEY AND SOUTH RIBBLE CCG,4458126," 126,081.03 ", -   ,GPSOLOM1M11
Department of Health,NHS England,31/07/2014,Consultancy services,NHS England Running Costs,NHS CHORLEY AND SOUTH RIBBLE CCG,4458584,"-126,081.03 ", -   ,CRGPSOLOM1M11
Department of Health,NHS England,31/07/2014,Supplies and services � general,NHS England Running Costs,WIRRAL BOROUGH COUNCIL,4128650," 85,080.70 ", -   ,490247987
Department of Health,NHS England,31/07/2014,Consultancy services,NHS England Running Costs,LEK CONSULTING LLP,3934579," 101,792.00 ",867829754 ,7891
Department of Health,NHS England,31/07/2014,Supplies and services � general,NHS England Running Costs,SS9 SOLUTIONS LTD,4023702," 47,539.85 ", -   ,866
Department of Health,NHS England,31/07/2014,Consultancy services,NHS England Running Costs,INGLETON WOOD,4256226," 42,244.38 ", -   ,102005TP
Department of Health,NHS England,31/07/2014,Supplies and services � general,NHS England Running Costs,NHS WEST KENT CCG,4468317," 31,860.00 ", -   ,7030600136
Department of Health,NHS England,31/07/2014,Consultancy services,Other (Including Central Programme),PA CONSULTING SERVICES LTD,4430985," 98,640.00 ",238535057 ,10104277
Department of Health,NHS England,31/07/2014,Supplies and services � general,Other (Including Central Programme),DELOITTE MCS LTD,4348070," 51,565.20 ", -   ,2410076854
Department of Health,NHS England,31/07/2014,Supplies and services � general,Other (Including Central Programme),ASHGREEN BUSINESS SERVICES LTD,4167203," 36,623.75 ", -   ,IQ041401
Department of Health,NHS England,31/07/2014,Supplies and services � general,Other (Including Central Programme),NDTI,4304112," 27,504.00 ", -   ,1827
Department of Health,NHS England,31/07/2014,Education and training,NHS England Running Costs,ASTON ORGANISATION DEVELOPMENT LTD,3243574," 68,014.77 ", -   ,ATAT1694
Department of Health,NHS England,31/07/2014,Education and training,NHS England Running Costs,EVENTPRO UK LTD,4130590," 32,040.00 ",837386491 ,4337
Department of Health,NHS England,31/07/2014,Education and training,NHS England Running Costs,CHESHIRE HOSPICES EDUCATION LTD,4255888," 142,945.00 ", -   ,6289
Department of Health,NHS England,31/07/2014,Education and training,NHS England Running Costs,UNIVERSITY OF CENTRAL LANCASHIRE,4397938," 26,070.00 ", -   ,5088667
Department of Health,NHS England,31/07/2014,Education and training,NHS England Running Costs,EXECUTIVE DEVELOPMENT CONSULTANTS UK LLP,4468607," 44,808.00 ",948158388 ,1580B
Department of Health,NHS England,31/07/2014,Education and training,Other (Including Central Programme),OXFORD SAID BUSINESS SCHOOL,4237380," 25,000.00 ",991261702 ,37039
Department of Health,NHS England,31/07/2014,Education and training,Primary Care & Secondary Dental,NEWCASTLE UPON TYNE HOSPITALS NHS FOUNDATION TRUST,4276539," 27,432.00 ", -   ,R0223662
Department of Health,NHS England,31/07/2014,Establishment,NHS England Running Costs,3M SECURITY SYSTEMS DIVISION,4130370," 33,159.69 ", -   ,132600
Department of Health,NHS England,31/07/2014,Establishment,NHS England Running Costs,3M SECURITY SYSTEMS DIVISION,4130374," 25,748.35 ", -   ,132596
Department of Health,NHS England,31/07/2014,Establishment,NHS England Running Costs,BT CONFERENCING,4427325," 35,697.13 ", -   ,BT011775048
Department of Health,NHS England,31/07/2014,Establishment,NHS England Running Costs,BT GLOBAL SERVICES,4397095," 191,920.19 ",245719348 ,790122540
Department of Health,NHS England,31/07/2014,Establishment,NHS England Running Costs,BT GLOBAL SERVICES,4397161," 189,232.37 ",245719348 ,790122574
Department of Health,NHS England,31/07/2014,Establishment,NHS England Running Costs,BT PLC,4304180," 45,754.82 ", -   ,790122110
Department of Health,NHS England,31/07/2014,Establishment,NHS England Running Costs,BT PLC,4468806," 46,808.35 ", -   ,790124359
Department of Health,NHS England,31/07/2014,Establishment,NHS England Running Costs,CAPITA BUSINESS SERVICES LTD,4237377," 35,491.01 ",618184140 ,LO10004579
Department of Health,NHS England,31/07/2014,Establishment,NHS England Running Costs,CENTERPRISE INTERNATIONAL LTD,4382426," 82,000.00 ",849772272 ,90152128
Department of Health,NHS England,31/07/2014,Establishment,NHS England Running Costs,DANWOOD GROUP LTD,4468181," 74,482.12 ", -   ,3716365
Department of Health,NHS England,31/07/2014,Establishment,NHS England Running Costs,DEPARTMENT OF HEALTH,4141977," 72,600.00 ",888815064 ,211190
Department of Health,NHS England,31/07/2014,Establishment,NHS England Running Costs,DEPARTMENT OF HEALTH,4290725," 77,496.65 ",888815064 ,211221
Department of Health,NHS England,31/07/2014,Establishment,NHS England Running Costs,DEPARTMENT OF HEALTH,4290726," 104,491.31 ",888815064 ,211225
Department of Health,NHS England,31/07/2014,Establishment,NHS England Running Costs,DEPARTMENT OF HEALTH,4290727," 114,509.37 ",888815064 ,211227
Department of Health,NHS England,31/07/2014,Establishment,NHS England Running Costs,DEPARTMENT OF HEALTH,4321061," 136,701.00 ",888815064 ,211259
Department of Health,NHS England,31/07/2014,Establishment,NHS England Running Costs,LANCASHIRE CARE NHS FOUNDATION TRUST,4151085," 51,500.00 ", -   ,I0034801
Department of Health,NHS England,31/07/2014,Establishment,NHS England Running Costs,LANCASHIRE CARE NHS FOUNDATION TRUST,4151134," 158,203.45 ", -   ,I0034925
Department of Health,NHS England,31/07/2014,Establishment,NHS England Running Costs,NHS SHARED BUSINESS SERVICES LTD,4276584," 46,371.58 ",848137212 ,100025188
Department of Health,NHS England,31/07/2014,Establishment,NHS England Running Costs,HEALTH & SOCIAL CARE INFORMATION CENTRE,4163497," 100,921.00 ",654434435 ,12667655
Department of Health,NHS England,31/07/2014,Establishment,NHS England Running Costs,AMH WORKSPACE,3607717," 61,095.35 ",407977222 ,486675
Department of Health,NHS England,31/07/2014,Establishment,NHS England Running Costs,HURLEY GROUP,4154609,"-90,400.00 ", -   ,IN0201ACR
Department of Health,NHS England,31/07/2014,Establishment,NHS England Running Costs,ATOS IT SERVICES UK LTD,4163530," 511,128.00 ", -   ,5584161172
Department of Health,NHS England,31/07/2014,Establishment,NHS England Running Costs,ATOS IT SERVICES UK LTD,4193818," 36,231.00 ", -   ,5584161469
Department of Health,NHS England,31/07/2014,Establishment,NHS England Running Costs,UKN GROUP LTD,4427071," 30,948.00 ", -   ,116269
Department of Health,NHS England,31/07/2014,Establishment,NHS England Running Costs,MOUNTAIN HEALTHCARE LTD,4397051," 42,228.25 ", -   ,201425
Department of Health,NHS England,31/07/2014,Establishment,Other (Including Central Programme),VODAFONE LTD,4116463," 412,684.96 ",569953277 ,12896786
Department of Health,NHS England,31/07/2014,Establishment,Primary Care & Secondary Dental,MERSEY CARE NHS TRUST,4141761," 30,000.00 ",654412841 ,I0030906
Department of Health,NHS England,31/07/2014,Establishment,Primary Care & Secondary Dental,NHS SURREY DOWNS CCG,4397362," 114,250.00 ", -   ,7030500395
Department of Health,NHS England,31/07/2014,Establishment,Primary Care & Secondary Dental,NHS SURREY DOWNS CCG,4397364," 114,250.00 ", -   ,7030500521
Department of Health,NHS England,31/07/2014,Establishment,Primary Care & Secondary Dental,NHS SURREY DOWNS CCG,4397368,"-114,250.00 ", -   ,7030500542
Department of Health,NHS England,31/07/2014,Establishment,Primary Care & Secondary Dental,NHS SURREY DOWNS CCG,4397369,"-114,250.00 ", -   ,7030500543
Department of Health,NHS England,31/07/2014,General Dental services and personal dental services,Primary Care & Secondary Dental,543 DENTAL CENTRE LTD,4129605," 25,777.00 ", -   ,149
Department of Health,NHS England,31/07/2014,General Dental services and personal dental services,Primary Care & Secondary Dental,AINTREE UNIVERSITY HOSPITALS NHS FOUNDATION TRUST,4445703," 202,083.38 ", -   ,8410010095
Department of Health,NHS England,31/07/2014,General Dental services and personal dental services,Primary Care & Secondary Dental,ANGLIAN COMMUNITY ENTERPRISE CIC,4334132," 80,851.75 ",587172605 ,AC7000007534
Department of Health,NHS England,31/07/2014,General Dental services and personal dental services,Primary Care & Secondary Dental,BARKING HAVERING AND REDBRIDGE HOSPITALS NHS TRUST,4128635," 30,229.00 ", -   ,8406579
Department of Health,NHS England,31/07/2014,General Dental services and personal dental services,Primary Care & Secondary Dental,BARKING HAVERING AND REDBRIDGE HOSPITALS NHS TRUST,4276342," 28,665.00 ", -   ,8408883
Department of Health,NHS England,31/07/2014,General Dental services and personal dental services,Primary Care & Secondary Dental,BARTS HEALTH NHS TRUST,4291125," 26,788.33 ", -   ,197743
Department of Health,NHS England,31/07/2014,General Dental services and personal dental services,Primary Care & Secondary Dental,BASILDON & THURROCK UNIVERSITY HOSPITALS NHS FOUNDATION TRUST,4348777," 132,389.00 ", -   ,65583
Department of Health,NHS England,31/07/2014,General Dental services and personal dental services,Primary Care & Secondary Dental,BEDFORD HOSPITAL NHS TRUST,4276321," 202,690.12 ", -   ,I0135074
Department of Health,NHS England,31/07/2014,General Dental services and personal dental services,Primary Care & Secondary Dental,BERKSHIRE HEALTHCARE NHS FOUNDATION TRUST,4320101," 201,985.00 ", -   ,900349
Department of Health,NHS England,31/07/2014,General Dental services and personal dental services,Primary Care & Secondary Dental,BERKSHIRE HEALTHCARE NHS FOUNDATION TRUST,4397222," 201,985.00 ", -   ,900961
Department of Health,NHS England,31/07/2014,General Dental services and personal dental services,Primary Care & Secondary Dental,BIRMINGHAM CHILDRENS HOSPITAL NHS FOUNDATION TRUST,4152321," 42,161.25 ", -   ,15667541
Department of Health,NHS England,31/07/2014,General Dental services and personal dental services,Primary Care & Secondary Dental,BIRMINGHAM CHILDRENS HOSPITAL NHS FOUNDATION TRUST,4193813," 42,161.25 ", -   ,15667948
Department of Health,NHS England,31/07/2014,General Dental services and personal dental services,Primary Care & Secondary Dental,BIRMINGHAM COMMUNITY HEALTHCARE NHS TRUST,4163571," 833,551.00 ", -   ,44999885
Department of Health,NHS England,31/07/2014,General Dental services and personal dental services,Primary Care & Secondary Dental,BIRMINGHAM COMMUNITY HEALTHCARE NHS TRUST,4163572," 760,162.00 ", -   ,44999888
Department of Health,NHS England,31/07/2014,General Dental services and personal dental services,Primary Care & Secondary Dental,BIRMINGHAM COMMUNITY HEALTHCARE NHS TRUST,4257304," 86,527.00 ", -   ,44999889
Department of Health,NHS England,31/07/2014,General Dental services and personal dental services,Primary Care & Secondary Dental,BLACKPOOL TEACHING HOSPITALS NHS FOUNDATION TRUST,4445622," 162,659.00 ", -   ,1110008769
Department of Health,NHS England,31/07/2014,General Dental services and personal dental services,Primary Care & Secondary Dental,BRADFORD TEACHING HOSPITALS NHS FOUNDATION TRUST,4129741," 38,942.00 ",654913617 ,281945
Department of Health,NHS England,31/07/2014,General Dental services and personal dental services,Primary Care & Secondary Dental,BRIDGEWATER COMMUNITY HEALTHCARE NHS TRUST,4290524," 70,175.00 ", -   ,26283183
Department of Health,NHS England,31/07/2014,General Dental services and personal dental services,Primary Care & Secondary Dental,BRIDGEWATER COMMUNITY HEALTHCARE NHS TRUST,4304296," 121,336.00 ", -   ,26283396
Department of Health,NHS England,31/07/2014,General Dental services and personal dental services,Primary Care & Secondary Dental,BURTON HOSPITALS NHS FOUNDATION TRUST,4304985," 123,376.00 ", -   ,IN0013674161
Department of Health,NHS England,31/07/2014,General Dental services and personal dental services,Primary Care & Secondary Dental,CENTRAL & NORTH WEST LONDON NHS FOUNDATION TRUST,4192750," 259,042.24 ",654970895 ,S0513088
Department of Health,NHS England,31/07/2014,General Dental services and personal dental services,Primary Care & Secondary Dental,CENTRAL & NORTH WEST LONDON NHS FOUNDATION TRUST,4216217," 147,010.42 ",654970895 ,S0513211
Department of Health,NHS England,31/07/2014,General Dental services and personal dental services,Primary Care & Secondary Dental,CENTRAL & NORTH WEST LONDON NHS FOUNDATION TRUST,4216596," 129,521.12 ",654970895 ,S0513273
Department of Health,NHS England,31/07/2014,General Dental services and personal dental services,Primary Care & Secondary Dental,CENTRAL & NORTH WEST LONDON NHS FOUNDATION TRUST,4304122," 147,010.42 ",654970895 ,S0513288
Department of Health,NHS England,31/07/2014,General Dental services and personal dental services,Primary Care & Secondary Dental,CENTRAL MANCHESTER UNIVERSITY HOSPITALS NHS FOUNDATION TRUST,4303620," 233,108.00 ", -   ,6210000808
Department of Health,NHS England,31/07/2014,General Dental services and personal dental services,Primary Care & Secondary Dental,CENTRAL MANCHESTER UNIVERSITY HOSPITALS NHS FOUNDATION TRUST,4304214," 209,163.00 ", -   ,6210005293
Department of Health,NHS England,31/07/2014,General Dental services and personal dental services,Primary Care & Secondary Dental,CENTRAL MANCHESTER UNIVERSITY HOSPITALS NHS FOUNDATION TRUST,4396795," 64,976.00 ", -   ,6210005010
Department of Health,NHS England,31/07/2014,General Dental services and personal dental services,Primary Care & Secondary Dental,CENTRAL MANCHESTER UNIVERSITY HOSPITALS NHS FOUNDATION TRUST,4469291," 83,979.00 ", -   ,6210007262
Department of Health,NHS England,31/07/2014,General Dental services and personal dental services,Primary Care & Secondary Dental,CHESTERFIELD ROYAL HOSPITAL NHS FOUNDATION TRUST,4334191," 197,250.00 ", -   ,4520106
Department of Health,NHS England,31/07/2014,General Dental services and personal dental services,Primary Care & Secondary Dental,CITY HOSPITALS SUNDERLAND FOUNDATION NHS TRUST,4257315," 130,648.00 ", -   ,7910009883
Department of Health,NHS England,31/07/2014,General Dental services and personal dental services,Primary Care & Secondary Dental,COLCHESTER HOSPITAL UNIVERSITY NHS FOUNDATION TRUST,4290716," 127,930.15 ",654921325 ,2000031155
Department of Health,NHS England,31/07/2014,General Dental services and personal dental services,Primary Care & Secondary Dental,COUNTESS OF CHESTER HOSPITAL NHS FOUNDATION TRUST,4237406," 181,781.03 ", -   ,I0070661
Department of Health,NHS England,31/07/2014,General Dental services and personal dental services,Primary Care & Secondary Dental,COUNTY DURHAM AND DARLINGTON NHS FOUNDATION TRUST,4257519," 65,792.45 ", -   ,3910004377
Department of Health,NHS England,31/07/2014,General Dental services and personal dental services,Primary Care & Secondary Dental,COUNTY DURHAM AND DARLINGTON NHS FOUNDATION TRUST,4275676," 45,793.96 ", -   ,3910003342
Department of Health,NHS England,31/07/2014,General Dental services and personal dental services,Primary Care & Secondary Dental,COUNTY DURHAM AND DARLINGTON NHS FOUNDATION TRUST,4275684," 55,295.00 ", -   ,3910003340
Department of Health,NHS England,31/07/2014,General Dental services and personal dental services,Primary Care & Secondary Dental,COUNTY DURHAM AND DARLINGTON NHS FOUNDATION TRUST,4276424,"-45,793.96 ", -   ,3919000378
Department of Health,NHS England,31/07/2014,General Dental services and personal dental services,Primary Care & Secondary Dental,COUNTY DURHAM AND DARLINGTON NHS FOUNDATION TRUST,4276476,"-55,295.00 ", -   ,3919000377
Department of Health,NHS England,31/07/2014,General Dental services and personal dental services,Primary Care & Secondary Dental,CUMBRIA PARTNERSHIP NHS FOUNDATION TRUST,4382419," 48,653.29 ", -   ,2510021260
Department of Health,NHS England,31/07/2014,General Dental services and personal dental services,Primary Care & Secondary Dental,DERBY HOSPITALS NHS FOUNDATION TRUST,4276506," 78,148.18 ", -   ,321145
Department of Health,NHS England,31/07/2014,General Dental services and personal dental services,Primary Care & Secondary Dental,DERBY HOSPITALS NHS FOUNDATION TRUST,4334107," 446,008.05 ", -   ,320264
Department of Health,NHS England,31/07/2014,General Dental services and personal dental services,Primary Care & Secondary Dental,DERBYSHIRE COMMUNITY HEALTH SERVICES NHS TRUST,4290603," 498,887.00 ", -   ,11871359
Department of Health,NHS England,31/07/2014,General Dental services and personal dental services,Primary Care & Secondary Dental,DORSET COUNTY HOSPITAL NHS FOUNDATION TRUST,4276646," 261,821.00 ", -   ,D050517
Department of Health,NHS England,31/07/2014,General Dental services and personal dental services,Primary Care & Secondary Dental,DUDLEY GROUP HOSPITALS NHS FOUNDATION TRUST,4410191," 228,742.00 ", -   ,1000018879
Department of Health,NHS England,31/07/2014,General Dental services and personal dental services,Primary Care & Secondary Dental,EAST FINCHLEY SMILES,4130456," 35,801.06 ", -   ,18DUR
Department of Health,NHS England,31/07/2014,General Dental services and personal dental services,Primary Care & Secondary Dental,EAST FINCHLEY SMILES,4217384," 46,958.03 ", -   ,19DUR
Department of Health,NHS England,31/07/2014,General Dental services and personal dental services,Primary Care & Secondary Dental,EAST FINCHLEY SMILES,4276308," 31,870.00 ", -   ,17POR
Department of Health,NHS England,31/07/2014,General Dental services and personal dental services,Primary Care & Secondary Dental,EAST FINCHLEY SMILES,4276634," 34,200.00 ", -   ,1POR
Department of Health,NHS England,31/07/2014,General Dental services and personal dental services,Primary Care & Secondary Dental,EAST KENT HOSPITALS UNIVERSITY NHS FOUNDATION TRUST,4333996," 466,848.00 ", -   ,835473
Department of Health,NHS England,31/07/2014,General Dental services and personal dental services,Primary Care & Secondary Dental,EAST LANCASHIRE HOSPITALS NHS TRUST,4277438," 395,245.00 ", -   ,E0067585
Department of Health,NHS England,31/07/2014,General Dental services and personal dental services,Primary Care & Secondary Dental,EAST LANCASHIRE HOSPITALS NHS TRUST,4349219," 395,245.00 ", -   ,E0067673
Department of Health,NHS England,31/07/2014,General Dental services and personal dental services,Primary Care & Secondary Dental,FDS CONSULTANTS,4290785," 61,320.00 ", -   ,INV000562
Department of Health,NHS England,31/07/2014,General Dental services and personal dental services,Primary Care & Secondary Dental,GLOUCESTERSHIRE HOSPITALS NHS FOUNDATION TRUST,4334140," 470,662.89 ", -   ,1010098
Department of Health,NHS England,31/07/2014,General Dental services and personal dental services,Primary Care & Secondary Dental,GREAT WESTERN HOSPITALS NHS FOUNDATION TRUST,4348427," 263,907.15 ", -   ,16948221
Department of Health,NHS England,31/07/2014,General Dental services and personal dental services,Primary Care & Secondary Dental,GUYS & ST THOMAS HOSPITAL NHS FOUNDATION TRUST,4128986,"-25,082.00 ", -   ,9007182
Department of Health,NHS England,31/07/2014,General Dental services and personal dental services,Primary Care & Secondary Dental,GUYS & ST THOMAS HOSPITAL NHS FOUNDATION TRUST,4276323," 46,893.00 ", -   ,3142930
Department of Health,NHS England,31/07/2014,General Dental services and personal dental services,Primary Care & Secondary Dental,GUYS & ST THOMAS HOSPITAL NHS FOUNDATION TRUST,4304070," 48,506.00 ", -   ,3142927
Department of Health,NHS England,31/07/2014,General Dental services and personal dental services,Primary Care & Secondary Dental,HAMPSHIRE HOSPITALS NHS FOUNDATION TRUST,4290637," 155,255.00 ", -   ,40035366
Department of Health,NHS England,31/07/2014,General Dental services and personal dental services,Primary Care & Secondary Dental,HARROGATE & DISTRICT NHS FOUNDATION NHS TRUST,4397745," 89,346.51 ", -   ,H171741
Department of Health,NHS England,31/07/2014,General Dental services and personal dental services,Primary Care & Secondary Dental,HEART OF ENGLAND NHS FOUNDATION TRUST,4257427," 126,867.00 ", -   ,919405
Department of Health,NHS England,31/07/2014,General Dental services and personal dental services,Primary Care & Secondary Dental,HEART OF ENGLAND NHS FOUNDATION TRUST,4257429," 52,754.00 ", -   ,919407
Department of Health,NHS England,31/07/2014,General Dental services and personal dental services,Primary Care & Secondary Dental,HERTFORDSHIRE COMMUNITY NHS TRUST,4276451," 151,118.43 ", -   ,28008668
Department of Health,NHS England,31/07/2014,General Dental services and personal dental services,Primary Care & Secondary Dental,HERTS URGENT DENTAL CARE LTD,4276768," 26,967.45 ", -   ,HUDC141504
Department of Health,NHS England,31/07/2014,General Dental services and personal dental services,Primary Care & Secondary Dental,HULL AND EAST YORKSHIRE HOSPITALS NHS TRUST,4142558," 505,292.90 ", -   ,1210010263
Department of Health,NHS England,31/07/2014,General Dental services and personal dental services,Primary Care & Secondary Dental,ISLE OF WIGHT NHS TRUST,4276724," 121,390.00 ", -   ,44303093
Department of Health,NHS England,31/07/2014,General Dental services and personal dental services,Primary Care & Secondary Dental,KENT COMMUNITY HEALTH NHS TRUST,4216453," 380,500.00 ", -   ,24024078
Department of Health,NHS England,31/07/2014,General Dental services and personal dental services,Primary Care & Secondary Dental,KING`S COLLEGE HOSPITAL NHS FOUNDATION TRUST,4193867," 51,652.00 ", -   ,207178
Department of Health,NHS England,31/07/2014,General Dental services and personal dental services,Primary Care & Secondary Dental,KING`S COLLEGE HOSPITAL NHS FOUNDATION TRUST,4216804," 38,214.78 ", -   ,207180
Department of Health,NHS England,31/07/2014,General Dental services and personal dental services,Primary Care & Secondary Dental,LANCASHIRE CARE NHS FOUNDATION TRUST,4368579," 455,968.00 ", -   ,I0035853
Department of Health,NHS England,31/07/2014,General Dental services and personal dental services,Primary Care & Secondary Dental,LANCASHIRE TEACHING HOSPITALS NHS FOUNDATION TRUST,4383219," 415,659.00 ", -   ,15244838
Department of Health,NHS England,31/07/2014,General Dental services and personal dental services,Primary Care & Secondary Dental,LEEDS TEACHING HOSPITALS NHS TRUST,4129530," 29,115.20 ", -   ,432678
Department of Health,NHS England,31/07/2014,General Dental services and personal dental services,Primary Care & Secondary Dental,LEEDS TEACHING HOSPITALS NHS TRUST,4290876," 61,726.00 ", -   ,440280
Department of Health,NHS England,31/07/2014,General Dental services and personal dental services,Primary Care & Secondary Dental,LOCAL CARE DIRECT,4382445," 93,289.00 ", -   ,18326
Department of Health,NHS England,31/07/2014,General Dental services and personal dental services,Primary Care & Secondary Dental,LUTON & DUNSTABLE HOSPITAL NHS FOUNDATION TRUST,4276446," 421,626.67 ", -   ,52954711
Department of Health,NHS England,31/07/2014,General Dental services and personal dental services,Primary Care & Secondary Dental,MID ESSEX HOSPITALS SERVICES NHS TRUST,4141500," 275,004.00 ", -   ,ME2000082422
Department of Health,NHS England,31/07/2014,General Dental services and personal dental services,Primary Care & Secondary Dental,MID ESSEX HOSPITALS SERVICES NHS TRUST,4192745," 60,743.06 ", -   ,ME2000083354
Department of Health,NHS England,31/07/2014,General Dental services and personal dental services,Primary Care & Secondary Dental,MID ESSEX HOSPITALS SERVICES NHS TRUST,4193200,"-60,743.06 ", -   ,ME0000008097
Department of Health,NHS England,31/07/2014,General Dental services and personal dental services,Primary Care & Secondary Dental,MID STAFFORDSHIRE NHS FOUNDATION TRUST,4427692," 80,055.43 ", -   ,I0082483
Department of Health,NHS England,31/07/2014,General Dental services and personal dental services,Primary Care & Secondary Dental,NEWCASTLE UPON TYNE HOSPITALS NHS FOUNDATION TRUST,4152712," 90,129.08 ", -   ,R0223877
Department of Health,NHS England,31/07/2014,General Dental services and personal dental services,Primary Care & Secondary Dental,NORTH EAST LONDON NHS FOUNDATION TRUST,4216518," 73,770.00 ", -   ,NL0000022728
Department of Health,NHS England,31/07/2014,General Dental services and personal dental services,Primary Care & Secondary Dental,NORTH WEST LONDON HOSPITALS NHS TRUST,4276286," 105,785.17 ", -   ,I0159794
Department of Health,NHS England,31/07/2014,General Dental services and personal dental services,Primary Care & Secondary Dental,NORTHAMPTONSHIRE HEALTHCARE NHS FOUNDATION TRUST,4216443," 174,767.00 ",654403940 ,5126577
Department of Health,NHS England,31/07/2014,General Dental services and personal dental services,Primary Care & Secondary Dental,NORTHERN LINCOLNSHIRE AND GOOLE HOSPITALS NHS FOUNDATION TRUST,4290791," 502,467.00 ",654977580 ,2400005668
Department of Health,NHS England,31/07/2014,General Dental services and personal dental services,Primary Care & Secondary Dental,NORTHUMBRIA HEALTHCARE NHS FOUNDATION TRUST,4305021," 107,634.00 ", -   ,7510041396
Department of Health,NHS England,31/07/2014,General Dental services and personal dental services,Primary Care & Secondary Dental,NOTTINGHAM UNIVERSITY HOSPITALS NHS TRUST,4334212," 413,279.00 ", -   ,2000056637
Department of Health,NHS England,31/07/2014,General Dental services and personal dental services,Primary Care & Secondary Dental,NOTTINGHAMSHIRE HEALTHCARE NHS TRUST,4427168," 154,550.33 ", -   ,1000029511
Department of Health,NHS England,31/07/2014,General Dental services and personal dental services,Primary Care & Secondary Dental,OXFORD HEALTH NHS FOUNDATION TRUST,4276453," 364,007.83 ", -   ,A0086614
Department of Health,NHS England,31/07/2014,General Dental services and personal dental services,Primary Care & Secondary Dental,PENNINE ACUTE HOSPITALS NHS TRUST,4152326," 32,298.00 ", -   ,109138
Department of Health,NHS England,31/07/2014,General Dental services and personal dental services,Primary Care & Secondary Dental,PENNINE CARE NHS FOUNDATION TRUST,4290698," 113,737.00 ", -   ,1010005211
Department of Health,NHS England,31/07/2014,General Dental services and personal dental services,Primary Care & Secondary Dental,PENNINE CARE NHS FOUNDATION TRUST,4290720," 187,718.00 ", -   ,1010005212
Department of Health,NHS England,31/07/2014,General Dental services and personal dental services,Primary Care & Secondary Dental,PENNINE CARE NHS FOUNDATION TRUST,4290721," 115,371.00 ", -   ,1010005213
Department of Health,NHS England,31/07/2014,General Dental services and personal dental services,Primary Care & Secondary Dental,PRINCESS ALEXANDRA HOSPITAL NHS TRUST,4276303," 52,606.74 ",654964985 ,BL140413
Department of Health,NHS England,31/07/2014,General Dental services and personal dental services,Primary Care & Secondary Dental,QUEEN VICTORIA HOSPITAL NHS FOUNDATION TRUST,4129229,"-29,759.00 ", -   ,487
Department of Health,NHS England,31/07/2014,General Dental services and personal dental services,Primary Care & Secondary Dental,QUEEN VICTORIA HOSPITAL NHS FOUNDATION TRUST,4193844," 513,809.64 ", -   ,2010003372
Department of Health,NHS England,31/07/2014,General Dental services and personal dental services,Primary Care & Secondary Dental,QUEENSWAY DENTAL PRACTICE,4217306," 55,446.66 ", -   ,139
Department of Health,NHS England,31/07/2014,General Dental services and personal dental services,Primary Care & Secondary Dental,QUEENSWAY DENTAL PRACTICE,4217307," 44,275.16 ", -   ,138
Department of Health,NHS England,31/07/2014,General Dental services and personal dental services,Primary Care & Secondary Dental,ROTHERHAM NHS FOUNDATION TRUST,4276309," 53,105.10 ", -   ,6001090
Department of Health,NHS England,31/07/2014,General Dental services and personal dental services,Primary Care & Secondary Dental,ROYAL FREE LONDON NHS FOUNDATION TRUST,4382487," 113,998.00 ",654946987 ,I0067990
Department of Health,NHS England,31/07/2014,General Dental services and personal dental services,Primary Care & Secondary Dental,ROYAL LIVERPOOL AND BROADGREEN UNIVERSITY HOSPITALS NHS TRUST,4397913," 87,596.00 ",654966000 ,8610018734
Department of Health,NHS England,31/07/2014,General Dental services and personal dental services,Primary Care & Secondary Dental,ROYAL UNITED HOSPITAL BATH NHS TRUST,4334074," 227,505.54 ", -   ,10321174
Department of Health,NHS England,31/07/2014,General Dental services and personal dental services,Primary Care & Secondary Dental,ROYAL WOLVERHAMPTON HOSPITALS NHS TRUST (THE),4237268," 267,349.00 ", -   ,171877
Department of Health,NHS England,31/07/2014,General Dental services and personal dental services,Primary Care & Secondary Dental,ROYAL WOLVERHAMPTON HOSPITALS NHS TRUST (THE),4304991," 56,813.00 ", -   ,171878
Department of Health,NHS England,31/07/2014,General Dental services and personal dental services,Primary Care & Secondary Dental,SALFORD ROYAL NHS FOUNDATION TRUST,4290683," 103,780.00 ", -   ,1000152648
Department of Health,NHS England,31/07/2014,General Dental services and personal dental services,Primary Care & Secondary Dental,SALISBURY NHS FOUNDATION TRUST,4236669," 172,414.00 ", -   ,B008823
Department of Health,NHS England,31/07/2014,General Dental services and personal dental services,Primary Care & Secondary Dental,SALISBURY NHS FOUNDATION TRUST,4290666," 84,346.00 ", -   ,B008821
Department of Health,NHS England,31/07/2014,General Dental services and personal dental services,Primary Care & Secondary Dental,SANDWELL AND WEST BIRMINGHAM HOSPITALS NHS TRUST,4193850," 169,247.00 ", -   ,75098
Department of Health,NHS England,31/07/2014,General Dental services and personal dental services,Primary Care & Secondary Dental,SHEFFIELD TEACHING HOSPITALS NHS FOUNDATION TRUST,4256715," 106,388.00 ",654400165 ,4000394562
Department of Health,NHS England,31/07/2014,General Dental services and personal dental services,Primary Care & Secondary Dental,SHERWOOD FOREST HOSPITALS NHS FOUNDATION TRUST,4444510," 134,752.33 ", -   ,130805
Department of Health,NHS England,31/07/2014,General Dental services and personal dental services,Primary Care & Secondary Dental,SHREWSBURY&TELFORD HOSPITAL NHS TRUST,4305040," 270,665.83 ", -   ,10090182
Department of Health,NHS England,31/07/2014,General Dental services and personal dental services,Primary Care & Secondary Dental,SOUTH ESSEX PARTNERSHIP NHS FOUNDATION TRUST,4276582," 35,284.29 ",654974100 ,I0040255
Department of Health,NHS England,31/07/2014,General Dental services and personal dental services,Primary Care & Secondary Dental,SOUTH ESSEX PARTNERSHIP NHS FOUNDATION TRUST,4320295," 40,186.67 ",654974100 ,I0040024
Department of Health,NHS England,31/07/2014,General Dental services and personal dental services,Primary Care & Secondary Dental,SOUTH TEES HOSPITALS NHS FOUNDATION TRUST,4427773," 392,606.72 ", -   ,3510012666
Department of Health,NHS England,31/07/2014,General Dental services and personal dental services,Primary Care & Secondary Dental,SOUTH TEES HOSPITALS NHS FOUNDATION TRUST,4445632," 29,456.95 ", -   ,3510012663
Department of Health,NHS England,31/07/2014,General Dental services and personal dental services,Primary Care & Secondary Dental,SOUTH TEES HOSPITALS NHS FOUNDATION TRUST,4445633," 74,327.86 ", -   ,3510012664
Department of Health,NHS England,31/07/2014,General Dental services and personal dental services,Primary Care & Secondary Dental,SOUTHAMPTON UNIVERSITY HOSPITALS NHS FOUNDATION TRUST,4129504," 53,470.52 ", -   ,7244947
Department of Health,NHS England,31/07/2014,General Dental services and personal dental services,Primary Care & Secondary Dental,SOUTHAMPTON UNIVERSITY HOSPITALS NHS FOUNDATION TRUST,4458762," 49,111.00 ", -   ,7246029
Department of Health,NHS England,31/07/2014,General Dental services and personal dental services,Primary Care & Secondary Dental,SOUTHEND UNIVERSITY HOSPITAL NHS FOUNDATION TRUST,4276425," 164,334.00 ", -   ,409197
Department of Health,NHS England,31/07/2014,General Dental services and personal dental services,Primary Care & Secondary Dental,SOUTHERN HEALTH NHS FOUNDATION TRUST,4256778," 27,717.00 ", -   ,43611327
Department of Health,NHS England,31/07/2014,General Dental services and personal dental services,Primary Care & Secondary Dental,SOUTHPORT AND ORMSKIRK HOSPITAL NHS TRUST,4142566," 54,701.00 ", -   ,7503719
Department of Health,NHS England,31/07/2014,General Dental services and personal dental services,Primary Care & Secondary Dental,SPECTRUM ASSOCIATES (MK) LTD,4276541," 54,627.00 ", -   ,537
Department of Health,NHS England,31/07/2014,General Dental services and personal dental services,Primary Care & Secondary Dental,STAFFORDSHIRE AND STOKE ON TRENT PARTNERSHIP NHS TRUST,4257309," 172,240.00 ", -   ,51344497
Department of Health,NHS England,31/07/2014,General Dental services and personal dental services,Primary Care & Secondary Dental,STAFFORDSHIRE AND STOKE ON TRENT PARTNERSHIP NHS TRUST,4257310," 210,663.00 ", -   ,51344498
Department of Health,NHS England,31/07/2014,General Dental services and personal dental services,Primary Care & Secondary Dental,SURREY AND SUSSEX HEALTHCARE NHS TRUST,4290606," 75,833.33 ", -   ,11939786
Department of Health,NHS England,31/07/2014,General Dental services and personal dental services,Primary Care & Secondary Dental,UNIVERSITY COLLEGE LONDON HOSPITALS NHS FOUNDATION TRUST,4216419," 68,267.00 ",654948687 ,5010017480
Department of Health,NHS England,31/07/2014,General Dental services and personal dental services,Primary Care & Secondary Dental,UNIVERSITY COLLEGE LONDON HOSPITALS NHS FOUNDATION TRUST,4276052," 31,158.00 ",654948687 ,5010007363
Department of Health,NHS England,31/07/2014,General Dental services and personal dental services,Primary Care & Secondary Dental,UNIVERSITY COLLEGE LONDON HOSPITALS NHS FOUNDATION TRUST,4276176," 31,158.00 ",654948687 ,5010014494
Department of Health,NHS England,31/07/2014,General Dental services and personal dental services,Primary Care & Secondary Dental,UNIVERSITY COLLEGE LONDON HOSPITALS NHS FOUNDATION TRUST,4276343," 192,661.25 ",654948687 ,5010017481
Department of Health,NHS England,31/07/2014,General Dental services and personal dental services,Primary Care & Secondary Dental,UNIVERSITY COLLEGE LONDON HOSPITALS NHS FOUNDATION TRUST,4276377," 31,158.00 ",654948687 ,5010017479
Department of Health,NHS England,31/07/2014,General Dental services and personal dental services,Primary Care & Secondary Dental,UNIVERSITY HOSPITAL BIRMINGHAM NHS FOUNDATION TRUST,4193796," 297,227.00 ", -   ,OPQ011526
Department of Health,NHS England,31/07/2014,General Dental services and personal dental services,Primary Care & Secondary Dental,UNIVERSITY HOSPITAL BIRMINGHAM NHS FOUNDATION TRUST,4257298," 34,149.00 ", -   ,OPQ011527
Department of Health,NHS England,31/07/2014,General Dental services and personal dental services,Primary Care & Secondary Dental,UNIVERSITY HOSPITAL BIRMINGHAM NHS FOUNDATION TRUST,4445613," 42,074.00 ", -   ,OPQ004106
Department of Health,NHS England,31/07/2014,General Dental services and personal dental services,Primary Care & Secondary Dental,UNIVERSITY HOSPITAL OF NORTH STAFFORDSHIRE NHS TRUST,4163508," 518,938.82 ", -   ,454906
Department of Health,NHS England,31/07/2014,General Dental services and personal dental services,Primary Care & Secondary Dental,UNIVERSITY HOSPITAL OF NORTH STAFFORDSHIRE NHS TRUST,4163509," 518,938.82 ", -   ,455212
Department of Health,NHS England,31/07/2014,General Dental services and personal dental services,Primary Care & Secondary Dental,UNIVERSITY HOSPITAL OF NORTH STAFFORDSHIRE NHS TRUST,4163510," 487,620.50 ", -   ,456050
Department of Health,NHS England,31/07/2014,General Dental services and personal dental services,Primary Care & Secondary Dental,UNIVERSITY HOSPITAL OF NORTH STAFFORDSHIRE NHS TRUST,4163511,"-31,318.50 ", -   ,9393
Department of Health,NHS England,31/07/2014,General Dental services and personal dental services,Primary Care & Secondary Dental,UNIVERSITY HOSPITAL OF NORTH STAFFORDSHIRE NHS TRUST,4163512,"-31,318.50 ", -   ,9392
Department of Health,NHS England,31/07/2014,General Dental services and personal dental services,Primary Care & Secondary Dental,UNIVERSITY HOSPITAL OF NORTH STAFFORDSHIRE NHS TRUST,4410128," 487,620.50 ", -   ,457577
Department of Health,NHS England,31/07/2014,General Dental services and personal dental services,Primary Care & Secondary Dental,UNIVERSITY HOSPITAL OF SOUTH MANCHESTER NHS FOUNDATION TRUST,4152658," 30,721.60 ",654941709 ,314442
Department of Health,NHS England,31/07/2014,General Dental services and personal dental services,Primary Care & Secondary Dental,UNIVERSITY HOSPITALS BRISTOL NHS FOUNDATION TRUST,4151879," 121,252.42 ", -   ,R0000941
Department of Health,NHS England,31/07/2014,General Dental services and personal dental services,Primary Care & Secondary Dental,UNIVERSITY HOSPITALS BRISTOL NHS FOUNDATION TRUST,4193173,"-1,793,706.56 ", -   ,V0001830
Department of Health,NHS England,31/07/2014,General Dental services and personal dental services,Primary Care & Secondary Dental,WALSALL HEALTHCARE NHS TRUST,4445626," 105,032.33 ", -   ,C036632
Department of Health,NHS England,31/07/2014,General Dental services and personal dental services,Primary Care & Secondary Dental,WARRINGTON & HALTON HOSPITALS NHS FOUNDATION TRUST,4142567," 58,285.36 ", -   ,15347938
Department of Health,NHS England,31/07/2014,General Dental services and personal dental services,Primary Care & Secondary Dental,WEST HERTFORDSHIRE HOSPITALS NHS TRUST,4276224," 161,853.33 ", -   ,221592
Department of Health,NHS England,31/07/2014,General Dental services and personal dental services,Primary Care & Secondary Dental,WIRRAL UNIVERSITY TEACHING HOSPITAL NHS FOUNDATION TRUST,4237395," 231,250.00 ", -   ,8510009857
Department of Health,NHS England,31/07/2014,General Dental services and personal dental services,Primary Care & Secondary Dental,YORK TEACHING HOSPITAL NHS FOUNDATION TRUST,4349224," 589,108.11 ", -   ,1010017992
Department of Health,NHS England,31/07/2014,General Dental services and personal dental services,Primary Care & Secondary Dental,SHROPSHIRE COMMUNITY HEALTH NHS TRUST,4193921," 30,812.33 ", -   ,50007779
Department of Health,NHS England,31/07/2014,General Dental services and personal dental services,Primary Care & Secondary Dental,SHROPSHIRE COMMUNITY HEALTH NHS TRUST,4217247," 39,118.00 ", -   ,50007782
Department of Health,NHS England,31/07/2014,General Dental services and personal dental services,Primary Care & Secondary Dental,SHROPSHIRE COMMUNITY HEALTH NHS TRUST,4217248," 102,604.33 ", -   ,50007783
Department of Health,NHS England,31/07/2014,General Dental services and personal dental services,Primary Care & Secondary Dental,MASTERCALL HEALTHCARE,4129235," 30,152.17 ", -   ,2295
Department of Health,NHS England,31/07/2014,General Dental services and personal dental services,Primary Care & Secondary Dental,MASTERCALL HEALTHCARE,4129236," 30,152.17 ", -   ,2201
Department of Health,NHS England,31/07/2014,General Dental services and personal dental services,Primary Care & Secondary Dental,WEST MIDLANDS AMBULANCE SERVICE NHS TRUST,4129621,"-270,000.00 ",654950708 ,Z0003813
Department of Health,NHS England,31/07/2014,General Dental services and personal dental services,Primary Care & Secondary Dental,WEST MIDLANDS AMBULANCE SERVICE NHS TRUST,4141801," 270,000.00 ",654950708 ,Y0002569
Department of Health,NHS England,31/07/2014,General Dental services and personal dental services,Primary Care & Secondary Dental,SMILE DENTAL TRIAGE LTD,4167806," 59,223.20 ", -   ,372
Department of Health,NHS England,31/07/2014,General Dental services and personal dental services,Primary Care & Secondary Dental,WINFIELD HOSPITAL,4236132," 59,027.53 ", -   ,X24201312
Department of Health,NHS England,31/07/2014,General Dental services and personal dental services,Primary Care & Secondary Dental,WINFIELD HOSPITAL,4236139," 40,449.95 ", -   ,X24201309
Department of Health,NHS England,31/07/2014,General Dental services and personal dental services,Primary Care & Secondary Dental,WINFIELD HOSPITAL,4236170," 34,660.10 ", -   ,X24201404
Department of Health,NHS England,31/07/2014,General Dental services and personal dental services,Primary Care & Secondary Dental,YORKSHIRE AMBULANCE SERVICE NHS TRUST,4236225," 63,441.00 ", -   ,2810004810
Department of Health,NHS England,31/07/2014,General Dental services and personal dental services,Primary Care & Secondary Dental,YORKSHIRE AMBULANCE SERVICE NHS TRUST,4409404," 63,441.00 ", -   ,2810005193
Department of Health,NHS England,31/07/2014,General Dental services and personal dental services,Primary Care & Secondary Dental,OHW WORKS LTD,4276602," 35,100.00 ", -   ,281
Department of Health,NHS England,31/07/2014,General Opthalmic services,Primary Care & Secondary Dental,BOLTON VISIONPLUS LTD,4293554," 82,700.56 ", -   ,4290535_S
Department of Health,NHS England,31/07/2014,General Opthalmic services,Primary Care & Secondary Dental,BOOTS CO PLC,4205308," 31,087.20 ", -   ,4266475_S
Department of Health,NHS England,31/07/2014,General Opthalmic services,Primary Care & Secondary Dental,BOOTS OPTICIANS LTD,4238089," 34,564.49 ",945607894 ,4285584_S
Department of Health,NHS England,31/07/2014,General Opthalmic services,Primary Care & Secondary Dental,EYE OPTICIANS,4448266," 31,081.80 ", -   ,4300729_S
Department of Health,NHS England,31/07/2014,General Opthalmic services,Primary Care & Secondary Dental,JSR OPTICIANS,4243663," 25,117.28 ", -   ,4288020_S
Department of Health,NHS England,31/07/2014,General Opthalmic services,Primary Care & Secondary Dental,JSR OPTICIANS,4243672," 51,419.77 ", -   ,4288019_S
Department of Health,NHS England,31/07/2014,General Opthalmic services,Primary Care & Secondary Dental,MILTON KEYNES VISIONPLUS LTD,4448402," 37,872.40 ", -   ,4300712_S
Department of Health,NHS England,31/07/2014,General Opthalmic services,Primary Care & Secondary Dental,NUNEATON VISION PLUS LTD - 0345,4169697," 43,314.77 ", -   ,4271799_S
Department of Health,NHS England,31/07/2014,General Opthalmic services,Primary Care & Secondary Dental,OPTICAL WORLD,4132711," 34,788.40 ", -   ,4273530_S
Department of Health,NHS England,31/07/2014,General Opthalmic services,Primary Care & Secondary Dental,SPECIALEYES EYECARE LTD,4398560," 42,065.20 ", -   ,4296139_S
Department of Health,NHS England,31/07/2014,General Opthalmic services,Primary Care & Secondary Dental,SPECSAVERS - ILKESTON,4223060," 40,923.25 ", -   ,4286029_S
Department of Health,NHS England,31/07/2014,General Opthalmic services,Primary Care & Secondary Dental,SPECSAVERS OPTICIANS,4117612," 35,877.95 ",771629900 ,4262581_S
Department of Health,NHS England,31/07/2014,General Opthalmic services,Primary Care & Secondary Dental,SPECSAVERS OPTICIANS,4117616," 50,180.30 ",771629900 ,4262567_S
Department of Health,NHS England,31/07/2014,General Opthalmic services,Primary Care & Secondary Dental,SPECSAVERS OPTICIANS,4117683," 49,355.01 ",771629900 ,4264011_S
Department of Health,NHS England,31/07/2014,General Opthalmic services,Primary Care & Secondary Dental,SPECSAVERS OPTICIANS,4117691," 29,310.16 ",771629900 ,4264018_S
Department of Health,NHS England,31/07/2014,General Opthalmic services,Primary Care & Secondary Dental,SPECSAVERS OPTICIANS,4117720," 50,675.05 ",771629900 ,4263680_S
Department of Health,NHS England,31/07/2014,General Opthalmic services,Primary Care & Secondary Dental,SPECSAVERS OPTICIANS,4117754," 25,507.60 ",771629900 ,4263694_S
Department of Health,NHS England,31/07/2014,General Opthalmic services,Primary Care & Secondary Dental,SPECSAVERS OPTICIANS,4131635," 28,394.02 ",771629900 ,4270688_S
Department of Health,NHS England,31/07/2014,General Opthalmic services,Primary Care & Secondary Dental,SPECSAVERS OPTICIANS,4131653," 31,795.80 ",771629900 ,4270637_S
Department of Health,NHS England,31/07/2014,General Opthalmic services,Primary Care & Secondary Dental,SPECSAVERS OPTICIANS,4131699," 41,142.72 ",771629900 ,4270673_S
Department of Health,NHS England,31/07/2014,General Opthalmic services,Primary Care & Secondary Dental,SPECSAVERS OPTICIANS,4131755," 34,592.12 ",771629900 ,4270659_S
Department of Health,NHS England,31/07/2014,General Opthalmic services,Primary Care & Secondary Dental,SPECSAVERS OPTICIANS,4131831," 34,272.00 ",771629900 ,4270706_S
Department of Health,NHS England,31/07/2014,General Opthalmic services,Primary Care & Secondary Dental,SPECSAVERS OPTICIANS,4131833," 52,321.12 ",771629900 ,4270702_S
Department of Health,NHS England,31/07/2014,General Opthalmic services,Primary Care & Secondary Dental,SPECSAVERS OPTICIANS,4131843," 29,317.80 ",771629900 ,4270682_S
Department of Health,NHS England,31/07/2014,General Opthalmic services,Primary Care & Secondary Dental,SPECSAVERS OPTICIANS,4132639," 66,534.58 ",771629900 ,4273573_S
Department of Health,NHS England,31/07/2014,General Opthalmic services,Primary Care & Secondary Dental,SPECSAVERS OPTICIANS,4132830," 35,836.44 ",771629900 ,4273618_S
Department of Health,NHS England,31/07/2014,General Opthalmic services,Primary Care & Secondary Dental,SPECSAVERS OPTICIANS,4132832," 30,104.00 ",771629900 ,4273627_S
Department of Health,NHS England,31/07/2014,General Opthalmic services,Primary Care & Secondary Dental,SPECSAVERS OPTICIANS,4132912," 26,020.35 ",771629900 ,4273648_S
Department of Health,NHS England,31/07/2014,General Opthalmic services,Primary Care & Secondary Dental,SPECSAVERS OPTICIANS,4132914," 38,422.17 ",771629900 ,4273638_S
Department of Health,NHS England,31/07/2014,General Opthalmic services,Primary Care & Secondary Dental,SPECSAVERS OPTICIANS,4143115," 68,681.95 ",771629900 ,4276146_S
Department of Health,NHS England,31/07/2014,General Opthalmic services,Primary Care & Secondary Dental,SPECSAVERS OPTICIANS,4169691," 33,650.45 ",771629900 ,4271795_S
Department of Health,NHS England,31/07/2014,General Opthalmic services,Primary Care & Secondary Dental,SPECSAVERS OPTICIANS,4169742," 75,651.39 ",771629900 ,4271219_S
Department of Health,NHS England,31/07/2014,General Opthalmic services,Primary Care & Secondary Dental,SPECSAVERS OPTICIANS,4169803," 48,670.80 ",771629900 ,4267798_S
Department of Health,NHS England,31/07/2014,General Opthalmic services,Primary Care & Secondary Dental,SPECSAVERS OPTICIANS,4169904," 28,127.34 ",771629900 ,4267815_S
Department of Health,NHS England,31/07/2014,General Opthalmic services,Primary Care & Secondary Dental,SPECSAVERS OPTICIANS,4169912," 41,311.27 ",771629900 ,4267765_S
Department of Health,NHS England,31/07/2014,General Opthalmic services,Primary Care & Secondary Dental,SPECSAVERS OPTICIANS,4169972," 45,233.65 ",771629900 ,4267777_S
Department of Health,NHS England,31/07/2014,General Opthalmic services,Primary Care & Secondary Dental,SPECSAVERS OPTICIANS,4172668," 46,142.65 ",771629900 ,4268476_S
Department of Health,NHS England,31/07/2014,General Opthalmic services,Primary Care & Secondary Dental,SPECSAVERS OPTICIANS,4172670," 58,302.54 ",771629900 ,4268508_S
Department of Health,NHS England,31/07/2014,General Opthalmic services,Primary Care & Secondary Dental,SPECSAVERS OPTICIANS,4172694," 30,872.60 ",771629900 ,4268512_S
Department of Health,NHS England,31/07/2014,General Opthalmic services,Primary Care & Secondary Dental,SPECSAVERS OPTICIANS,4172700," 26,339.84 ",771629900 ,4268454_S
Department of Health,NHS England,31/07/2014,General Opthalmic services,Primary Care & Secondary Dental,SPECSAVERS OPTICIANS,4172711," 25,421.65 ",771629900 ,4268491_S
Department of Health,NHS England,31/07/2014,General Opthalmic services,Primary Care & Secondary Dental,SPECSAVERS OPTICIANS,4177672," 63,497.28 ",771629900 ,4275641_S
Department of Health,NHS England,31/07/2014,General Opthalmic services,Primary Care & Secondary Dental,SPECSAVERS OPTICIANS,4177768," 25,910.85 ",771629900 ,4247802_S
Department of Health,NHS England,31/07/2014,General Opthalmic services,Primary Care & Secondary Dental,SPECSAVERS OPTICIANS,4177772," 34,071.78 ",771629900 ,4247803_S
Department of Health,NHS England,31/07/2014,General Opthalmic services,Primary Care & Secondary Dental,SPECSAVERS OPTICIANS,4177774," 71,709.02 ",771629900 ,4247804_S
Department of Health,NHS England,31/07/2014,General Opthalmic services,Primary Care & Secondary Dental,SPECSAVERS OPTICIANS,4177867," 59,459.75 ",771629900 ,4266797_S
Department of Health,NHS England,31/07/2014,General Opthalmic services,Primary Care & Secondary Dental,SPECSAVERS OPTICIANS,4177869," 85,531.54 ",771629900 ,4266717_S
Department of Health,NHS England,31/07/2014,General Opthalmic services,Primary Care & Secondary Dental,SPECSAVERS OPTICIANS,4177871," 49,611.85 ",771629900 ,4266775_S
Department of Health,NHS England,31/07/2014,General Opthalmic services,Primary Care & Secondary Dental,SPECSAVERS OPTICIANS,4177885," 71,886.65 ",771629900 ,4266722_S
Department of Health,NHS England,31/07/2014,General Opthalmic services,Primary Care & Secondary Dental,SPECSAVERS OPTICIANS,4182621," 72,030.05 ",771629900 ,4281680_S
Department of Health,NHS England,31/07/2014,General Opthalmic services,Primary Care & Secondary Dental,SPECSAVERS OPTICIANS,4182713," 27,173.99 ",771629900 ,4281681_S
Department of Health,NHS England,31/07/2014,General Opthalmic services,Primary Care & Secondary Dental,SPECSAVERS OPTICIANS,4182719," 28,250.36 ",771629900 ,4281678_S
Department of Health,NHS England,31/07/2014,General Opthalmic services,Primary Care & Secondary Dental,SPECSAVERS OPTICIANS,4182805," 102,509.35 ",771629900 ,4268550_S
Department of Health,NHS England,31/07/2014,General Opthalmic services,Primary Care & Secondary Dental,SPECSAVERS OPTICIANS,4182945," 42,187.45 ",771629900 ,4282013_S
Department of Health,NHS England,31/07/2014,General Opthalmic services,Primary Care & Secondary Dental,SPECSAVERS OPTICIANS,4182959," 44,898.93 ",771629900 ,4282031_S
Department of Health,NHS England,31/07/2014,General Opthalmic services,Primary Care & Secondary Dental,SPECSAVERS OPTICIANS,4183002," 39,961.60 ",771629900 ,4282058_S
Department of Health,NHS England,31/07/2014,General Opthalmic services,Primary Care & Secondary Dental,SPECSAVERS OPTICIANS,4194637," 35,797.97 ",771629900 ,4266214_S
Department of Health,NHS England,31/07/2014,General Opthalmic services,Primary Care & Secondary Dental,SPECSAVERS OPTICIANS,4194713," 31,938.00 ",771629900 ,4266268_S
Department of Health,NHS England,31/07/2014,General Opthalmic services,Primary Care & Secondary Dental,SPECSAVERS OPTICIANS,4194768," 62,319.58 ",771629900 ,4266266_S
Department of Health,NHS England,31/07/2014,General Opthalmic services,Primary Care & Secondary Dental,SPECSAVERS OPTICIANS,4194830," 25,672.37 ",771629900 ,4266256_S
Department of Health,NHS England,31/07/2014,General Opthalmic services,Primary Care & Secondary Dental,SPECSAVERS OPTICIANS,4194832," 49,832.88 ",771629900 ,4266190_S
Department of Health,NHS England,31/07/2014,General Opthalmic services,Primary Care & Secondary Dental,SPECSAVERS OPTICIANS,4195647," 36,392.53 ",771629900 ,4280345_S
Department of Health,NHS England,31/07/2014,General Opthalmic services,Primary Care & Secondary Dental,SPECSAVERS OPTICIANS,4195696," 35,960.84 ",771629900 ,4280406_S
Department of Health,NHS England,31/07/2014,General Opthalmic services,Primary Care & Secondary Dental,SPECSAVERS OPTICIANS,4196645," 67,590.60 ",771629900 ,4263566_S
Department of Health,NHS England,31/07/2014,General Opthalmic services,Primary Care & Secondary Dental,SPECSAVERS OPTICIANS,4196710," 33,598.10 ",771629900 ,4263562_S
Department of Health,NHS England,31/07/2014,General Opthalmic services,Primary Care & Secondary Dental,SPECSAVERS OPTICIANS,4196712," 28,565.60 ",771629900 ,4263596_S
Department of Health,NHS England,31/07/2014,General Opthalmic services,Primary Care & Secondary Dental,SPECSAVERS OPTICIANS,4196804," 33,832.65 ",771629900 ,4263568_S
Department of Health,NHS England,31/07/2014,General Opthalmic services,Primary Care & Secondary Dental,SPECSAVERS OPTICIANS,4196806," 28,539.80 ",771629900 ,4263574_S
Department of Health,NHS England,31/07/2014,General Opthalmic services,Primary Care & Secondary Dental,SPECSAVERS OPTICIANS,4196810," 28,166.30 ",771629900 ,4274859_S
Department of Health,NHS England,31/07/2014,General Opthalmic services,Primary Care & Secondary Dental,SPECSAVERS OPTICIANS,4197614," 40,783.70 ",771629900 ,4281227_S
Department of Health,NHS England,31/07/2014,General Opthalmic services,Primary Care & Secondary Dental,SPECSAVERS OPTICIANS,4198629," 66,659.60 ",771629900 ,4280974_S
Department of Health,NHS England,31/07/2014,General Opthalmic services,Primary Care & Secondary Dental,SPECSAVERS OPTICIANS,4198704," 31,309.80 ",771629900 ,4280994_S
Department of Health,NHS England,31/07/2014,General Opthalmic services,Primary Care & Secondary Dental,SPECSAVERS OPTICIANS,4198708," 55,245.77 ",771629900 ,4280993_S
Department of Health,NHS England,31/07/2014,General Opthalmic services,Primary Care & Secondary Dental,SPECSAVERS OPTICIANS,4200632," 45,989.32 ",771629900 ,4273327_S
Department of Health,NHS England,31/07/2014,General Opthalmic services,Primary Care & Secondary Dental,SPECSAVERS OPTICIANS,4200673," 53,993.85 ",771629900 ,4273295_S
Department of Health,NHS England,31/07/2014,General Opthalmic services,Primary Care & Secondary Dental,SPECSAVERS OPTICIANS,4200687," 38,087.61 ",771629900 ,4273329_S
Department of Health,NHS England,31/07/2014,General Opthalmic services,Primary Care & Secondary Dental,SPECSAVERS OPTICIANS,4200766," 26,771.60 ",771629900 ,4274539_S
Department of Health,NHS England,31/07/2014,General Opthalmic services,Primary Care & Secondary Dental,SPECSAVERS OPTICIANS,4200768," 26,758.68 ",771629900 ,4274548_S
Department of Health,NHS England,31/07/2014,General Opthalmic services,Primary Care & Secondary Dental,SPECSAVERS OPTICIANS,4200770," 34,680.35 ",771629900 ,4274547_S
Department of Health,NHS England,31/07/2014,General Opthalmic services,Primary Care & Secondary Dental,SPECSAVERS OPTICIANS,4200771," 28,936.27 ",771629900 ,4274559_S
Department of Health,NHS England,31/07/2014,General Opthalmic services,Primary Care & Secondary Dental,SPECSAVERS OPTICIANS,4202709," 38,457.70 ",771629900 ,4283797_S
Department of Health,NHS England,31/07/2014,General Opthalmic services,Primary Care & Secondary Dental,SPECSAVERS OPTICIANS,4202711," 31,427.70 ",771629900 ,4283783_S
Department of Health,NHS England,31/07/2014,General Opthalmic services,Primary Care & Secondary Dental,SPECSAVERS OPTICIANS,4205041," 65,537.88 ",771629900 ,4266313_S
Department of Health,NHS England,31/07/2014,General Opthalmic services,Primary Care & Secondary Dental,SPECSAVERS OPTICIANS,4205100," 34,641.29 ",771629900 ,4266361_S
Department of Health,NHS England,31/07/2014,General Opthalmic services,Primary Care & Secondary Dental,SPECSAVERS OPTICIANS,4205185," 61,605.37 ",771629900 ,4266323_S
Department of Health,NHS England,31/07/2014,General Opthalmic services,Primary Care & Secondary Dental,SPECSAVERS OPTICIANS,4205195," 47,197.70 ",771629900 ,4266374_S
Department of Health,NHS England,31/07/2014,General Opthalmic services,Primary Care & Secondary Dental,SPECSAVERS OPTICIANS,4205290," 58,915.99 ",771629900 ,4266379_S
Department of Health,NHS England,31/07/2014,General Opthalmic services,Primary Care & Secondary Dental,SPECSAVERS OPTICIANS,4205363," 56,028.09 ",771629900 ,4266389_S
Department of Health,NHS England,31/07/2014,General Opthalmic services,Primary Care & Secondary Dental,SPECSAVERS OPTICIANS,4217541," 33,289.58 ",771629900 ,4266218_S
Department of Health,NHS England,31/07/2014,General Opthalmic services,Primary Care & Secondary Dental,SPECSAVERS OPTICIANS,4218664," 28,597.28 ",771629900 ,4272189_S
Department of Health,NHS England,31/07/2014,General Opthalmic services,Primary Care & Secondary Dental,SPECSAVERS OPTICIANS,4218787," 30,193.22 ",771629900 ,4272211_S
Department of Health,NHS England,31/07/2014,General Opthalmic services,Primary Care & Secondary Dental,SPECSAVERS OPTICIANS,4218789," 32,745.33 ",771629900 ,4269083_S
Department of Health,NHS England,31/07/2014,General Opthalmic services,Primary Care & Secondary Dental,SPECSAVERS OPTICIANS,4218791," 29,720.91 ",771629900 ,4272186_S
Department of Health,NHS England,31/07/2014,General Opthalmic services,Primary Care & Secondary Dental,SPECSAVERS OPTICIANS,4218892," 48,922.42 ",771629900 ,4280105_S
Department of Health,NHS England,31/07/2014,General Opthalmic services,Primary Care & Secondary Dental,SPECSAVERS OPTICIANS,4218968," 29,370.14 ",771629900 ,4280108_S
Department of Health,NHS England,31/07/2014,General Opthalmic services,Primary Care & Secondary Dental,SPECSAVERS OPTICIANS,4219025," 26,008.57 ",771629900 ,4279060_S
Department of Health,NHS England,31/07/2014,General Opthalmic services,Primary Care & Secondary Dental,SPECSAVERS OPTICIANS,4219111," 81,255.23 ",771629900 ,4279256_S
Department of Health,NHS England,31/07/2014,General Opthalmic services,Primary Care & Secondary Dental,SPECSAVERS OPTICIANS,4219113," 30,846.16 ",771629900 ,4279232_S
Department of Health,NHS England,31/07/2014,General Opthalmic services,Primary Care & Secondary Dental,SPECSAVERS OPTICIANS,4219421," 51,762.60 ",771629900 ,4279094_S
Department of Health,NHS England,31/07/2014,General Opthalmic services,Primary Care & Secondary Dental,SPECSAVERS OPTICIANS,4220375," 43,364.00 ",771629900 ,4269497_S
Department of Health,NHS England,31/07/2014,General Opthalmic services,Primary Care & Secondary Dental,SPECSAVERS OPTICIANS,4220406," 27,307.20 ",771629900 ,4263875_S
Department of Health,NHS England,31/07/2014,General Opthalmic services,Primary Care & Secondary Dental,SPECSAVERS OPTICIANS,4220454," 26,622.70 ",771629900 ,4263906_S
Department of Health,NHS England,31/07/2014,General Opthalmic services,Primary Care & Secondary Dental,SPECSAVERS OPTICIANS,4220456," 31,243.70 ",771629900 ,4263865_S
Department of Health,NHS England,31/07/2014,General Opthalmic services,Primary Care & Secondary Dental,SPECSAVERS OPTICIANS,4220545," 37,079.66 ",771629900 ,4269442_S
Department of Health,NHS England,31/07/2014,General Opthalmic services,Primary Care & Secondary Dental,SPECSAVERS OPTICIANS,4220549," 32,670.50 ",771629900 ,4269417_S
Department of Health,NHS England,31/07/2014,General Opthalmic services,Primary Care & Secondary Dental,SPECSAVERS OPTICIANS,4220551," 25,570.50 ",771629900 ,4263929_S
Department of Health,NHS England,31/07/2014,General Opthalmic services,Primary Care & Secondary Dental,SPECSAVERS OPTICIANS,4220553," 35,917.00 ",771629900 ,4263958_S
Department of Health,NHS England,31/07/2014,General Opthalmic services,Primary Care & Secondary Dental,SPECSAVERS OPTICIANS,4220555," 26,972.46 ",771629900 ,4263957_S
Department of Health,NHS England,31/07/2014,General Opthalmic services,Primary Care & Secondary Dental,SPECSAVERS OPTICIANS,4220744," 25,528.85 ",771629900 ,4263909_S
Department of Health,NHS England,31/07/2014,General Opthalmic services,Primary Care & Secondary Dental,SPECSAVERS OPTICIANS,4220837," 42,788.35 ",771629900 ,4259926_S
Department of Health,NHS England,31/07/2014,General Opthalmic services,Primary Care & Secondary Dental,SPECSAVERS OPTICIANS,4220841," 38,559.91 ",771629900 ,4259919_S
Department of Health,NHS England,31/07/2014,General Opthalmic services,Primary Care & Secondary Dental,SPECSAVERS OPTICIANS,4220851," 37,687.25 ",771629900 ,4259929_S
Department of Health,NHS England,31/07/2014,General Opthalmic services,Primary Care & Secondary Dental,SPECSAVERS OPTICIANS,4220924," 38,628.97 ",771629900 ,4279603_S
Department of Health,NHS England,31/07/2014,General Opthalmic services,Primary Care & Secondary Dental,SPECSAVERS OPTICIANS,4220986," 46,017.55 ",771629900 ,4279567_S
Department of Health,NHS England,31/07/2014,General Opthalmic services,Primary Care & Secondary Dental,SPECSAVERS OPTICIANS,4220994," 29,697.80 ",771629900 ,4279549_S
Department of Health,NHS England,31/07/2014,General Opthalmic services,Primary Care & Secondary Dental,SPECSAVERS OPTICIANS,4221146," 35,673.78 ",771629900 ,4285358_S
Department of Health,NHS England,31/07/2014,General Opthalmic services,Primary Care & Secondary Dental,SPECSAVERS OPTICIANS,4221168," 35,032.72 ",771629900 ,4285331_S
Department of Health,NHS England,31/07/2014,General Opthalmic services,Primary Care & Secondary Dental,SPECSAVERS OPTICIANS,4221174," 31,983.33 ",771629900 ,4285306_S
Department of Health,NHS England,31/07/2014,General Opthalmic services,Primary Care & Secondary Dental,SPECSAVERS OPTICIANS,4222365," 40,739.75 ",771629900 ,4282922_S
Department of Health,NHS England,31/07/2014,General Opthalmic services,Primary Care & Secondary Dental,SPECSAVERS OPTICIANS,4222437," 31,480.49 ",771629900 ,4282960_S
Department of Health,NHS England,31/07/2014,General Opthalmic services,Primary Care & Secondary Dental,SPECSAVERS OPTICIANS,4222522," 61,625.25 ",771629900 ,4285603_S
Department of Health,NHS England,31/07/2014,General Opthalmic services,Primary Care & Secondary Dental,SPECSAVERS OPTICIANS,4222651," 42,199.24 ",771629900 ,4285505_S
Department of Health,NHS England,31/07/2014,General Opthalmic services,Primary Care & Secondary Dental,SPECSAVERS OPTICIANS,4222653," 25,457.65 ",771629900 ,4285515_S
Department of Health,NHS England,31/07/2014,General Opthalmic services,Primary Care & Secondary Dental,SPECSAVERS OPTICIANS,4222655," 48,107.67 ",771629900 ,4285504_S
Department of Health,NHS England,31/07/2014,General Opthalmic services,Primary Care & Secondary Dental,SPECSAVERS OPTICIANS,4222657," 27,863.41 ",771629900 ,4285582_S
Department of Health,NHS England,31/07/2014,General Opthalmic services,Primary Care & Secondary Dental,SPECSAVERS OPTICIANS,4222659," 64,463.88 ",771629900 ,4285588_S
Department of Health,NHS England,31/07/2014,General Opthalmic services,Primary Care & Secondary Dental,SPECSAVERS OPTICIANS,4223054," 49,465.71 ",771629900 ,4286041_S
Department of Health,NHS England,31/07/2014,General Opthalmic services,Primary Care & Secondary Dental,SPECSAVERS OPTICIANS,4223200," 27,648.05 ",771629900 ,4286039_S
Department of Health,NHS England,31/07/2014,General Opthalmic services,Primary Care & Secondary Dental,SPECSAVERS OPTICIANS,4223212," 99,995.29 ",771629900 ,4286008_S
Department of Health,NHS England,31/07/2014,General Opthalmic services,Primary Care & Secondary Dental,SPECSAVERS OPTICIANS,4238090," 41,258.74 ",771629900 ,4285550_S
Department of Health,NHS England,31/07/2014,General Opthalmic services,Primary Care & Secondary Dental,SPECSAVERS OPTICIANS,4242641," 52,228.07 ",771629900 ,4286394_S
Department of Health,NHS England,31/07/2014,General Opthalmic services,Primary Care & Secondary Dental,SPECSAVERS OPTICIANS,4242721," 51,467.15 ",771629900 ,4286396_S
Department of Health,NHS England,31/07/2014,General Opthalmic services,Primary Care & Secondary Dental,SPECSAVERS OPTICIANS,4242727," 25,383.94 ",771629900 ,4286570_S
Department of Health,NHS England,31/07/2014,General Opthalmic services,Primary Care & Secondary Dental,SPECSAVERS OPTICIANS,4242729," 27,500.92 ",771629900 ,4286547_S
Department of Health,NHS England,31/07/2014,General Opthalmic services,Primary Care & Secondary Dental,SPECSAVERS OPTICIANS,4242783," 26,198.45 ",771629900 ,4286462_S
Department of Health,NHS England,31/07/2014,General Opthalmic services,Primary Care & Secondary Dental,SPECSAVERS OPTICIANS,4242841," 74,522.09 ",771629900 ,4286546_S
Department of Health,NHS England,31/07/2014,General Opthalmic services,Primary Care & Secondary Dental,SPECSAVERS OPTICIANS,4242845," 33,018.09 ",771629900 ,4286393_S
Department of Health,NHS England,31/07/2014,General Opthalmic services,Primary Care & Secondary Dental,SPECSAVERS OPTICIANS,4242942," 39,932.35 ",771629900 ,4286516_S
Department of Health,NHS England,31/07/2014,General Opthalmic services,Primary Care & Secondary Dental,SPECSAVERS OPTICIANS,4242958," 52,119.71 ",771629900 ,4286395_S
Department of Health,NHS England,31/07/2014,General Opthalmic services,Primary Care & Secondary Dental,SPECSAVERS OPTICIANS,4243044," 47,923.75 ",771629900 ,4286549_S
Department of Health,NHS England,31/07/2014,General Opthalmic services,Primary Care & Secondary Dental,SPECSAVERS OPTICIANS,4243046," 46,531.86 ",771629900 ,4286427_S
Department of Health,NHS England,31/07/2014,General Opthalmic services,Primary Care & Secondary Dental,SPECSAVERS OPTICIANS,4243708," 32,035.42 ",771629900 ,4288006_S
Department of Health,NHS England,31/07/2014,General Opthalmic services,Primary Care & Secondary Dental,SPECSAVERS OPTICIANS,4243721," 47,323.73 ",771629900 ,4287943_S
Department of Health,NHS England,31/07/2014,General Opthalmic services,Primary Care & Secondary Dental,SPECSAVERS OPTICIANS,4244639," 26,884.60 ",771629900 ,4280537_S
Department of Health,NHS England,31/07/2014,General Opthalmic services,Primary Care & Secondary Dental,SPECSAVERS OPTICIANS,4244705," 43,895.50 ",771629900 ,4280562_S
Department of Health,NHS England,31/07/2014,General Opthalmic services,Primary Care & Secondary Dental,SPECSAVERS OPTICIANS,4260627," 38,429.40 ",771629900 ,4282333_S
Department of Health,NHS England,31/07/2014,General Opthalmic services,Primary Care & Secondary Dental,SPECSAVERS OPTICIANS,4260639," 29,121.05 ",771629900 ,4282339_S
Department of Health,NHS England,31/07/2014,General Opthalmic services,Primary Care & Secondary Dental,SPECSAVERS OPTICIANS,4260758," 65,557.29 ",771629900 ,4288737_S
Department of Health,NHS England,31/07/2014,General Opthalmic services,Primary Care & Secondary Dental,SPECSAVERS OPTICIANS,4260858," 31,638.68 ",771629900 ,4288675_S
Department of Health,NHS England,31/07/2014,General Opthalmic services,Primary Care & Secondary Dental,SPECSAVERS OPTICIANS,4260860," 57,170.98 ",771629900 ,4288712_S
Department of Health,NHS England,31/07/2014,General Opthalmic services,Primary Care & Secondary Dental,SPECSAVERS OPTICIANS,4260864," 33,186.21 ",771629900 ,4288674_S
Department of Health,NHS England,31/07/2014,General Opthalmic services,Primary Care & Secondary Dental,SPECSAVERS OPTICIANS,4260869," 30,990.50 ",771629900 ,4288652_S
Department of Health,NHS England,31/07/2014,General Opthalmic services,Primary Care & Secondary Dental,SPECSAVERS OPTICIANS,4260908," 67,577.12 ",771629900 ,4282429_S
Department of Health,NHS England,31/07/2014,General Opthalmic services,Primary Care & Secondary Dental,SPECSAVERS OPTICIANS,4260948," 50,389.65 ",771629900 ,4282430_S
Department of Health,NHS England,31/07/2014,General Opthalmic services,Primary Care & Secondary Dental,SPECSAVERS OPTICIANS,4261653," 34,862.05 ",771629900 ,4287094_S
Department of Health,NHS England,31/07/2014,General Opthalmic services,Primary Care & Secondary Dental,SPECSAVERS OPTICIANS,4261660," 52,888.15 ",771629900 ,4287061_S
Department of Health,NHS England,31/07/2014,General Opthalmic services,Primary Care & Secondary Dental,SPECSAVERS OPTICIANS,4261732," 65,001.31 ",771629900 ,4285859_S
Department of Health,NHS England,31/07/2014,General Opthalmic services,Primary Care & Secondary Dental,SPECSAVERS OPTICIANS,4261832," 45,461.65 ",771629900 ,4286097_S
Department of Health,NHS England,31/07/2014,General Opthalmic services,Primary Care & Secondary Dental,SPECSAVERS OPTICIANS,4261866," 31,274.30 ",771629900 ,4286106_S
Department of Health,NHS England,31/07/2014,General Opthalmic services,Primary Care & Secondary Dental,SPECSAVERS OPTICIANS,4261923," 69,325.91 ",771629900 ,4285826_S
Department of Health,NHS England,31/07/2014,General Opthalmic services,Primary Care & Secondary Dental,SPECSAVERS OPTICIANS,4262012," 58,634.79 ",771629900 ,4287348_S
Department of Health,NHS England,31/07/2014,General Opthalmic services,Primary Care & Secondary Dental,SPECSAVERS OPTICIANS,4262018," 55,296.80 ",771629900 ,4287455_S
Department of Health,NHS England,31/07/2014,General Opthalmic services,Primary Care & Secondary Dental,SPECSAVERS OPTICIANS,4262082," 87,181.55 ",771629900 ,4287480_S
Department of Health,NHS England,31/07/2014,General Opthalmic services,Primary Care & Secondary Dental,SPECSAVERS OPTICIANS,4262205," 39,557.65 ",771629900 ,4287451_S
Department of Health,NHS England,31/07/2014,General Opthalmic services,Primary Care & Secondary Dental,SPECSAVERS OPTICIANS,4262235," 31,763.72 ",771629900 ,4287459_S
Department of Health,NHS England,31/07/2014,General Opthalmic services,Primary Care & Secondary Dental,SPECSAVERS OPTICIANS,4262301," 30,154.07 ",771629900 ,4287430_S
Department of Health,NHS England,31/07/2014,General Opthalmic services,Primary Care & Secondary Dental,SPECSAVERS OPTICIANS,4262335," 44,280.80 ",771629900 ,4288791_S
Department of Health,NHS England,31/07/2014,General Opthalmic services,Primary Care & Secondary Dental,SPECSAVERS OPTICIANS,4262434," 48,935.85 ",771629900 ,4288773_S
Department of Health,NHS England,31/07/2014,General Opthalmic services,Primary Care & Secondary Dental,SPECSAVERS OPTICIANS,4262473," 44,825.24 ",771629900 ,4288827_S
Department of Health,NHS England,31/07/2014,General Opthalmic services,Primary Care & Secondary Dental,SPECSAVERS OPTICIANS,4262615," 37,557.05 ",771629900 ,4289666_S
Department of Health,NHS England,31/07/2014,General Opthalmic services,Primary Care & Secondary Dental,SPECSAVERS OPTICIANS,4262639," 25,719.97 ",771629900 ,4289632_S
Department of Health,NHS England,31/07/2014,General Opthalmic services,Primary Care & Secondary Dental,SPECSAVERS OPTICIANS,4262645," 27,645.75 ",771629900 ,4289651_S
Department of Health,NHS England,31/07/2014,General Opthalmic services,Primary Care & Secondary Dental,SPECSAVERS OPTICIANS,4262657," 34,830.38 ",771629900 ,4289664_S
Department of Health,NHS England,31/07/2014,General Opthalmic services,Primary Care & Secondary Dental,SPECSAVERS OPTICIANS,4262809," 38,532.29 ",771629900 ,4286667_S
Department of Health,NHS England,31/07/2014,General Opthalmic services,Primary Care & Secondary Dental,SPECSAVERS OPTICIANS,4262811," 32,454.75 ",771629900 ,4286689_S
Department of Health,NHS England,31/07/2014,General Opthalmic services,Primary Care & Secondary Dental,SPECSAVERS OPTICIANS,4279793," 57,004.06 ",771629900 ,4280735_S
Department of Health,NHS England,31/07/2014,General Opthalmic services,Primary Care & Secondary Dental,SPECSAVERS OPTICIANS,4279823," 68,163.16 ",771629900 ,4280684_S
Department of Health,NHS England,31/07/2014,General Opthalmic services,Primary Care & Secondary Dental,SPECSAVERS OPTICIANS,4279867," 70,208.40 ",771629900 ,4280696_S
Department of Health,NHS England,31/07/2014,General Opthalmic services,Primary Care & Secondary Dental,SPECSAVERS OPTICIANS,4279915," 28,518.85 ",771629900 ,4280748_S
Department of Health,NHS England,31/07/2014,General Opthalmic services,Primary Care & Secondary Dental,SPECSAVERS OPTICIANS,4279959," 38,155.79 ",771629900 ,4287113_S
Department of Health,NHS England,31/07/2014,General Opthalmic services,Primary Care & Secondary Dental,SPECSAVERS OPTICIANS,4279973," 52,529.28 ",771629900 ,4287133_S
Department of Health,NHS England,31/07/2014,General Opthalmic services,Primary Care & Secondary Dental,SPECSAVERS OPTICIANS,4279986," 54,716.32 ",771629900 ,4287108_S
Department of Health,NHS England,31/07/2014,General Opthalmic services,Primary Care & Secondary Dental,SPECSAVERS OPTICIANS,4279988," 25,892.66 ",771629900 ,4287239_S
Department of Health,NHS England,31/07/2014,General Opthalmic services,Primary Care & Secondary Dental,SPECSAVERS OPTICIANS,4280054," 56,159.50 ",771629900 ,4287291_S
Department of Health,NHS England,31/07/2014,General Opthalmic services,Primary Care & Secondary Dental,SPECSAVERS OPTICIANS,4280062," 45,403.00 ",771629900 ,4287269_S
Department of Health,NHS England,31/07/2014,General Opthalmic services,Primary Care & Secondary Dental,SPECSAVERS OPTICIANS,4280174," 25,193.04 ",771629900 ,4287233_S
Department of Health,NHS England,31/07/2014,General Opthalmic services,Primary Care & Secondary Dental,SPECSAVERS OPTICIANS,4280203," 51,067.34 ",771629900 ,4287201_S
Department of Health,NHS England,31/07/2014,General Opthalmic services,Primary Care & Secondary Dental,SPECSAVERS OPTICIANS,4280205," 46,019.88 ",771629900 ,4287110_S
Department of Health,NHS England,31/07/2014,General Opthalmic services,Primary Care & Secondary Dental,SPECSAVERS OPTICIANS,4280221," 34,348.15 ",771629900 ,4287179_S
Department of Health,NHS England,31/07/2014,General Opthalmic services,Primary Care & Secondary Dental,SPECSAVERS OPTICIANS,4280241," 40,968.95 ",771629900 ,4287231_S
Department of Health,NHS England,31/07/2014,General Opthalmic services,Primary Care & Secondary Dental,SPECSAVERS OPTICIANS,4280344," 41,451.52 ",771629900 ,4287167_S
Department of Health,NHS England,31/07/2014,General Opthalmic services,Primary Care & Secondary Dental,SPECSAVERS OPTICIANS,4280860," 48,393.11 ",771629900 ,4267859_S
Department of Health,NHS England,31/07/2014,General Opthalmic services,Primary Care & Secondary Dental,SPECSAVERS OPTICIANS,4280926," 71,394.07 ",771629900 ,4267825_S
Department of Health,NHS England,31/07/2014,General Opthalmic services,Primary Care & Secondary Dental,SPECSAVERS OPTICIANS,4280936," 65,205.24 ",771629900 ,4267848_S
Department of Health,NHS England,31/07/2014,General Opthalmic services,Primary Care & Secondary Dental,SPECSAVERS OPTICIANS,4280958," 38,525.56 ",771629900 ,4267841_S
Department of Health,NHS England,31/07/2014,General Opthalmic services,Primary Care & Secondary Dental,SPECSAVERS OPTICIANS,4281144," 53,651.84 ",771629900 ,4289945_S
Department of Health,NHS England,31/07/2014,General Opthalmic services,Primary Care & Secondary Dental,SPECSAVERS OPTICIANS,4281186," 28,024.25 ",771629900 ,4290017_S
Department of Health,NHS England,31/07/2014,General Opthalmic services,Primary Care & Secondary Dental,SPECSAVERS OPTICIANS,4281272," 73,201.82 ",771629900 ,4289976_S
Department of Health,NHS England,31/07/2014,General Opthalmic services,Primary Care & Secondary Dental,SPECSAVERS OPTICIANS,4281274," 44,945.73 ",771629900 ,4289988_S
Department of Health,NHS England,31/07/2014,General Opthalmic services,Primary Care & Secondary Dental,SPECSAVERS OPTICIANS,4281440," 33,033.25 ",771629900 ,4290243_S
Department of Health,NHS England,31/07/2014,General Opthalmic services,Primary Care & Secondary Dental,SPECSAVERS OPTICIANS,4281526," 49,041.22 ",771629900 ,4290202_S
Department of Health,NHS England,31/07/2014,General Opthalmic services,Primary Care & Secondary Dental,SPECSAVERS OPTICIANS,4293492," 45,711.25 ",771629900 ,4290500_S
Department of Health,NHS England,31/07/2014,General Opthalmic services,Primary Care & Secondary Dental,SPECSAVERS OPTICIANS,4293522," 73,882.70 ",771629900 ,4290536_S
Department of Health,NHS England,31/07/2014,General Opthalmic services,Primary Care & Secondary Dental,SPECSAVERS OPTICIANS,4323668," 45,283.45 ",771629900 ,4291429_S
Department of Health,NHS England,31/07/2014,General Opthalmic services,Primary Care & Secondary Dental,SPECSAVERS OPTICIANS,4323735," 56,895.32 ",771629900 ,4291430_S
Department of Health,NHS England,31/07/2014,General Opthalmic services,Primary Care & Secondary Dental,SPECSAVERS OPTICIANS,4323737," 38,752.15 ",771629900 ,4291441_S
Department of Health,NHS England,31/07/2014,General Opthalmic services,Primary Care & Secondary Dental,SPECSAVERS OPTICIANS,4325049," 35,249.47 ",771629900 ,4291077_S
Department of Health,NHS England,31/07/2014,General Opthalmic services,Primary Care & Secondary Dental,SPECSAVERS OPTICIANS,4325141," 38,712.95 ",771629900 ,4292533_S
Department of Health,NHS England,31/07/2014,General Opthalmic services,Primary Care & Secondary Dental,SPECSAVERS OPTICIANS,4325203," 35,841.45 ",771629900 ,4292584_S
Department of Health,NHS England,31/07/2014,General Opthalmic services,Primary Care & Secondary Dental,SPECSAVERS OPTICIANS,4325343," 52,379.65 ",771629900 ,4292560_S
Department of Health,NHS England,31/07/2014,General Opthalmic services,Primary Care & Secondary Dental,SPECSAVERS OPTICIANS,4325358," 33,480.45 ",771629900 ,4292075_S
Department of Health,NHS England,31/07/2014,General Opthalmic services,Primary Care & Secondary Dental,SPECSAVERS OPTICIANS,4335364," 59,293.67 ",771629900 ,4292008_S
Department of Health,NHS England,31/07/2014,General Opthalmic services,Primary Care & Secondary Dental,SPECSAVERS OPTICIANS,4335787," 31,908.74 ",771629900 ,4268326_S
Department of Health,NHS England,31/07/2014,General Opthalmic services,Primary Care & Secondary Dental,SPECSAVERS OPTICIANS,4335862," 25,618.59 ",771629900 ,4268325_S
Department of Health,NHS England,31/07/2014,General Opthalmic services,Primary Care & Secondary Dental,SPECSAVERS OPTICIANS,4336026," 27,505.10 ",771629900 ,4293385_S
Department of Health,NHS England,31/07/2014,General Opthalmic services,Primary Care & Secondary Dental,SPECSAVERS OPTICIANS,4336030," 71,550.32 ",771629900 ,4293306_S
Department of Health,NHS England,31/07/2014,General Opthalmic services,Primary Care & Secondary Dental,SPECSAVERS OPTICIANS,4336089," 37,027.64 ",771629900 ,4293387_S
Department of Health,NHS England,31/07/2014,General Opthalmic services,Primary Care & Secondary Dental,SPECSAVERS OPTICIANS,4336123," 28,381.91 ",771629900 ,4293413_S
Department of Health,NHS England,31/07/2014,General Opthalmic services,Primary Care & Secondary Dental,SPECSAVERS OPTICIANS,4336268," 83,347.71 ",771629900 ,4293364_S
Department of Health,NHS England,31/07/2014,General Opthalmic services,Primary Care & Secondary Dental,SPECSAVERS OPTICIANS,4336280," 32,325.94 ",771629900 ,4293388_S
Department of Health,NHS England,31/07/2014,General Opthalmic services,Primary Care & Secondary Dental,SPECSAVERS OPTICIANS,4337508," 30,493.81 ",771629900 ,4293989_S
Department of Health,NHS England,31/07/2014,General Opthalmic services,Primary Care & Secondary Dental,SPECSAVERS OPTICIANS,4352817," 37,918.43 ",771629900 ,4291043_S
Department of Health,NHS England,31/07/2014,General Opthalmic services,Primary Care & Secondary Dental,SPECSAVERS OPTICIANS,4352881," 62,872.91 ",771629900 ,4292690_S
Department of Health,NHS England,31/07/2014,General Opthalmic services,Primary Care & Secondary Dental,SPECSAVERS OPTICIANS,4352935," 34,382.98 ",771629900 ,4292940_S
Department of Health,NHS England,31/07/2014,General Opthalmic services,Primary Care & Secondary Dental,SPECSAVERS OPTICIANS,4352988," 27,238.00 ",771629900 ,4292921_S
Department of Health,NHS England,31/07/2014,General Opthalmic services,Primary Care & Secondary Dental,SPECSAVERS OPTICIANS,4352990," 25,768.70 ",771629900 ,4292942_S
Department of Health,NHS England,31/07/2014,General Opthalmic services,Primary Care & Secondary Dental,SPECSAVERS OPTICIANS,4353115," 26,633.60 ",771629900 ,4292988_S
Department of Health,NHS England,31/07/2014,General Opthalmic services,Primary Care & Secondary Dental,SPECSAVERS OPTICIANS,4353353," 25,634.35 ",771629900 ,4292813_S
Department of Health,NHS England,31/07/2014,General Opthalmic services,Primary Care & Secondary Dental,SPECSAVERS OPTICIANS,4353355," 28,345.75 ",771629900 ,4292880_S
Department of Health,NHS England,31/07/2014,General Opthalmic services,Primary Care & Secondary Dental,SPECSAVERS OPTICIANS,4356222," 27,853.86 ",771629900 ,4294985_S
Department of Health,NHS England,31/07/2014,General Opthalmic services,Primary Care & Secondary Dental,SPECSAVERS OPTICIANS,4356224," 52,750.55 ",771629900 ,4295017_S
Department of Health,NHS England,31/07/2014,General Opthalmic services,Primary Care & Secondary Dental,SPECSAVERS OPTICIANS,4372930," 28,808.20 ",771629900 ,4294443_S
Department of Health,NHS England,31/07/2014,General Opthalmic services,Primary Care & Secondary Dental,SPECSAVERS OPTICIANS,4372936," 31,532.45 ",771629900 ,4294442_S
Department of Health,NHS England,31/07/2014,General Opthalmic services,Primary Care & Secondary Dental,SPECSAVERS OPTICIANS,4373003," 26,558.70 ",771629900 ,4294802_S
Department of Health,NHS England,31/07/2014,General Opthalmic services,Primary Care & Secondary Dental,SPECSAVERS OPTICIANS,4373032," 31,698.39 ",771629900 ,4295270_S
Department of Health,NHS England,31/07/2014,General Opthalmic services,Primary Care & Secondary Dental,SPECSAVERS OPTICIANS,4373065," 37,844.20 ",771629900 ,4295135_S
Department of Health,NHS England,31/07/2014,General Opthalmic services,Primary Care & Secondary Dental,SPECSAVERS OPTICIANS,4386363," 64,658.20 ",771629900 ,4296224_S
Department of Health,NHS England,31/07/2014,General Opthalmic services,Primary Care & Secondary Dental,SPECSAVERS OPTICIANS,4386439," 43,208.32 ",771629900 ,4296189_S
Department of Health,NHS England,31/07/2014,General Opthalmic services,Primary Care & Secondary Dental,SPECSAVERS OPTICIANS,4386441," 36,479.94 ",771629900 ,4296238_S
Department of Health,NHS England,31/07/2014,General Opthalmic services,Primary Care & Secondary Dental,SPECSAVERS OPTICIANS,4386918," 28,245.47 ",771629900 ,4296179_S
Department of Health,NHS England,31/07/2014,General Opthalmic services,Primary Care & Secondary Dental,SPECSAVERS OPTICIANS,4386935," 27,448.95 ",771629900 ,4296129_S
Department of Health,NHS England,31/07/2014,General Opthalmic services,Primary Care & Secondary Dental,SPECSAVERS OPTICIANS,4386992," 26,316.30 ",771629900 ,4296117_S
Department of Health,NHS England,31/07/2014,General Opthalmic services,Primary Care & Secondary Dental,SPECSAVERS OPTICIANS,4399286," 28,571.13 ",771629900 ,4294702_S
Department of Health,NHS England,31/07/2014,General Opthalmic services,Primary Care & Secondary Dental,SPECSAVERS OPTICIANS,4399302," 39,133.70 ",771629900 ,4294690_S
Department of Health,NHS England,31/07/2014,General Opthalmic services,Primary Care & Secondary Dental,SPECSAVERS OPTICIANS,4399354," 44,435.17 ",771629900 ,4289418_S
Department of Health,NHS England,31/07/2014,General Opthalmic services,Primary Care & Secondary Dental,SPECSAVERS OPTICIANS,4399356," 33,884.40 ",771629900 ,4294711_S
Department of Health,NHS England,31/07/2014,General Opthalmic services,Primary Care & Secondary Dental,SPECSAVERS OPTICIANS,4399387," 82,771.65 ",771629900 ,4289427_S
Department of Health,NHS England,31/07/2014,General Opthalmic services,Primary Care & Secondary Dental,SPECSAVERS OPTICIANS,4414327," 29,499.37 ",771629900 ,4297202_S
Department of Health,NHS England,31/07/2014,General Opthalmic services,Primary Care & Secondary Dental,SPECSAVERS OPTICIANS,4414335," 32,623.22 ",771629900 ,4297203_S
Department of Health,NHS England,31/07/2014,General Opthalmic services,Primary Care & Secondary Dental,SPECSAVERS OPTICIANS,4414429," 25,631.68 ",771629900 ,4297221_S
Department of Health,NHS England,31/07/2014,General Opthalmic services,Primary Care & Secondary Dental,SPECSAVERS OPTICIANS,4415440," 61,257.94 ",771629900 ,4295904_S
Department of Health,NHS England,31/07/2014,General Opthalmic services,Primary Care & Secondary Dental,SPECSAVERS OPTICIANS,4415612," 59,058.98 ",771629900 ,4296783_S
Department of Health,NHS England,31/07/2014,General Opthalmic services,Primary Care & Secondary Dental,SPECSAVERS OPTICIANS,4415678," 55,727.84 ",771629900 ,4296745_S
Department of Health,NHS England,31/07/2014,General Opthalmic services,Primary Care & Secondary Dental,SPECSAVERS OPTICIANS,4415720," 31,034.40 ",771629900 ,4296751_S
Department of Health,NHS England,31/07/2014,General Opthalmic services,Primary Care & Secondary Dental,SPECSAVERS OPTICIANS,4417117," 65,451.67 ",771629900 ,4297625_S
Department of Health,NHS England,31/07/2014,General Opthalmic services,Primary Care & Secondary Dental,SPECSAVERS OPTICIANS,4417215," 29,653.70 ",771629900 ,4297592_S
Department of Health,NHS England,31/07/2014,General Opthalmic services,Primary Care & Secondary Dental,SPECSAVERS OPTICIANS,4417304," 30,655.02 ",771629900 ,4297950_S
Department of Health,NHS England,31/07/2014,General Opthalmic services,Primary Care & Secondary Dental,SPECSAVERS OPTICIANS,4417306," 38,965.30 ",771629900 ,4297948_S
Department of Health,NHS England,31/07/2014,General Opthalmic services,Primary Care & Secondary Dental,SPECSAVERS OPTICIANS,4417308," 63,734.51 ",771629900 ,4297943_S
Department of Health,NHS England,31/07/2014,General Opthalmic services,Primary Care & Secondary Dental,SPECSAVERS OPTICIANS,4417328," 51,904.44 ",771629900 ,4297895_S
Department of Health,NHS England,31/07/2014,General Opthalmic services,Primary Care & Secondary Dental,SPECSAVERS OPTICIANS,4417355," 25,068.45 ",771629900 ,4297951_S
Department of Health,NHS England,31/07/2014,General Opthalmic services,Primary Care & Secondary Dental,SPECSAVERS OPTICIANS,4417397," 25,090.26 ",771629900 ,4297908_S
Department of Health,NHS England,31/07/2014,General Opthalmic services,Primary Care & Secondary Dental,SPECSAVERS OPTICIANS,4418803," 47,592.75 ",771629900 ,4298165_S
Department of Health,NHS England,31/07/2014,General Opthalmic services,Primary Care & Secondary Dental,SPECSAVERS OPTICIANS,4418821," 29,250.75 ",771629900 ,4298240_S
Department of Health,NHS England,31/07/2014,General Opthalmic services,Primary Care & Secondary Dental,SPECSAVERS OPTICIANS,4418825," 26,597.70 ",771629900 ,4298126_S
Department of Health,NHS England,31/07/2014,General Opthalmic services,Primary Care & Secondary Dental,SPECSAVERS OPTICIANS,4418866," 49,280.75 ",771629900 ,4298125_S
Department of Health,NHS England,31/07/2014,General Opthalmic services,Primary Care & Secondary Dental,SPECSAVERS OPTICIANS,4418955," 35,441.76 ",771629900 ,4298149_S
Department of Health,NHS England,31/07/2014,General Opthalmic services,Primary Care & Secondary Dental,SPECSAVERS OPTICIANS,4418971," 38,157.83 ",771629900 ,4298215_S
Department of Health,NHS England,31/07/2014,General Opthalmic services,Primary Care & Secondary Dental,SPECSAVERS OPTICIANS,4419012," 28,451.85 ",771629900 ,4298238_S
Department of Health,NHS England,31/07/2014,General Opthalmic services,Primary Care & Secondary Dental,SPECSAVERS OPTICIANS,4419018," 35,436.70 ",771629900 ,4298185_S
Department of Health,NHS England,31/07/2014,General Opthalmic services,Primary Care & Secondary Dental,SPECSAVERS WYTHENSHAWE,4243668," 28,743.07 ", -   ,4288040_S
Department of Health,NHS England,31/07/2014,General Opthalmic services,Primary Care & Secondary Dental,VISION CALL SOUTHERN /COMMUNITY EYECARE,4220494," 30,123.42 ", -   ,4277426_S
Department of Health,NHS England,31/07/2014,General Opthalmic services,Primary Care & Secondary Dental,VISION EXPRESS,4132910," 27,955.90 ", -   ,4273599_S
Department of Health,NHS England,31/07/2014,General Opthalmic services,Primary Care & Secondary Dental,VISION EXPRESS,4169932," 34,115.00 ", -   ,4267784_S
Department of Health,NHS England,31/07/2014,General Opthalmic services,Primary Care & Secondary Dental,VISION EXPRESS,4219115," 25,623.55 ", -   ,4279257_S
Department of Health,NHS England,31/07/2014,General Opthalmic services,Primary Care & Secondary Dental,VISION EXPRESS,4242817," 26,227.00 ", -   ,4286518_S
Department of Health,NHS England,31/07/2014,General Opthalmic services,Primary Care & Secondary Dental,VISION EXPRESS,4262813," 37,927.65 ", -   ,4286691_S
Department of Health,NHS England,31/07/2014,General Opthalmic services,Primary Care & Secondary Dental,VISION EXPRESS,4428895," 25,636.03 ", -   ,4298186_S
Department of Health,NHS England,31/07/2014,General Opthalmic services,Primary Care & Secondary Dental,WATNEY EYECARE LTD,4281213," 34,722.00 ", -   ,4290000_S
Department of Health,NHS England,31/07/2014,General Opthalmic services,Primary Care & Secondary Dental,PREMIER VISION OPTICIANS,4177895," 31,245.66 ", -   ,4266743_S
Department of Health,NHS England,31/07/2014,General Opthalmic services,Primary Care & Secondary Dental,PREMIER VISION OPTICIANS,4280954," 26,487.14 ", -   ,4267872_S
Department of Health,NHS England,31/07/2014,General Opthalmic services,Primary Care & Secondary Dental,BRAINTREE SPECSAVERS,4205262," 32,876.33 ", -   ,4266425_S
Department of Health,NHS England,31/07/2014,General Opthalmic services,Primary Care & Secondary Dental,WAITE P E 1020,4262105," 25,059.42 ", -   ,4287428_S
Department of Health,NHS England,31/07/2014,General Opthalmic services,Primary Care & Secondary Dental,SPECS DIRECT,4262135," 28,986.45 ", -   ,4287399_S
Department of Health,NHS England,31/07/2014,General Opthalmic services,Primary Care & Secondary Dental,CRIBBS CAUSEWAY SPECSAVERS LTD,4131697," 25,495.65 ", -   ,4270648_S
Department of Health,NHS England,31/07/2014,General Opthalmic services,Primary Care & Secondary Dental,ASDA PHARMACY,4132707," 27,173.65 ", -   ,4273534_S
Department of Health,NHS England,31/07/2014,General Opthalmic services,Primary Care & Secondary Dental,BRACKNELL VISIONPLUS LTD,4132902," 26,243.30 ", -   ,4273655_S
Department of Health,NHS England,31/07/2014,General Opthalmic services,Primary Care & Secondary Dental,RUGBY VISION PLUS LTD,4169699," 48,392.70 ", -   ,4271790_S
Department of Health,NHS England,31/07/2014,General Opthalmic services,Primary Care & Secondary Dental,SPECSAVERS SWINTON,4195631," 31,144.90 ", -   ,4280346_S
Department of Health,NHS England,31/07/2014,General Opthalmic services,Primary Care & Secondary Dental,GLYNN JONES,4200661," 30,506.88 ", -   ,4273306_S
Department of Health,NHS England,31/07/2014,General Opthalmic services,Primary Care & Secondary Dental,LAKESIDE SPECSAVERS,4205427," 28,995.80 ", -   ,4266325_S
Department of Health,NHS England,31/07/2014,General Opthalmic services,Primary Care & Secondary Dental,SPECSURE OPTICIANS,4221062," 26,791.79 ", -   ,4279621_S
Department of Health,NHS England,31/07/2014,General Opthalmic services,Primary Care & Secondary Dental,OPTISAVERS OPTICIANS LTD,4260665," 25,933.48 ", -   ,4282331_S
Department of Health,NHS England,31/07/2014,General Opthalmic services,Primary Care & Secondary Dental,NEIL GORDON OPTICIANS LTD,4281255," 28,707.64 ", -   ,4289944_S
Department of Health,NHS England,31/07/2014,General Opthalmic services,Primary Care & Secondary Dental,LUTON V E LTD,4323679," 25,942.45 ", -   ,4291442_S
Department of Health,NHS England,31/07/2014,General Opthalmic services,Primary Care & Secondary Dental,OPTICAL WORLD (SOUTHALL) LTD,4372996," 27,085.30 ", -   ,4294813_S
Department of Health,NHS England,31/07/2014,General Opthalmic services,Public Health,VIRGIN CARE SERVICES LTD,4304107," 29,179.00 ", -   ,47176422
Department of Health,NHS England,31/07/2014,GPMS/APMS and PCTMS,Primary Care & Secondary Dental,4 SEASONS MEDICAL CENTRE LTD,4337092," 25,092.84 ", -   ,CH000008219
Department of Health,NHS England,31/07/2014,GPMS/APMS and PCTMS,Primary Care & Secondary Dental,A F FROLEY,4356380," 47,939.68 ", -   ,LNP000009006
Department of Health,NHS England,31/07/2014,GPMS/APMS and PCTMS,Primary Care & Secondary Dental,A HAFEEZ,4224301," 35,995.51 ", -   ,LNP000008614
Department of Health,NHS England,31/07/2014,GPMS/APMS and PCTMS,Primary Care & Secondary Dental,A MOGHAL,4218809," 76,031.73 ", -   ,LNC000005358
Department of Health,NHS England,31/07/2014,GPMS/APMS and PCTMS,Primary Care & Secondary Dental,ABAZIE OD & PARTNER,4415000," 36,633.14 ", -   ,EX000019746
Department of Health,NHS England,31/07/2014,GPMS/APMS and PCTMS,Primary Care & Secondary Dental,ABBEY DALE MEDICAL CENTRE,4411254," 36,283.36 ", -   ,LA000011894
Department of Health,NHS England,31/07/2014,GPMS/APMS and PCTMS,Primary Care & Secondary Dental,ABBEY HOUSE MEDICAL PRACTICE,4219157," 170,933.35 ", -   ,NO000006342
Department of Health,NHS England,31/07/2014,GPMS/APMS and PCTMS,Primary Care & Secondary Dental,ABBEY HOUSE MEDICAL PRACTICE,4434714," 32,457.98 ", -   ,NO000006774
Department of Health,NHS England,31/07/2014,GPMS/APMS and PCTMS,Primary Care & Secondary Dental,ABBEY LANE SURGERY,4223294,"-26,006.36 ", -   ,SHE000004864
Department of Health,NHS England,31/07/2014,GPMS/APMS and PCTMS,Primary Care & Secondary Dental,ABBEY LANE SURGERY,4238119," 54,903.30 ", -   ,SHE000004865
Department of Health,NHS England,31/07/2014,GPMS/APMS and PCTMS,Primary Care & Secondary Dental,ABBEY MANOR MEDICAL PRACTICE,4237649," 43,245.01 ", -   ,SM000004491
Department of Health,NHS England,31/07/2014,GPMS/APMS and PCTMS,Primary Care & Secondary Dental,ABBEY MEAD SURGERY,4357085," 160,214.62 ", -   ,SO000017675
Department of Health,NHS England,31/07/2014,GPMS/APMS and PCTMS,Primary Care & Secondary Dental,ABBEY MEDICAL CENTER KENILWORTH,4416496," 110,043.74 ", -   ,WA000005909
Department of Health,NHS England,31/07/2014,GPMS/APMS and PCTMS,Primary Care & Secondary Dental,ABBEY MEDICAL CENTER LONDON,4428727," 132,513.93 ", -   ,LND000005697
Department of Health,NHS England,31/07/2014,GPMS/APMS and PCTMS,Primary Care & Secondary Dental,ABBEY MEDICAL PRACTICE EVESHAM,4416590," 66,141.78 ", -   ,WR000007163
Department of Health,NHS England,31/07/2014,GPMS/APMS and PCTMS,Primary Care & Secondary Dental,ABBEY MEDICAL PRACTICE WELLINGBOROUGH,4219159," 131,739.38 ", -   ,NO000006344
Department of Health,NHS England,31/07/2014,GPMS/APMS and PCTMS,Primary Care & Secondary Dental,ABBEY MEDICAL PRACTICE WELLINGBOROUGH,4434715," 26,780.78 ", -   ,NO000006775
Department of Health,NHS England,31/07/2014,GPMS/APMS and PCTMS,Primary Care & Secondary Dental,ABBEY PRACTICE GROUP,4369591," 58,886.30 ", -   ,DUD000002345
Department of Health,NHS England,31/07/2014,GPMS/APMS and PCTMS,Primary Care & Secondary Dental,ABBEY ROAD HEALTH CENTRE,4369398," 73,063.77 ", -   ,LNA000007814
Department of Health,NHS England,31/07/2014,GPMS/APMS and PCTMS,Primary Care & Secondary Dental,ABBEY SURGERY TAVISTOCK,4353714," 128,081.42 ", -   ,DN000013594
Department of Health,NHS England,31/07/2014,GPMS/APMS and PCTMS,Primary Care & Secondary Dental,ABBEY VIEW MEDICAL CENTRE,4238025," 133,532.31 ", -   ,DO000007791
Department of Health,NHS England,31/07/2014,GPMS/APMS and PCTMS,Primary Care & Secondary Dental,ABBEY WOOD SURGERY,4238321," 87,034.03 ", -   ,LNW000003904
Department of Health,NHS England,31/07/2014,GPMS/APMS and PCTMS,Primary Care & Secondary Dental,ABBOTS WOOD MEDICAL CENTRE,4428853," 36,111.11 ", -   ,HT000010258
Department of Health,NHS England,31/07/2014,GPMS/APMS and PCTMS,Primary Care & Secondary Dental,ABBOTSBURY ROAD SURGERY,4369460," 79,253.85 ", -   ,DO000008006
Department of Health,NHS England,31/07/2014,GPMS/APMS and PCTMS,Primary Care & Secondary Dental,ABBOTT & PATEL,4399525," 54,611.07 ", -   ,DR000006053
Department of Health,NHS England,31/07/2014,GPMS/APMS and PCTMS,Primary Care & Secondary Dental,ABBOTTSWOOD MEDICAL CENTRE,4428537," 111,828.20 ", -   ,WR000007165
Department of Health,NHS England,31/07/2014,GPMS/APMS and PCTMS,Primary Care & Secondary Dental,ABBOTTSWOOD MEDICAL CENTRE,4432769," 28,197.53 ", -   ,WR000007376
Department of Health,NHS England,31/07/2014,GPMS/APMS and PCTMS,Primary Care & Secondary Dental,ABDI SHS,4349815," 36,793.90 ", -   ,LIP000007379
Department of Health,NHS England,31/07/2014,GPMS/APMS and PCTMS,Primary Care & Secondary Dental,ABERFELDY STREET PRACTICE,4352640," 51,366.56 ", -   ,LNA000007816
Department of Health,NHS England,31/07/2014,GPMS/APMS and PCTMS,Primary Care & Secondary Dental,ABERNETHY HOUSE,4223559," 123,154.09 ", -   ,LNE000006181
Department of Health,NHS England,31/07/2014,GPMS/APMS and PCTMS,Primary Care & Secondary Dental,ABINGDON HEALTH CENTRE,4238402," 76,191.62 ", -   ,LNJ000004961
Department of Health,NHS England,31/07/2014,GPMS/APMS and PCTMS,Primary Care & Secondary Dental,ABINGDON SURGERY,4428587," 105,954.37 ", -   ,OX000006611
Department of Health,NHS England,31/07/2014,GPMS/APMS and PCTMS,Primary Care & Secondary Dental,ABINGTON MEDICAL CENTRE,4219161," 125,955.10 ", -   ,NO000006346
Department of Health,NHS England,31/07/2014,GPMS/APMS and PCTMS,Primary Care & Secondary Dental,ABINGTON PARK SURGERY,4219163," 91,245.31 ", -   ,NO000006348
Department of Health,NHS England,31/07/2014,GPMS/APMS and PCTMS,Primary Care & Secondary Dental,ABNEY HOUSE MEDICAL CENTRE,4352642," 26,332.15 ", -   ,LNA000007818
Department of Health,NHS England,31/07/2014,GPMS/APMS and PCTMS,Primary Care & Secondary Dental,ABRAHAM K K & PARTNER,4415003," 46,947.28 ", -   ,EX000019750
Department of Health,NHS England,31/07/2014,GPMS/APMS and PCTMS,Primary Care & Secondary Dental,ABRAMS S & NIKPOUR A,4335566," 30,799.78 ", -   ,LIP000007389
Department of Health,NHS England,31/07/2014,GPMS/APMS and PCTMS,Primary Care & Secondary Dental,ACCRINGTON VIC HAC,4411257," 165,682.28 ", -   ,LA000011898
Department of Health,NHS England,31/07/2014,GPMS/APMS and PCTMS,Primary Care & Secondary Dental,ACORN D J & PARTNER,4428074," 36,000.08 ", -   ,EX000019752
Department of Health,NHS England,31/07/2014,GPMS/APMS and PCTMS,Primary Care & Secondary Dental,ACORN GROUP PRACTICE,4370507," 78,174.76 ", -   ,LNN000005135
Department of Health,NHS England,31/07/2014,GPMS/APMS and PCTMS,Primary Care & Secondary Dental,ACORN MEDICAL CENTRE,4335327," 44,715.77 ", -   ,LNK000002342
Department of Health,NHS England,31/07/2014,GPMS/APMS and PCTMS,Primary Care & Secondary Dental,ACORNS SURGERY,4238142," 148,868.71 ", -   ,LNS000010558
Department of Health,NHS England,31/07/2014,GPMS/APMS and PCTMS,Primary Care & Secondary Dental,ACORNS SURGERY,4337034," 37,895.73 ", -   ,CH000008161
Department of Health,NHS England,31/07/2014,GPMS/APMS and PCTMS,Primary Care & Secondary Dental,ACRE SURGERY NORTHWOOD HEALTH CENTRE,4204609,"-33,896.46 ", -   ,LNK000002274
Department of Health,NHS England,31/07/2014,GPMS/APMS and PCTMS,Primary Care & Secondary Dental,ACRE SURGERY NORTHWOOD HEALTH CENTRE,4217673," 68,778.84 ", -   ,LNK000002275
Department of Health,NHS England,31/07/2014,GPMS/APMS and PCTMS,Primary Care & Secondary Dental,ACRESWOOD SURGERY,4411258," 65,939.91 ", -   ,LA000011900
Department of Health,NHS England,31/07/2014,GPMS/APMS and PCTMS,Primary Care & Secondary Dental,ADAM HOUSE MEDICAL CENTRE,4219483," 68,718.98 ", -   ,DE000010474
Department of Health,NHS England,31/07/2014,GPMS/APMS and PCTMS,Primary Care & Secondary Dental,ADAM PRACTICE,4238027," 266,002.13 ", -   ,DO000007795
Department of Health,NHS England,31/07/2014,GPMS/APMS and PCTMS,Primary Care & Secondary Dental,ADAMS P & PARTNERS,4357348," 44,194.25 ", -   ,SY000008777
Department of Health,NHS England,31/07/2014,GPMS/APMS and PCTMS,Primary Care & Secondary Dental,ADDINGTON ROAD SURGERY,4281288," 91,867.74 ", -   ,LNT000003775
Department of Health,NHS England,31/07/2014,GPMS/APMS and PCTMS,Primary Care & Secondary Dental,ADELAIDE GP SURGERY,4195754,"-50,000.00 ", -   ,SO000017546
Department of Health,NHS England,31/07/2014,GPMS/APMS and PCTMS,Primary Care & Secondary Dental,ADELAIDE GP SURGERY,4217549," 124,497.69 ", -   ,SO000017547
Department of Health,NHS England,31/07/2014,GPMS/APMS and PCTMS,Primary Care & Secondary Dental,ADELAIDE MEDICAL CENTRE,4370301," 79,034.42 ", -   ,SO000017683
Department of Health,NHS England,31/07/2014,GPMS/APMS and PCTMS,Primary Care & Secondary Dental,ADELAIDE MEDICAL CENTRE BLAYDON,4417031," 95,288.17 ", -   ,GAT000003790
Department of Health,NHS England,31/07/2014,GPMS/APMS and PCTMS,Primary Care & Secondary Dental,ADELAIDE MEDICAL CENTRE LONDON,4428728," 98,276.35 ", -   ,LND000005699
Department of Health,NHS England,31/07/2014,GPMS/APMS and PCTMS,Primary Care & Secondary Dental,ADELAIDE ST SURGERY WATERFRONT LCG,4353720," 31,149.10 ", -   ,DN000013600
Department of Health,NHS England,31/07/2014,GPMS/APMS and PCTMS,Primary Care & Secondary Dental,ADELAIDE STREET SURGERY,4411261," 107,856.82 ", -   ,LA000011906
Department of Health,NHS England,31/07/2014,GPMS/APMS and PCTMS,Primary Care & Secondary Dental,ADLER & ROSENBERG,4428820," 39,759.76 ", -   ,LNH000004358
Department of Health,NHS England,31/07/2014,GPMS/APMS and PCTMS,Primary Care & Secondary Dental,ADO THE ENTERPRISE PRACTICE,4370530," 32,168.15 ", -   ,LNL000006425
Department of Health,NHS England,31/07/2014,GPMS/APMS and PCTMS,Primary Care & Secondary Dental,ADSHALL ROAD MEDICAL PRACTICE,4398446," 49,580.04 ", -   ,SPT000002795
Department of Health,NHS England,31/07/2014,GPMS/APMS and PCTMS,Primary Care & Secondary Dental,ADSWOOD ROAD SURGERY,4217800," 36,556.55 ", -   ,SPT000002696
Department of Health,NHS England,31/07/2014,GPMS/APMS and PCTMS,Primary Care & Secondary Dental,ADUR & PARTNERS,4218811," 39,802.78 ", -   ,LNC000005360
Department of Health,NHS England,31/07/2014,GPMS/APMS and PCTMS,Primary Care & Secondary Dental,ADUR MEDICAL GROUP,4370442," 78,874.65 ", -   ,TW000010925
Department of Health,NHS England,31/07/2014,GPMS/APMS and PCTMS,Primary Care & Secondary Dental,AELFGAR SURGERY,4223921," 44,227.34 ", -   ,ST000014455
Department of Health,NHS England,31/07/2014,GPMS/APMS and PCTMS,Primary Care & Secondary Dental,AGARWAL & PARTNERS,4153823," 44,907.22 ", -   ,LIP000007109
Department of Health,NHS England,31/07/2014,GPMS/APMS and PCTMS,Primary Care & Secondary Dental,AGARWAL & PARTNERS,4335567,"-38,784.69 ", -   ,LIP000007390
Department of Health,NHS England,31/07/2014,GPMS/APMS and PCTMS,Primary Care & Secondary Dental,AGARWAL & PARTNERS,4349820," 79,308.83 ", -   ,LIP000007391
Department of Health,NHS England,31/07/2014,GPMS/APMS and PCTMS,Primary Care & Secondary Dental,AGHA B & PARTNERS,4415025," 53,878.65 ", -   ,EX000019760
Department of Health,NHS England,31/07/2014,GPMS/APMS and PCTMS,Primary Care & Secondary Dental,AGRAWAL,4369627," 59,393.64 ", -   ,WOM000003257
Department of Health,NHS England,31/07/2014,GPMS/APMS and PCTMS,Primary Care & Secondary Dental,AGRAWAL & PARTNER,4370041," 66,376.46 ", -   ,WBH000002885
Department of Health,NHS England,31/07/2014,GPMS/APMS and PCTMS,Primary Care & Secondary Dental,AGRAWAL R K & K,4224203," 31,251.70 ", -   ,LNN000004964
Department of Health,NHS England,31/07/2014,GPMS/APMS and PCTMS,Primary Care & Secondary Dental,AHMAD & MONTEIRO,4369499," 56,328.35 ", -   ,LNC000005457
Department of Health,NHS England,31/07/2014,GPMS/APMS and PCTMS,Primary Care & Secondary Dental,AHMAD H S,4428075," 32,462.68 ", -   ,EX000019762
Department of Health,NHS England,31/07/2014,GPMS/APMS and PCTMS,Primary Care & Secondary Dental,AHMAD M & PARTNERS,4224451," 52,437.56 ", -   ,SY000008655
Department of Health,NHS England,31/07/2014,GPMS/APMS and PCTMS,Primary Care & Secondary Dental,AHMED & BUTT,4258627,"-41,449.05 ", -   ,YW000006688
Department of Health,NHS England,31/07/2014,GPMS/APMS and PCTMS,Primary Care & Secondary Dental,AHMED & BUTT,4271255," 112,568.70 ", -   ,YW000006689
Department of Health,NHS England,31/07/2014,GPMS/APMS and PCTMS,Primary Care & Secondary Dental,AHMED & PARTNERS,4356598," 58,947.02 ", -   ,WBH000002887
Department of Health,NHS England,31/07/2014,GPMS/APMS and PCTMS,Primary Care & Secondary Dental,AHMED I & PTS,4369855," 73,295.85 ", -   ,DE000010688
Department of Health,NHS England,31/07/2014,GPMS/APMS and PCTMS,Primary Care & Secondary Dental,AINSWORTH D & PARTNERS,4428076," 45,481.79 ", -   ,EX000019764
Department of Health,NHS England,31/07/2014,GPMS/APMS and PCTMS,Primary Care & Secondary Dental,AIR BALLOON SURGERY,4219954," 110,600.54 ", -   ,BRS000009515
Department of Health,NHS England,31/07/2014,GPMS/APMS and PCTMS,Primary Care & Secondary Dental,AIR BALLOON SURGERY,4417492," 31,575.74 ", -   ,BRS000009889
Department of Health,NHS England,31/07/2014,GPMS/APMS and PCTMS,Primary Care & Secondary Dental,AIREBOROUGH FAMILY PRACTICE,4221886,"-30,674.79 ", -   ,LDS000008367
Department of Health,NHS England,31/07/2014,GPMS/APMS and PCTMS,Primary Care & Secondary Dental,AIREBOROUGH FAMILY PRACTICE,4237891," 68,093.38 ", -   ,LDS000008368
Department of Health,NHS England,31/07/2014,GPMS/APMS and PCTMS,Primary Care & Secondary Dental,AKERMAN MEDICAL PRACTICE,4238143," 48,314.48 ", -   ,LNS000010562
Department of Health,NHS England,31/07/2014,GPMS/APMS and PCTMS,Primary Care & Secondary Dental,ALAM N,4336598," 30,772.56 ", -   ,BIK000003646
Department of Health,NHS England,31/07/2014,GPMS/APMS and PCTMS,Primary Care & Secondary Dental,ALBANY HOUSE MEDICAL CENTRE,4219165," 132,843.97 ", -   ,NO000006350
Department of Health,NHS England,31/07/2014,GPMS/APMS and PCTMS,Primary Care & Secondary Dental,ALBANY HOUSE MEDICAL CENTRE,4434717," 27,305.34 ", -   ,NO000006777
Department of Health,NHS England,31/07/2014,GPMS/APMS and PCTMS,Primary Care & Secondary Dental,ALBERT HOUSE CLINIC,4292078," 56,328.32 ", -   ,MID000005397
Department of Health,NHS England,31/07/2014,GPMS/APMS and PCTMS,Primary Care & Secondary Dental,ALBERT STREET SURGERY,4237965," 57,724.05 ", -   ,WA000005876
Department of Health,NHS England,31/07/2014,GPMS/APMS and PCTMS,Primary Care & Secondary Dental,ALBION HEALTH CENTRE,4352646," 77,868.02 ", -   ,LNA000007824
Department of Health,NHS England,31/07/2014,GPMS/APMS and PCTMS,Primary Care & Secondary Dental,ALBION MEDICAL PRACTICE,4217816," 98,121.37 ", -   ,GMK000004062
Department of Health,NHS England,31/07/2014,GPMS/APMS and PCTMS,Primary Care & Secondary Dental,ALBION MOUNT MEDICAL PRACTICE,4258628,"-47,651.65 ", -   ,YW000006690
Department of Health,NHS England,31/07/2014,GPMS/APMS and PCTMS,Primary Care & Secondary Dental,ALBION MOUNT MEDICAL PRACTICE,4271256," 103,522.59 ", -   ,YW000006691
Department of Health,NHS England,31/07/2014,GPMS/APMS and PCTMS,Primary Care & Secondary Dental,ALBION STREET HEALTH CENTRE,4238144," 147,118.80 ", -   ,LNS000010564
Department of Health,NHS England,31/07/2014,GPMS/APMS and PCTMS,Primary Care & Secondary Dental,ALBION SURGERY,4238324," 122,806.17 ", -   ,LNW000003910
Department of Health,NHS England,31/07/2014,GPMS/APMS and PCTMS,Primary Care & Secondary Dental,ALBRIGHTON MEDICAL PRACTICE,4354518," 81,482.61 ", -   ,SA000006119
Department of Health,NHS England,31/07/2014,GPMS/APMS and PCTMS,Primary Care & Secondary Dental,ALCESTER HEALTH CENTRE,4428534," 73,452.96 ", -   ,WA000006027
Department of Health,NHS England,31/07/2014,GPMS/APMS and PCTMS,Primary Care & Secondary Dental,ALDERMOOR SURGERY,4370290," 65,260.07 ", -   ,SO000017661
Department of Health,NHS England,31/07/2014,GPMS/APMS and PCTMS,Primary Care & Secondary Dental,ALDERSBROOK MEDICAL CENTRE,4222810," 29,202.54 ", -   ,LNB000004801
Department of Health,NHS England,31/07/2014,GPMS/APMS and PCTMS,Primary Care & Secondary Dental,ALDERWOOD ROAD,4238316," 28,945.97 ", -   ,LNW000003896
Department of Health,NHS England,31/07/2014,GPMS/APMS and PCTMS,Primary Care & Secondary Dental,ALEXANDER & PARTNER,4154126," 26,920.76 ", -   ,STL000005953
Department of Health,NHS England,31/07/2014,GPMS/APMS and PCTMS,Primary Care & Secondary Dental,ALEXANDER & PARTNER,4336586,"-61,103.65 ", -   ,STL000006200
Department of Health,NHS England,31/07/2014,GPMS/APMS and PCTMS,Primary Care & Secondary Dental,ALEXANDER & PARTNER,4349958," 87,097.37 ", -   ,STL000006201
Department of Health,NHS England,31/07/2014,GPMS/APMS and PCTMS,Primary Care & Secondary Dental,ALEXANDER GS,4400572," 46,121.65 ", -   ,MAN000004437
Department of Health,NHS England,31/07/2014,GPMS/APMS and PCTMS,Primary Care & Secondary Dental,ALEXANDER HOUSE SURGERY,4195751,"-51,696.63 ", -   ,SO000017540
Department of Health,NHS England,31/07/2014,GPMS/APMS and PCTMS,Primary Care & Secondary Dental,ALEXANDER HOUSE SURGERY,4217546," 128,008.40 ", -   ,SO000017541
Department of Health,NHS England,31/07/2014,GPMS/APMS and PCTMS,Primary Care & Secondary Dental,ALEXANDRA PRACTICE,4400574," 55,919.53 ", -   ,MAN000004439
Department of Health,NHS England,31/07/2014,GPMS/APMS and PCTMS,Primary Care & Secondary Dental,ALI A & PARTNER,4336587,"-43,635.25 ", -   ,BIK000003641
Department of Health,NHS England,31/07/2014,GPMS/APMS and PCTMS,Primary Care & Secondary Dental,ALI A & PARTNER,4336589," 60,422.77 ", -   ,BIK000003642
Department of Health,NHS England,31/07/2014,GPMS/APMS and PCTMS,Primary Care & Secondary Dental,ALICE MEDICAL CENTRE,4324007," 32,349.95 ", -   ,NN000011633
Department of Health,NHS England,31/07/2014,GPMS/APMS and PCTMS,Primary Care & Secondary Dental,ALL SAINTS MEDICAL CENTRE,4238317," 49,562.47 ", -   ,LNW000003898
Department of Health,NHS England,31/07/2014,GPMS/APMS and PCTMS,Primary Care & Secondary Dental,ALL SAINTS MEDICAL PRACTICE,4220251," 65,289.02 ", -   ,LNA000007749
Department of Health,NHS England,31/07/2014,GPMS/APMS and PCTMS,Primary Care & Secondary Dental,ALLEN & PARTNERS,4153807," 41,022.71 ", -   ,LIP000007093
Department of Health,NHS England,31/07/2014,GPMS/APMS and PCTMS,Primary Care & Secondary Dental,ALLEN & PARTNERS,4335558,"-135,748.72 ", -   ,LIP000007374
Department of Health,NHS England,31/07/2014,GPMS/APMS and PCTMS,Primary Care & Secondary Dental,ALLEN & PARTNERS,4349813," 182,400.17 ", -   ,LIP000007375
Department of Health,NHS England,31/07/2014,GPMS/APMS and PCTMS,Primary Care & Secondary Dental,ALLERTON ROAD MEDICAL CENTRE,4237645," 49,799.48 ", -   ,LNA000007747
Department of Health,NHS England,31/07/2014,GPMS/APMS and PCTMS,Primary Care & Secondary Dental,ALLUM MEDICAL CENTRE,4222812," 128,600.02 ", -   ,LNB000004803
Department of Health,NHS England,31/07/2014,GPMS/APMS and PCTMS,Primary Care & Secondary Dental,ALMA MEDICAL CENTRE,4280603,"-82,540.95 ", -   ,MID000005386
Department of Health,NHS England,31/07/2014,GPMS/APMS and PCTMS,Primary Care & Secondary Dental,ALMA MEDICAL CENTRE,4280604," 211,959.38 ", -   ,MID000005387
Department of Health,NHS England,31/07/2014,GPMS/APMS and PCTMS,Primary Care & Secondary Dental,ALMA PARTNERSHIP,4238024," 69,704.73 ", -   ,DO000007787
Department of Health,NHS England,31/07/2014,GPMS/APMS and PCTMS,Primary Care & Secondary Dental,ALMA ROAD SURGERY,4370292," 120,737.64 ", -   ,SO000017665
Department of Health,NHS England,31/07/2014,GPMS/APMS and PCTMS,Primary Care & Secondary Dental,ALMAN R & PARTNERS,4154298," 32,583.08 ", -   ,BIK000003486
Department of Health,NHS England,31/07/2014,GPMS/APMS and PCTMS,Primary Care & Secondary Dental,ALMAN R & PARTNERS,4336591,"-74,772.36 ", -   ,BIK000003643
Department of Health,NHS England,31/07/2014,GPMS/APMS and PCTMS,Primary Care & Secondary Dental,ALMAN R & PARTNERS,4336594," 104,911.17 ", -   ,BIK000003644
Department of Health,NHS England,31/07/2014,GPMS/APMS and PCTMS,Primary Care & Secondary Dental,ALMONDSBURY SURGERY,4219946," 40,856.52 ", -   ,BRS000009507
Department of Health,NHS England,31/07/2014,GPMS/APMS and PCTMS,Primary Care & Secondary Dental,ALRESFORD SURGERY,4370293," 91,875.57 ", -   ,SO000017667
Department of Health,NHS England,31/07/2014,GPMS/APMS and PCTMS,Primary Care & Secondary Dental,ALTON STREET SURGERY,4428536," 104,598.95 ", -   ,WR000007161
Department of Health,NHS England,31/07/2014,GPMS/APMS and PCTMS,Primary Care & Secondary Dental,ALTY & PARTNERS,4349814," 41,965.37 ", -   ,LIP000007377
Department of Health,NHS England,31/07/2014,GPMS/APMS and PCTMS,Primary Care & Secondary Dental,ALVANLEY FAMILY PRACTICE,4217798," 33,201.71 ", -   ,SPT000002692
Department of Health,NHS England,31/07/2014,GPMS/APMS and PCTMS,Primary Care & Secondary Dental,ALYMER LODGE COOKLEY PARTNERSHIP,4237998," 158,004.37 ", -   ,WR000007030
Department of Health,NHS England,31/07/2014,GPMS/APMS and PCTMS,Primary Care & Secondary Dental,AMERSHAM HEALTH CENTRE,4321078," 94,144.14 ", -   ,BU000005843
Department of Health,NHS England,31/07/2014,GPMS/APMS and PCTMS,Primary Care & Secondary Dental,AMERSHAM VALE TRAINING PRACTICE,4223401," 62,807.19 ", -   ,LNS000010552
Department of Health,NHS England,31/07/2014,GPMS/APMS and PCTMS,Primary Care & Secondary Dental,AMHERST MEDICAL,4292151," 104,032.13 ", -   ,KC000019931
Department of Health,NHS England,31/07/2014,GPMS/APMS and PCTMS,Primary Care & Secondary Dental,AMPLEFORTH SURGERY,4417714," 38,397.20 ", -   ,YN000007523
Department of Health,NHS England,31/07/2014,GPMS/APMS and PCTMS,Primary Care & Secondary Dental,AMPTHILL PRACTICE,4417925," 68,551.41 ", -   ,LND000005691
Department of Health,NHS England,31/07/2014,GPMS/APMS and PCTMS,Primary Care & Secondary Dental,AMWELL PRACTICE,4428725," 165,686.26 ", -   ,LND000005693
Department of Health,NHS England,31/07/2014,GPMS/APMS and PCTMS,Primary Care & Secondary Dental,AMWELL STREET SURGERY,4418174," 102,756.70 ", -   ,HT000010254
Department of Health,NHS England,31/07/2014,GPMS/APMS and PCTMS,Primary Care & Secondary Dental,ANDOVER HEALTH CENTRE MEDICAL PRACTICE,4370296," 108,537.96 ", -   ,SO000017673
Department of Health,NHS England,31/07/2014,GPMS/APMS and PCTMS,Primary Care & Secondary Dental,ANDOVER MEDICAL CENTRE,4428726," 51,101.50 ", -   ,LND000005695
Department of Health,NHS England,31/07/2014,GPMS/APMS and PCTMS,Primary Care & Secondary Dental,ANDREOU & PARTNERS,4370040," 225,552.51 ", -   ,WBH000002883
Department of Health,NHS England,31/07/2014,GPMS/APMS and PCTMS,Primary Care & Secondary Dental,ANGEL SURGERY,4223557," 35,285.53 ", -   ,LNE000006179
Department of Health,NHS England,31/07/2014,GPMS/APMS and PCTMS,Primary Care & Secondary Dental,ANNANDALE MEDICAL CENTRE,4175616," 30,831.38 ", -   ,CH000007920
Department of Health,NHS England,31/07/2014,GPMS/APMS and PCTMS,Primary Care & Secondary Dental,ANNANDALE MEDICAL CENTRE,4337031,"-26,019.63 ", -   ,CH000008158
Department of Health,NHS England,31/07/2014,GPMS/APMS and PCTMS,Primary Care & Secondary Dental,ANNANDALE MEDICAL CENTRE,4337032," 60,926.12 ", -   ,CH000008159
Department of Health,NHS England,31/07/2014,GPMS/APMS and PCTMS,Primary Care & Secondary Dental,ANNANDALE SURGERY,4418176," 67,497.21 ", -   ,HT000010256
Department of Health,NHS England,31/07/2014,GPMS/APMS and PCTMS,Primary Care & Secondary Dental,ANSDELL MEDICAL CENTRE,4411255," 71,198.46 ", -   ,LA000011896
Department of Health,NHS England,31/07/2014,GPMS/APMS and PCTMS,Primary Care & Secondary Dental,APEX MEDICAL PRACTICE,4292153," 41,608.64 ", -   ,KC000019935
Department of Health,NHS England,31/07/2014,GPMS/APMS and PCTMS,Primary Care & Secondary Dental,APMS HARDEN,4369714," 35,953.38 ", -   ,WAL000003510
Department of Health,NHS England,31/07/2014,GPMS/APMS and PCTMS,Primary Care & Secondary Dental,APPLEBY HEALTH CENTRE,4243785," 37,677.92 ", -   ,CU000005659
Department of Health,NHS England,31/07/2014,GPMS/APMS and PCTMS,Primary Care & Secondary Dental,APPLES MEDICAL CENTRE,4238026," 53,642.71 ", -   ,DO000007793
Department of Health,NHS England,31/07/2014,GPMS/APMS and PCTMS,Primary Care & Secondary Dental,APSLEY SURGERY,4223919," 83,681.73 ", -   ,ST000014453
Department of Health,NHS England,31/07/2014,GPMS/APMS and PCTMS,Primary Care & Secondary Dental,ARBURY MEDICAL PRACTICE,4416498," 87,610.77 ", -   ,WA000005911
Department of Health,NHS England,31/07/2014,GPMS/APMS and PCTMS,Primary Care & Secondary Dental,ARCADIAN GARDENS,4428773," 63,831.03 ", -   ,LNE000006359
Department of Health,NHS England,31/07/2014,GPMS/APMS and PCTMS,Primary Care & Secondary Dental,ARCHWAY PRIMARY CARE TEAM,4238236," 62,093.90 ", -   ,LND000005537
Department of Health,NHS England,31/07/2014,GPMS/APMS and PCTMS,Primary Care & Secondary Dental,ARCHWAY SURGERY,4221429," 26,680.13 ", -   ,HT000010012
Department of Health,NHS England,31/07/2014,GPMS/APMS and PCTMS,Primary Care & Secondary Dental,ARCHWOOD MEDICAL PRACTICE,4217799," 48,791.61 ", -   ,SPT000002694
Department of Health,NHS England,31/07/2014,GPMS/APMS and PCTMS,Primary Care & Secondary Dental,ARDEN HOUSE MEDICAL PRACTICE,4219546," 38,018.46 ", -   ,DE000010538
Department of Health,NHS England,31/07/2014,GPMS/APMS and PCTMS,Primary Care & Secondary Dental,ARDEN MEDICAL CENTRE,4221864," 33,190.52 ", -   ,WA000005874
Department of Health,NHS England,31/07/2014,GPMS/APMS and PCTMS,Primary Care & Secondary Dental,ARGYLE SURGERY,4369869," 58,474.15 ", -   ,LNM000007828
Department of Health,NHS England,31/07/2014,GPMS/APMS and PCTMS,Primary Care & Secondary Dental,ARGYLL HOUSE SURGERY,4370299," 35,025.28 ", -   ,SO000017679
Department of Health,NHS England,31/07/2014,GPMS/APMS and PCTMS,Primary Care & Secondary Dental,ARLESEY MEDICAL CENTRE - SUNNY HILL CIC,4221466," 29,830.98 ", -   ,BD000006345
Department of Health,NHS England,31/07/2014,GPMS/APMS and PCTMS,Primary Care & Secondary Dental,ARMADA FAMILY PRACTICE,4219952," 112,767.64 ", -   ,BRS000009513
Department of Health,NHS England,31/07/2014,GPMS/APMS and PCTMS,Primary Care & Secondary Dental,ARNEWOOD PRACTICE,4370300," 131,913.24 ", -   ,SO000017681
Department of Health,NHS England,31/07/2014,GPMS/APMS and PCTMS,Primary Care & Secondary Dental,ARNOLD MEDICAL CENTRE,4411259," 45,701.95 ", -   ,LA000011902
Department of Health,NHS England,31/07/2014,GPMS/APMS and PCTMS,Primary Care & Secondary Dental,ARORA SC,4217745," 70,869.28 ", -   ,MAN000004321
Department of Health,NHS England,31/07/2014,GPMS/APMS and PCTMS,Primary Care & Secondary Dental,ARRIVAL PRACTICE,4280609," 49,144.24 ", -   ,MID000005393
Department of Health,NHS England,31/07/2014,GPMS/APMS and PCTMS,Primary Care & Secondary Dental,ARROW LODGE MEDICAL CENTRE,4416500," 48,182.45 ", -   ,WA000005913
Department of Health,NHS England,31/07/2014,GPMS/APMS and PCTMS,Primary Care & Secondary Dental,ARUN MEDICAL CENTRE,4238362," 82,258.96 ", -   ,TW000010566
Department of Health,NHS England,31/07/2014,GPMS/APMS and PCTMS,Primary Care & Secondary Dental,ARUNDEL SURGERY,4370441," 48,909.16 ", -   ,TW000010923
Department of Health,NHS England,31/07/2014,GPMS/APMS and PCTMS,Primary Care & Secondary Dental,AS GILL & P CHEEMA,4369715," 40,489.72 ", -   ,WAL000003512
Department of Health,NHS England,31/07/2014,GPMS/APMS and PCTMS,Primary Care & Secondary Dental,AS JAWAD,4353584," 42,434.10 ", -   ,LNC000005455
Department of Health,NHS England,31/07/2014,GPMS/APMS and PCTMS,Primary Care & Secondary Dental,ASH TREE HOUSE SURGERY,4411263," 106,299.30 ", -   ,LA000011914
Department of Health,NHS England,31/07/2014,GPMS/APMS and PCTMS,Primary Care & Secondary Dental,ASHBY TURN PRIMARY CARE PARTNERS,4412773," 112,853.19 ", -   ,KHU000007631
Department of Health,NHS England,31/07/2014,GPMS/APMS and PCTMS,Primary Care & Secondary Dental,ASHCROFT ROAD MEDICAL PRACTICE,4221468," 37,679.55 ", -   ,BD000006347
Department of Health,NHS England,31/07/2014,GPMS/APMS and PCTMS,Primary Care & Secondary Dental,ASHCROFT SURGERY,4321079," 39,508.67 ", -   ,BU000005846
Department of Health,NHS England,31/07/2014,GPMS/APMS and PCTMS,Primary Care & Secondary Dental,ASHDOWN FOREST HEALTH CENTRE,4336325," 80,988.31 ", -   ,TE000009227
Department of Health,NHS England,31/07/2014,GPMS/APMS and PCTMS,Primary Care & Secondary Dental,ASHFIELD MEDICAL CENTRE BLACKPOOL,4411264," 29,182.65 ", -   ,LA000011916
Department of Health,NHS England,31/07/2014,GPMS/APMS and PCTMS,Primary Care & Secondary Dental,ASHFIELD MEDICAL CENTRE MILTON KEYNES,4221754," 139,529.67 ", -   ,BU000005750
Department of Health,NHS England,31/07/2014,GPMS/APMS and PCTMS,Primary Care & Secondary Dental,ASHFIELDS PRIMARY CARE CENTRE,4175618," 110,369.60 ", -   ,CH000007922
Department of Health,NHS England,31/07/2014,GPMS/APMS and PCTMS,Primary Care & Secondary Dental,ASHFIELDS PRIMARY CARE CENTRE,4337035,"-97,206.44 ", -   ,CH000008162
Department of Health,NHS England,31/07/2014,GPMS/APMS and PCTMS,Primary Care & Secondary Dental,ASHFIELDS PRIMARY CARE CENTRE,4337036," 196,363.43 ", -   ,CH000008163
Department of Health,NHS England,31/07/2014,GPMS/APMS and PCTMS,Primary Care & Secondary Dental,ASHFORD A L & PARTNERS,4415032,"-123,336.54 ", -   ,EX000019767
Department of Health,NHS England,31/07/2014,GPMS/APMS and PCTMS,Primary Care & Secondary Dental,ASHFORD A L & PARTNERS,4428077," 169,213.25 ", -   ,EX000019768
Department of Health,NHS England,31/07/2014,GPMS/APMS and PCTMS,Primary Care & Secondary Dental,ASHINGDON MEDICAL CENTRE,4223806," 27,507.70 ", -   ,EX000019337
Department of Health,NHS England,31/07/2014,GPMS/APMS and PCTMS,Primary Care & Secondary Dental,ASHTON GP SERVICE,4204943," 149,923.18 ", -   ,GMK000004060
Department of Health,NHS England,31/07/2014,GPMS/APMS and PCTMS,Primary Care & Secondary Dental,ASHURST PRIMARY CARE,4411248," 32,148.35 ", -   ,LA000011878
Department of Health,NHS England,31/07/2014,GPMS/APMS and PCTMS,Primary Care & Secondary Dental,ASHWELL SURGERY,4428851," 79,360.91 ", -   ,HT000010248
Department of Health,NHS England,31/07/2014,GPMS/APMS and PCTMS,Primary Care & Secondary Dental,ASHWOOD SURGERY,4221293," 46,968.07 ", -   ,KHU000007312
Department of Health,NHS England,31/07/2014,GPMS/APMS and PCTMS,Primary Care & Secondary Dental,ASHWORTH HM,4400570," 45,144.32 ", -   ,MAN000004435
Department of Health,NHS England,31/07/2014,GPMS/APMS and PCTMS,Primary Care & Secondary Dental,ASHWORTH STREET SURGERY,4398412," 110,939.80 ", -   ,ROC000003840
Department of Health,NHS England,31/07/2014,GPMS/APMS and PCTMS,Primary Care & Secondary Dental,ASKARI & PARTNER,4335557,"-57,262.19 ", -   ,LIP000007372
Department of Health,NHS England,31/07/2014,GPMS/APMS and PCTMS,Primary Care & Secondary Dental,ASKARI & PARTNER,4349812," 66,233.86 ", -   ,LIP000007373
Department of Health,NHS England,31/07/2014,GPMS/APMS and PCTMS,Primary Care & Secondary Dental,ASKEY & PARTNERS,4369712," 85,799.17 ", -   ,WAL000003506
Department of Health,NHS England,31/07/2014,GPMS/APMS and PCTMS,Primary Care & Secondary Dental,ASPATRIA MEDICAL GROUP,4243779," 64,014.54 ", -   ,CU000005653
Department of Health,NHS England,31/07/2014,GPMS/APMS and PCTMS,Primary Care & Secondary Dental,ASPLANDS MEDICAL CENTRE,4221464," 98,018.96 ", -   ,BD000006343
Department of Health,NHS England,31/07/2014,GPMS/APMS and PCTMS,Primary Care & Secondary Dental,ASPLEY MEDICAL CENTRE,4219608," 72,923.78 ", -   ,NN000011277
Department of Health,NHS England,31/07/2014,GPMS/APMS and PCTMS,Primary Care & Secondary Dental,ASPULL SURGERY,4217741," 47,932.04 ", -   ,WIG000007056
Department of Health,NHS England,31/07/2014,GPMS/APMS and PCTMS,Primary Care & Secondary Dental,ASPULL SURGERY,4293436," 25,666.22 ", -   ,WIG000007262
Department of Health,NHS England,31/07/2014,GPMS/APMS and PCTMS,Primary Care & Secondary Dental,ASQUITH SURGERY,4153634," 30,364.46 ", -   ,LD000009819
Department of Health,NHS England,31/07/2014,GPMS/APMS and PCTMS,Primary Care & Secondary Dental,ASTLEY & LEVICK,4222893,"-44,547.98 ", -   ,DR000005791
Department of Health,NHS England,31/07/2014,GPMS/APMS and PCTMS,Primary Care & Secondary Dental,ASTLEY & LEVICK,4222894," 95,539.35 ", -   ,DR000005792
Department of Health,NHS England,31/07/2014,GPMS/APMS and PCTMS,Primary Care & Secondary Dental,ASTLEY & LEVICK,4399519," 29,961.55 ", -   ,DR000006047
Department of Health,NHS England,31/07/2014,GPMS/APMS and PCTMS,Primary Care & Secondary Dental,ASTON HEALTHCARE LTD,4154130," 167,093.69 ", -   ,STL000005957
Department of Health,NHS England,31/07/2014,GPMS/APMS and PCTMS,Primary Care & Secondary Dental,ASTON HEALTHCARE LTD,4336590,"-548,002.36 ", -   ,STL000006204
Department of Health,NHS England,31/07/2014,GPMS/APMS and PCTMS,Primary Care & Secondary Dental,ASTON HEALTHCARE LTD,4349960," 692,281.48 ", -   ,STL000006205
Department of Health,NHS England,31/07/2014,GPMS/APMS and PCTMS,Primary Care & Secondary Dental,AT ACE AT APMS PRACTICE,4238281," 232,460.89 ", -   ,EX000019333
Department of Health,NHS England,31/07/2014,GPMS/APMS and PCTMS,Primary Care & Secondary Dental,AT MEDICS LTD BARLBY ROAD,4238401," 84,724.49 ", -   ,LNJ000004959
Department of Health,NHS England,31/07/2014,GPMS/APMS and PCTMS,Primary Care & Secondary Dental,AT MEDICS LTD MERRIAM AVENUE,4237616," 44,319.57 ", -   ,LNA000007638
Department of Health,NHS England,31/07/2014,GPMS/APMS and PCTMS,Primary Care & Secondary Dental,ATHENA MEDICAL CENTRE,4369397," 45,568.96 ", -   ,LNA000007812
Department of Health,NHS England,31/07/2014,GPMS/APMS and PCTMS,Primary Care & Secondary Dental,ATHERLEY HOUSE SURGERY,4370295," 45,672.58 ", -   ,SO000017671
Department of Health,NHS England,31/07/2014,GPMS/APMS and PCTMS,Primary Care & Secondary Dental,ATRIUM HEALTH CENTRE,4222074," 78,543.69 ", -   ,DO000007789
Department of Health,NHS England,31/07/2014,GPMS/APMS and PCTMS,Primary Care & Secondary Dental,ATTENBOROUGH SURGERY,4428852," 145,719.94 ", -   ,HT000010252
Department of Health,NHS England,31/07/2014,GPMS/APMS and PCTMS,Primary Care & Secondary Dental,AUCKLAND MEDICAL GROUP,4399521," 127,621.98 ", -   ,DR000006049
Department of Health,NHS England,31/07/2014,GPMS/APMS and PCTMS,Primary Care & Secondary Dental,AUCKLAND SURGERY,4238442," 65,270.28 ", -   ,LNR000005121
Department of Health,NHS England,31/07/2014,GPMS/APMS and PCTMS,Primary Care & Secondary Dental,AUDLEM MEDICAL PRACTICE,4175615," 26,212.47 ", -   ,CH000007919
Department of Health,NHS England,31/07/2014,GPMS/APMS and PCTMS,Primary Care & Secondary Dental,AUDLEM MEDICAL PRACTICE,4337030," 42,399.68 ", -   ,CH000008157
Department of Health,NHS England,31/07/2014,GPMS/APMS and PCTMS,Primary Care & Secondary Dental,AUGHTON SURGERY,4411253," 43,836.57 ", -   ,LA000011890
Department of Health,NHS England,31/07/2014,GPMS/APMS and PCTMS,Primary Care & Secondary Dental,AVENUE HOUSE SURGERY,4219569," 133,921.71 ", -   ,DE000010550
Department of Health,NHS England,31/07/2014,GPMS/APMS and PCTMS,Primary Care & Secondary Dental,AVENUE MEDICAL CENTRE DENESIDE SEAHAM,4399523," 51,862.76 ", -   ,DR000006051
Department of Health,NHS England,31/07/2014,GPMS/APMS and PCTMS,Primary Care & Secondary Dental,AVENUE MEDICAL CENTRE SHEFFIELD,4223292,"-56,746.40 ", -   ,SHE000004862
Department of Health,NHS England,31/07/2014,GPMS/APMS and PCTMS,Primary Care & Secondary Dental,AVENUE MEDICAL CENTRE SHEFFIELD,4223293," 121,101.34 ", -   ,SHE000004863
Department of Health,NHS England,31/07/2014,GPMS/APMS and PCTMS,Primary Care & Secondary Dental,AVENUE MEDICAL CENTRE SLOUGH,4237725," 74,233.99 ", -   ,BE000007568
Department of Health,NHS England,31/07/2014,GPMS/APMS and PCTMS,Primary Care & Secondary Dental,AVENUE MEDICAL PRACTICE,4428443," 31,944.88 ", -   ,NEW000004174
Department of Health,NHS England,31/07/2014,GPMS/APMS and PCTMS,Primary Care & Secondary Dental,AVENUES MEDICAL CENTRE,4412771," 44,884.62 ", -   ,KHU000007629
Department of Health,NHS England,31/07/2014,GPMS/APMS and PCTMS,Primary Care & Secondary Dental,AVICENNA HEALTH CENTRE,4238140," 40,047.82 ", -   ,LNS000010554
Department of Health,NHS England,31/07/2014,GPMS/APMS and PCTMS,Primary Care & Secondary Dental,AVISFORD MEDICAL GROUP,4238361," 113,205.08 ", -   ,TW000010564
Department of Health,NHS England,31/07/2014,GPMS/APMS and PCTMS,Primary Care & Secondary Dental,AVONSIDE HEALTH CENTRE,4428506," 90,044.73 ", -   ,WA000005907
Department of Health,NHS England,31/07/2014,GPMS/APMS and PCTMS,Primary Care & Secondary Dental,AW SURGERIES,4369548," 166,660.20 ", -   ,DUD000002258
Department of Health,NHS England,31/07/2014,GPMS/APMS and PCTMS,Primary Care & Secondary Dental,AWBURN HOUSE MEDICAL PRACTICE,4398354," 60,776.19 ", -   ,GMK000004206
Department of Health,NHS England,31/07/2014,GPMS/APMS and PCTMS,Primary Care & Secondary Dental,AYLESBURY MEDICAL CENTRE,4238141," 256,065.56 ", -   ,LNS000010556
Department of Health,NHS England,31/07/2014,GPMS/APMS and PCTMS,Primary Care & Secondary Dental,AYLESFORD MEDICAL CENTRE,4292152," 43,773.52 ", -   ,KC000019933
Department of Health,NHS England,31/07/2014,GPMS/APMS and PCTMS,Primary Care & Secondary Dental,AYLESHAM MEDICAL PRACTICE,4292336," 45,843.67 ", -   ,KC000020377
Department of Health,NHS England,31/07/2014,GPMS/APMS and PCTMS,Primary Care & Secondary Dental,B HUDSON,4238377," 86,009.77 ", -   ,LNP000008618
Department of Health,NHS England,31/07/2014,GPMS/APMS and PCTMS,Primary Care & Secondary Dental,BA PATTOO,4400578," 34,589.82 ", -   ,MAN000004443
Department of Health,NHS England,31/07/2014,GPMS/APMS and PCTMS,Primary Care & Secondary Dental,BACKWELL&NAILSEA MEDICAL GROUP,4219950," 113,391.10 ", -   ,BRS000009511
Department of Health,NHS England,31/07/2014,GPMS/APMS and PCTMS,Primary Care & Secondary Dental,BACKWELL&NAILSEA MEDICAL GROUP,4417490," 30,353.32 ", -   ,BRS000009887
Department of Health,NHS England,31/07/2014,GPMS/APMS and PCTMS,Primary Care & Secondary Dental,BACON ROAD MEDICAL CENTRE,4384033," 47,926.83 ", -   ,NF000009968
Department of Health,NHS England,31/07/2014,GPMS/APMS and PCTMS,Primary Care & Secondary Dental,BADGERSWOOD SURGERY,4370298," 104,591.90 ", -   ,SO000017677
Department of Health,NHS England,31/07/2014,GPMS/APMS and PCTMS,Primary Care & Secondary Dental,BAFFINS SURGERY,4195753,"-53,443.64 ", -   ,SO000017544
Department of Health,NHS England,31/07/2014,GPMS/APMS and PCTMS,Primary Care & Secondary Dental,BAFFINS SURGERY,4217548," 124,097.10 ", -   ,SO000017545
Department of Health,NHS England,31/07/2014,GPMS/APMS and PCTMS,Primary Care & Secondary Dental,BAGARY & BAGARY,4369626," 41,472.09 ", -   ,WOM000003255
Department of Health,NHS England,31/07/2014,GPMS/APMS and PCTMS,Primary Care & Secondary Dental,BAILEY M C & PARTNERS,4428073," 67,338.02 ", -   ,EX000019748
Department of Health,NHS England,31/07/2014,GPMS/APMS and PCTMS,Primary Care & Secondary Dental,BAINBRIDGE & PARTNERS,4349817," 43,295.27 ", -   ,LIP000007383
Department of Health,NHS England,31/07/2014,GPMS/APMS and PCTMS,Primary Care & Secondary Dental,BAIRD & PARTNERS,4153817," 44,709.93 ", -   ,LIP000007103
Department of Health,NHS England,31/07/2014,GPMS/APMS and PCTMS,Primary Care & Secondary Dental,BAIRD & PARTNERS,4335563,"-37,567.45 ", -   ,LIP000007384
Department of Health,NHS England,31/07/2014,GPMS/APMS and PCTMS,Primary Care & Secondary Dental,BAIRD & PARTNERS,4349818," 84,765.41 ", -   ,LIP000007385
Department of Health,NHS England,31/07/2014,GPMS/APMS and PCTMS,Primary Care & Secondary Dental,BAJAJ & PARTNER,4349819," 30,230.60 ", -   ,LIP000007387
Department of Health,NHS England,31/07/2014,GPMS/APMS and PCTMS,Primary Care & Secondary Dental,BAJEN J M & PARTNER,4262731," 77,398.24 ", -   ,EX000019429
Department of Health,NHS England,31/07/2014,GPMS/APMS and PCTMS,Primary Care & Secondary Dental,BAKERSFIELD MEDICAL CENTRE,4237594," 53,220.59 ", -   ,NN000011279
Department of Health,NHS England,31/07/2014,GPMS/APMS and PCTMS,Primary Care & Secondary Dental,BAKEWELL MEDICAL CENTRE,4355627," 59,148.85 ", -   ,DE000010832
Department of Health,NHS England,31/07/2014,GPMS/APMS and PCTMS,Primary Care & Secondary Dental,BAKHAT A,4400580," 63,446.81 ", -   ,MAN000004445
Department of Health,NHS England,31/07/2014,GPMS/APMS and PCTMS,Primary Care & Secondary Dental,BALAAM STREET PRACTICE,4220171," 56,447.46 ", -   ,LNA000007640
Department of Health,NHS England,31/07/2014,GPMS/APMS and PCTMS,Primary Care & Secondary Dental,BALBOROUGH MEDICAL PRACTICE,4219548," 61,168.06 ", -   ,DE000010540
Department of Health,NHS England,31/07/2014,GPMS/APMS and PCTMS,Primary Care & Secondary Dental,BALDWINS LANE SURGERY,4418180," 38,070.93 ", -   ,HT000010261
Department of Health,NHS England,31/07/2014,GPMS/APMS and PCTMS,Primary Care & Secondary Dental,BALFOUR ROAD SURGERY,4354556," 39,260.45 ", -   ,LNB000004885
Department of Health,NHS England,31/07/2014,GPMS/APMS and PCTMS,Primary Care & Secondary Dental,BALHAM PARK SURGERY,4224305," 122,775.95 ", -   ,LNP000008620
Department of Health,NHS England,31/07/2014,GPMS/APMS and PCTMS,Primary Care & Secondary Dental,BALIGA KS,4222896," 34,365.59 ", -   ,DR000005794
Department of Health,NHS England,31/07/2014,GPMS/APMS and PCTMS,Primary Care & Secondary Dental,BALL TREE SURGERY,4370440," 105,594.33 ", -   ,TW000010921
Department of Health,NHS England,31/07/2014,GPMS/APMS and PCTMS,Primary Care & Secondary Dental,BALLATER,4292115," 67,808.90 ", -   ,LNT000003773
Department of Health,NHS England,31/07/2014,GPMS/APMS and PCTMS,Primary Care & Secondary Dental,BALMORAL GARDENS,4292154," 30,199.01 ", -   ,KC000019937
Department of Health,NHS England,31/07/2014,GPMS/APMS and PCTMS,Primary Care & Secondary Dental,BALMORAL SURGERY,4292326," 79,311.81 ", -   ,KC000020356
Department of Health,NHS England,31/07/2014,GPMS/APMS and PCTMS,Primary Care & Secondary Dental,BALMORE PARK SURGERY,4237727," 168,968.29 ", -   ,BE000007572
Department of Health,NHS England,31/07/2014,GPMS/APMS and PCTMS,Primary Care & Secondary Dental,BAMPTON MEDICAL PRACTICE,4428588," 77,174.82 ", -   ,OX000006613
Department of Health,NHS England,31/07/2014,GPMS/APMS and PCTMS,Primary Care & Secondary Dental,BANBURY ROAD MEDICAL CENTRE,4428589," 53,608.23 ", -   ,OX000006615
Department of Health,NHS England,31/07/2014,GPMS/APMS and PCTMS,Primary Care & Secondary Dental,BANGOR STREET HEALTH CENTRE,4411260," 53,874.24 ", -   ,LA000011904
Department of Health,NHS England,31/07/2014,GPMS/APMS and PCTMS,Primary Care & Secondary Dental,BANK HOUSE SURGERY HARTLEPOOL,4280611," 77,761.28 ", -   ,MID000005395
Department of Health,NHS England,31/07/2014,GPMS/APMS and PCTMS,Primary Care & Secondary Dental,BANKS SURGERY,4428240," 43,237.36 ", -   ,LD000009939
Department of Health,NHS England,31/07/2014,GPMS/APMS and PCTMS,Primary Care & Secondary Dental,BANNOCKBURN SURGERY,4238322," 44,424.72 ", -   ,LNW000003906
Department of Health,NHS England,31/07/2014,GPMS/APMS and PCTMS,Primary Care & Secondary Dental,BANSAL & READE,4349961," 45,403.04 ", -   ,STL000006207
Department of Health,NHS England,31/07/2014,GPMS/APMS and PCTMS,Primary Care & Secondary Dental,BANSAL A & PARTNER,4415012," 51,293.04 ", -   ,EX000019756
Department of Health,NHS England,31/07/2014,GPMS/APMS and PCTMS,Primary Care & Secondary Dental,BARGATE MEDICAL CENTRE,4217550," 58,615.39 ", -   ,SO000017549
Department of Health,NHS England,31/07/2014,GPMS/APMS and PCTMS,Primary Care & Secondary Dental,BARING ROAD MEDICAL CENTRE,4223406," 72,058.69 ", -   ,LNS000010560
Department of Health,NHS England,31/07/2014,GPMS/APMS and PCTMS,Primary Care & Secondary Dental,BARKANTINE PRACTICE,4237617," 227,803.60 ", -   ,LNA000007642
Department of Health,NHS England,31/07/2014,GPMS/APMS and PCTMS,Primary Care & Secondary Dental,BARKANTINE PRACTICE,4368587," 66,804.00 ", -   ,WIC044
Department of Health,NHS England,31/07/2014,GPMS/APMS and PCTMS,Primary Care & Secondary Dental,BARKHAM J D T & PARTNER,4415018," 51,579.33 ", -   ,EX000019758
Department of Health,NHS England,31/07/2014,GPMS/APMS and PCTMS,Primary Care & Secondary Dental,BARKINGSIDE MEDICAL CENTRE,4222814," 46,423.25 ", -   ,LNB000004805
Department of Health,NHS England,31/07/2014,GPMS/APMS and PCTMS,Primary Care & Secondary Dental,BARMSTON MEDICAL CENTRE,4221216," 58,552.76 ", -   ,SUN000002981
Department of Health,NHS England,31/07/2014,GPMS/APMS and PCTMS,Primary Care & Secondary Dental,BARN SURGERY,4238028," 59,636.44 ", -   ,DO000007797
Department of Health,NHS England,31/07/2014,GPMS/APMS and PCTMS,Primary Care & Secondary Dental,BARN SURGERY,4370443," 29,269.35 ", -   ,TW000010927
Department of Health,NHS England,31/07/2014,GPMS/APMS and PCTMS,Primary Care & Secondary Dental,BARNARD CASTLE SURGERY,4222897,"-88,259.14 ", -   ,DR000005795
Department of Health,NHS England,31/07/2014,GPMS/APMS and PCTMS,Primary Care & Secondary Dental,BARNARD CASTLE SURGERY,4222898," 186,181.78 ", -   ,DR000005796
Department of Health,NHS England,31/07/2014,GPMS/APMS and PCTMS,Primary Care & Secondary Dental,BARNARD PRACTICE,4238323," 173,243.99 ", -   ,LNW000003908
Department of Health,NHS England,31/07/2014,GPMS/APMS and PCTMS,Primary Care & Secondary Dental,BARNETBY MEDICAL CENTRE,4412934," 41,609.78 ", -   ,KHU000007820
Department of Health,NHS England,31/07/2014,GPMS/APMS and PCTMS,Primary Care & Secondary Dental,BARNETT & PARTNERS,4349821," 40,534.56 ", -   ,LIP000007393
Department of Health,NHS England,31/07/2014,GPMS/APMS and PCTMS,Primary Care & Secondary Dental,BARNOLDSWICK MEDICAL CENTRE,4399938," 87,663.58 ", -   ,LA000011910
Department of Health,NHS England,31/07/2014,GPMS/APMS and PCTMS,Primary Care & Secondary Dental,BARNSLEY ROAD SURGERY,4238120," 27,329.51 ", -   ,SHE000004867
Department of Health,NHS England,31/07/2014,GPMS/APMS and PCTMS,Primary Care & Secondary Dental,BARNT GREEN SURGERY,4237999," 75,712.12 ", -   ,WR000007032
Department of Health,NHS England,31/07/2014,GPMS/APMS and PCTMS,Primary Care & Secondary Dental,BARR LANE SURGERY,4416502," 57,831.31 ", -   ,WA000005915
Department of Health,NHS England,31/07/2014,GPMS/APMS and PCTMS,Primary Care & Secondary Dental,BARRACK LANE MEDICAL CENTRE,4181620," 131,237.17 ", -   ,SU000007320
Department of Health,NHS England,31/07/2014,GPMS/APMS and PCTMS,Primary Care & Secondary Dental,BARRETT CHATTERJEE DAY & PARTNERS,4237588," 166,729.19 ", -   ,DE000010476
Department of Health,NHS England,31/07/2014,GPMS/APMS and PCTMS,Primary Care & Secondary Dental,BARROWFORD SURGERY,4411262," 36,393.89 ", -   ,LA000011912
Department of Health,NHS England,31/07/2014,GPMS/APMS and PCTMS,Primary Care & Secondary Dental,BARTLEMAS SURGERY,4428590," 68,836.11 ", -   ,OX000006617
Department of Health,NHS England,31/07/2014,GPMS/APMS and PCTMS,Primary Care & Secondary Dental,BARTON HOUSE GROUP PRACTICE,4369400," 101,680.60 ", -   ,LNA000007822
Department of Health,NHS England,31/07/2014,GPMS/APMS and PCTMS,Primary Care & Secondary Dental,BARTON HOUSE SURGERY,4369461," 75,006.91 ", -   ,DO000008011
Department of Health,NHS England,31/07/2014,GPMS/APMS and PCTMS,Primary Care & Secondary Dental,BARTON WEBB PEPLOE PARTNERSHIP,4370302," 124,863.41 ", -   ,SO000017685
Department of Health,NHS England,31/07/2014,GPMS/APMS and PCTMS,Primary Care & Secondary Dental,BARUCH & PARTNERS,4357491," 59,648.99 ", -   ,LNN000005137
Department of Health,NHS England,31/07/2014,GPMS/APMS and PCTMS,Primary Care & Secondary Dental,BASLOW HEALTH CENTRE,4355629," 49,016.09 ", -   ,DE000010834
Department of Health,NHS England,31/07/2014,GPMS/APMS and PCTMS,Primary Care & Secondary Dental,BASLOW ROAD & SHOREHAM STREET SURGERIES,4413252," 107,176.69 ", -   ,SHE000005047
Department of Health,NHS England,31/07/2014,GPMS/APMS and PCTMS,Primary Care & Secondary Dental,BASSETT ROAD MEDICAL PRACTICE,4418472," 123,150.53 ", -   ,BD000006536
Department of Health,NHS England,31/07/2014,GPMS/APMS and PCTMS,Primary Care & Secondary Dental,BATES & PARTNERS RICHMOND,4132937," 38,839.76 ", -   ,LNN000004960
Department of Health,NHS England,31/07/2014,GPMS/APMS and PCTMS,Primary Care & Secondary Dental,BATES & PARTNERS RICHMOND,4357493," 82,220.95 ", -   ,LNN000005139
Department of Health,NHS England,31/07/2014,GPMS/APMS and PCTMS,Primary Care & Secondary Dental,BATES & PARTNERS WIRRAL,4154300," 36,896.30 ", -   ,BIK000003488
Department of Health,NHS England,31/07/2014,GPMS/APMS and PCTMS,Primary Care & Secondary Dental,BATES & PARTNERS WIRRAL,4336600,"-31,598.53 ", -   ,BIK000003647
Department of Health,NHS England,31/07/2014,GPMS/APMS and PCTMS,Primary Care & Secondary Dental,BATES & PARTNERS WIRRAL,4336602," 69,493.16 ", -   ,BIK000003648
Department of Health,NHS England,31/07/2014,GPMS/APMS and PCTMS,Primary Care & Secondary Dental,BATESON & PARTNERS,4153827," 36,737.15 ", -   ,LIP000007113
Department of Health,NHS England,31/07/2014,GPMS/APMS and PCTMS,Primary Care & Secondary Dental,BATESON & PARTNERS,4335569,"-31,257.90 ", -   ,LIP000007394
Department of Health,NHS England,31/07/2014,GPMS/APMS and PCTMS,Primary Care & Secondary Dental,BATESON & PARTNERS,4349822," 64,987.45 ", -   ,LIP000007395
Department of Health,NHS England,31/07/2014,GPMS/APMS and PCTMS,Primary Care & Secondary Dental,BATH LODGE PRACTICE,4370303," 102,280.33 ", -   ,SO000017687
Department of Health,NHS England,31/07/2014,GPMS/APMS and PCTMS,Primary Care & Secondary Dental,BATH ROAD SURGERY SLOUGH,4369791," 38,039.36 ", -   ,BE000007662
Department of Health,NHS England,31/07/2014,GPMS/APMS and PCTMS,Primary Care & Secondary Dental,BATH STREET SURGERY,4369549," 25,799.84 ", -   ,DUD000002260
Department of Health,NHS England,31/07/2014,GPMS/APMS and PCTMS,Primary Care & Secondary Dental,BATHEASTON MEDICAL CENTRE,4219956," 78,828.83 ", -   ,BRS000009517
Department of Health,NHS England,31/07/2014,GPMS/APMS and PCTMS,Primary Care & Secondary Dental,BATTLEHILL HEALTH CENTRE,4220253," 114,039.13 ", -   ,NEW000004011
Department of Health,NHS England,31/07/2014,GPMS/APMS and PCTMS,Primary Care & Secondary Dental,BAYLIS T M & PARTNERS,4428070," 46,219.84 ", -   ,EX000019738
Department of Health,NHS England,31/07/2014,GPMS/APMS and PCTMS,Primary Care & Secondary Dental,BAYSWATER MEDICAL CENTRE,4238400," 71,694.29 ", -   ,LNJ000004957
Department of Health,NHS England,31/07/2014,GPMS/APMS and PCTMS,Primary Care & Secondary Dental,BEACON MEDICAL,4221295," 150,321.95 ", -   ,KHU000007314
Department of Health,NHS England,31/07/2014,GPMS/APMS and PCTMS,Primary Care & Secondary Dental,BEACON SURGERY,4292477," 116,902.32 ", -   ,TE000009073
Department of Health,NHS England,31/07/2014,GPMS/APMS and PCTMS,Primary Care & Secondary Dental,BEARSTED MEDICAL PRACTICE,4292149," 74,996.49 ", -   ,KC000019927
Department of Health,NHS England,31/07/2014,GPMS/APMS and PCTMS,Primary Care & Secondary Dental,BEARWOOD MEDICAL CENTRE,4222071," 71,046.37 ", -   ,DO000007785
Department of Health,NHS England,31/07/2014,GPMS/APMS and PCTMS,Primary Care & Secondary Dental,BEAUFORT ROAD SURGERY,4369458," 88,577.87 ", -   ,DO000007999
Department of Health,NHS England,31/07/2014,GPMS/APMS and PCTMS,Primary Care & Secondary Dental,BEAUMONT LEYS HEALTH CENTRE,4153632," 47,428.70 ", -   ,LD000009817
Department of Health,NHS England,31/07/2014,GPMS/APMS and PCTMS,Primary Care & Secondary Dental,BEAUMONT STREET SURGERY,4428585," 41,891.83 ", -   ,OX000006607
Department of Health,NHS England,31/07/2014,GPMS/APMS and PCTMS,Primary Care & Secondary Dental,BECCLES MEDICAL CENTRE,4201668," 171,377.58 ", -   ,NF000009391
Department of Health,NHS England,31/07/2014,GPMS/APMS and PCTMS,Primary Care & Secondary Dental,BECKETT HOUSE PRACTICE,4238135," 61,709.72 ", -   ,LNS000010542
Department of Health,NHS England,31/07/2014,GPMS/APMS and PCTMS,Primary Care & Secondary Dental,BECKINGTON FAMILY PRACTICE,4414521," 123,269.58 ", -   ,SM000004634
Department of Health,NHS England,31/07/2014,GPMS/APMS and PCTMS,Primary Care & Secondary Dental,BEDFORD HOUSE MEDICAL CENTRE,4398353," 61,572.44 ", -   ,GMK000004204
Department of Health,NHS England,31/07/2014,GPMS/APMS and PCTMS,Primary Care & Secondary Dental,BEDFORD SQUARE MEDICAL CENTRE,4428723," 37,461.33 ", -   ,LND000005687
Department of Health,NHS England,31/07/2014,GPMS/APMS and PCTMS,Primary Care & Secondary Dental,BEDFORD STREET SURGERY,4221752," 95,162.88 ", -   ,BU000005746
Department of Health,NHS England,31/07/2014,GPMS/APMS and PCTMS,Primary Care & Secondary Dental,BEDFORDSHIRE AND HERTFORDSHIRE LMC LTD (STAT LEVY),4427552," 57,622.00 ", -   ,189520-24-JUL-2014
Department of Health,NHS England,31/07/2014,GPMS/APMS and PCTMS,Primary Care & Secondary Dental,BEDLINGTONSHIRE MEDICAL GROUP,4219764," 94,596.87 ", -   ,NR000003605
Department of Health,NHS England,31/07/2014,GPMS/APMS and PCTMS,Primary Care & Secondary Dental,BEDLINGTONSHIRE MEDICAL GROUP,4428650," 59,258.30 ", -   ,NR000003770
Department of Health,NHS England,31/07/2014,GPMS/APMS and PCTMS,Primary Care & Secondary Dental,BEDMINSTER FAMILY PRACTICE,4219944," 110,793.09 ", -   ,BRS000009505
Department of Health,NHS England,31/07/2014,GPMS/APMS and PCTMS,Primary Care & Secondary Dental,BEDWELL MEDICAL CENTRE,4418171," 117,743.19 ", -   ,HT000010250
Department of Health,NHS England,31/07/2014,GPMS/APMS and PCTMS,Primary Care & Secondary Dental,BEECH GROVE MEDICAL PRACTICE,4417705," 29,892.20 ", -   ,YN000007513
Department of Health,NHS England,31/07/2014,GPMS/APMS and PCTMS,Primary Care & Secondary Dental,BEECH GROVE SURGERY,4370291," 56,835.76 ", -   ,SO000017663
Department of Health,NHS England,31/07/2014,GPMS/APMS and PCTMS,Primary Care & Secondary Dental,BEECH HILL MEDICAL CENTRE,4217686," 115,066.68 ", -   ,WIG000006942
Department of Health,NHS England,31/07/2014,GPMS/APMS and PCTMS,Primary Care & Secondary Dental,BEECH HOUSE MEDICAL PRACTICE,4217797," 73,345.26 ", -   ,SPT000002690
Department of Health,NHS England,31/07/2014,GPMS/APMS and PCTMS,Primary Care & Secondary Dental,BEECH HOUSE SURGERY,4417707," 64,883.07 ", -   ,YN000007515
Department of Health,NHS England,31/07/2014,GPMS/APMS and PCTMS,Primary Care & Secondary Dental,BEECH TREE SURGERY,4417709," 135,176.29 ", -   ,YN000007517
Department of Health,NHS England,31/07/2014,GPMS/APMS and PCTMS,Primary Care & Secondary Dental,BEECHCROFT SURGERY,4201670," 43,154.01 ", -   ,NF000009393
Department of Health,NHS England,31/07/2014,GPMS/APMS and PCTMS,Primary Care & Secondary Dental,BEECHDALE SURGERY,4219606," 39,467.34 ", -   ,NN000011275
Department of Health,NHS England,31/07/2014,GPMS/APMS and PCTMS,Primary Care & Secondary Dental,BEECHES MEDICAL PRACTICE,4356449," 55,082.65 ", -   ,SA000006191
Department of Health,NHS England,31/07/2014,GPMS/APMS and PCTMS,Primary Care & Secondary Dental,BEECHWOOD GROUP PRACTICE,4243781," 68,442.87 ", -   ,CU000005655
Department of Health,NHS England,31/07/2014,GPMS/APMS and PCTMS,Primary Care & Secondary Dental,BEECHWOOD MEDICAL CENTRE,4352635," 27,266.26 ", -   ,LNA000007807
Department of Health,NHS England,31/07/2014,GPMS/APMS and PCTMS,Primary Care & Secondary Dental,BEECHWOOD MEDICAL PRACTICE,4417487," 79,146.61 ", -   ,BRS000009884
Department of Health,NHS England,31/07/2014,GPMS/APMS and PCTMS,Primary Care & Secondary Dental,BEGGARWOOD SURGERY (THE),4195752,"-28,887.51 ", -   ,SO000017542
Department of Health,NHS England,31/07/2014,GPMS/APMS and PCTMS,Primary Care & Secondary Dental,BEGGARWOOD SURGERY (THE),4217547," 94,558.83 ", -   ,SO000017543
Department of Health,NHS England,31/07/2014,GPMS/APMS and PCTMS,Primary Care & Secondary Dental,BEHESHTI & PARTNERS,4353580," 39,368.98 ", -   ,LNC000005450
Department of Health,NHS England,31/07/2014,GPMS/APMS and PCTMS,Primary Care & Secondary Dental,BELFORD MEDICAL PRACTICE,4219766," 53,713.58 ", -   ,NR000003607
Department of Health,NHS England,31/07/2014,GPMS/APMS and PCTMS,Primary Care & Secondary Dental,BELGRAVE SURGERY,4417711," 48,107.76 ", -   ,YN000007519
Department of Health,NHS England,31/07/2014,GPMS/APMS and PCTMS,Primary Care & Secondary Dental,BELGRAVIA SURGERY,4308622,"-136,363.40 ", -   ,LNJ000005084
Department of Health,NHS England,31/07/2014,GPMS/APMS and PCTMS,Primary Care & Secondary Dental,BELGRAVIA SURGERY,4321142," 134,343.17 ", -   ,LNJ000005085
Department of Health,NHS England,31/07/2014,GPMS/APMS and PCTMS,Primary Care & Secondary Dental,BELL HOUSE MEDICAL PRACTICE,4418469," 83,447.79 ", -   ,BD000006532
Department of Health,NHS England,31/07/2014,GPMS/APMS and PCTMS,Primary Care & Secondary Dental,BELL SURGERY,4428586," 98,513.91 ", -   ,OX000006609
Department of Health,NHS England,31/07/2014,GPMS/APMS and PCTMS,Primary Care & Secondary Dental,BELLEGROVE ROAD SURGERY,4238318," 81,382.25 ", -   ,LNW000003900
Department of Health,NHS England,31/07/2014,GPMS/APMS and PCTMS,Primary Care & Secondary Dental,BELLINGHAM GREEN SURGERY,4223397," 61,766.02 ", -   ,LNS000010544
Department of Health,NHS England,31/07/2014,GPMS/APMS and PCTMS,Primary Care & Secondary Dental,BELLINGHAM J M & PARTNERS,4414995,"-59,961.23 ", -   ,EX000019739
Department of Health,NHS England,31/07/2014,GPMS/APMS and PCTMS,Primary Care & Secondary Dental,BELLINGHAM J M & PARTNERS,4428071," 86,639.08 ", -   ,EX000019740
Department of Health,NHS England,31/07/2014,GPMS/APMS and PCTMS,Primary Care & Secondary Dental,BELLINGHAM MEDICAL GROUP,4219768," 35,848.88 ", -   ,NR000003609
Department of Health,NHS England,31/07/2014,GPMS/APMS and PCTMS,Primary Care & Secondary Dental,BELLWORTHY S V,4414997," 25,479.27 ", -   ,EX000019742
Department of Health,NHS England,31/07/2014,GPMS/APMS and PCTMS,Primary Care & Secondary Dental,BELMONT & SHERBURN MEDICAL GROUP,4399518," 70,618.44 ", -   ,DR000006046
Department of Health,NHS England,31/07/2014,GPMS/APMS and PCTMS,Primary Care & Secondary Dental,BELMONT HILL SURGERY,4238136," 57,053.75 ", -   ,LNS000010546
Department of Health,NHS England,31/07/2014,GPMS/APMS and PCTMS,Primary Care & Secondary Dental,BELMONT MEDICAL CENTRE,4335325," 80,627.30 ", -   ,LNK000002337
Department of Health,NHS England,31/07/2014,GPMS/APMS and PCTMS,Primary Care & Secondary Dental,BELSIZE PRIORY MEDICAL PRACTICE,4428724," 40,305.08 ", -   ,LND000005689
Department of Health,NHS England,31/07/2014,GPMS/APMS and PCTMS,Primary Care & Secondary Dental,BELVEDERE MEDICAL CENTRE,4238319," 61,579.26 ", -   ,LNW000003902
Department of Health,NHS England,31/07/2014,GPMS/APMS and PCTMS,Primary Care & Secondary Dental,BELVIDERE MEDICAL PRACTICE,4356451," 40,715.76 ", -   ,SA000006193
Department of Health,NHS England,31/07/2014,GPMS/APMS and PCTMS,Primary Care & Secondary Dental,BENFIELD PARK MEDICAL GROUP,4428442," 156,159.97 ", -   ,NEW000004172
Department of Health,NHS England,31/07/2014,GPMS/APMS and PCTMS,Primary Care & Secondary Dental,BENNETTS END SURGERY,4221427," 136,359.85 ", -   ,HT000010010
Department of Health,NHS England,31/07/2014,GPMS/APMS and PCTMS,Primary Care & Secondary Dental,BENNFIELD SURGERY,4416493," 75,425.43 ", -   ,WA000005905
Department of Health,NHS England,31/07/2014,GPMS/APMS and PCTMS,Primary Care & Secondary Dental,BENTHAM MEDICAL PRACTICE,4428709," 78,131.37 ", -   ,YN000007521
Department of Health,NHS England,31/07/2014,GPMS/APMS and PCTMS,Primary Care & Secondary Dental,BENTHAM ROAD HEALTH CENTRE,4411251," 87,327.70 ", -   ,LA000011886
Department of Health,NHS England,31/07/2014,GPMS/APMS and PCTMS,Primary Care & Secondary Dental,BENTLEY MEDICAL PRACTICE,4280605,"-45,009.44 ", -   ,MID000005388
Department of Health,NHS England,31/07/2014,GPMS/APMS and PCTMS,Primary Care & Secondary Dental,BENTLEY MEDICAL PRACTICE,4292077," 185,947.04 ", -   ,MID000005389
Department of Health,NHS England,31/07/2014,GPMS/APMS and PCTMS,Primary Care & Secondary Dental,BENTLEY VILLAGE SURGERY,4370294," 41,480.07 ", -   ,SO000017669
Department of Health,NHS England,31/07/2014,GPMS/APMS and PCTMS,Primary Care & Secondary Dental,BENTS GREEN SURGERY,4223291," 35,767.86 ", -   ,SHE000004861
Department of Health,NHS England,31/07/2014,GPMS/APMS and PCTMS,Primary Care & Secondary Dental,BERE REGIS PRACTICE,4369459," 41,477.85 ", -   ,DO000008002
Department of Health,NHS England,31/07/2014,GPMS/APMS and PCTMS,Primary Care & Secondary Dental,BERKSHIRE HEALTHCARE NHS FOUNDATION TRUST,4304031," 144,751.00 ", -   ,900348
Department of Health,NHS England,31/07/2014,GPMS/APMS and PCTMS,Primary Care & Secondary Dental,BERKSHIRE HEALTHCARE NHS FOUNDATION TRUST,4382733," 144,751.00 ", -   ,900960
Department of Health,NHS England,31/07/2014,GPMS/APMS and PCTMS,Primary Care & Secondary Dental,BERMONDSEY & LANSDOWNE MEDICAL MISSION,4238137," 191,677.35 ", -   ,LNS000010548
Department of Health,NHS England,31/07/2014,GPMS/APMS and PCTMS,Primary Care & Secondary Dental,BERMONDSEY SPA MEDICAL CENTRE,4238139," 66,779.08 ", -   ,LNS000010550
Department of Health,NHS England,31/07/2014,GPMS/APMS and PCTMS,Primary Care & Secondary Dental,BERNAYS & WHITEHOUSE LTD T/A KINGSHURST MEDICAL PRACTICE,4356584," 67,397.90 ", -   ,WMF000002004
Department of Health,NHS England,31/07/2014,GPMS/APMS and PCTMS,Primary Care & Secondary Dental,BERRY & PARTNERS,4413124," 112,685.40 ", -   ,DCR000003327
Department of Health,NHS England,31/07/2014,GPMS/APMS and PCTMS,Primary Care & Secondary Dental,BERRY LANE MEDICAL CENTRE,4411252," 99,723.14 ", -   ,LA000011888
Department of Health,NHS England,31/07/2014,GPMS/APMS and PCTMS,Primary Care & Secondary Dental,BERRYFIELDS MEDICAL CENTRE,4237772," 48,928.53 ", -   ,BU000005748
Department of Health,NHS England,31/07/2014,GPMS/APMS and PCTMS,Primary Care & Secondary Dental,BERSTED GREEN SURGERY,4370439," 80,386.57 ", -   ,TW000010919
Department of Health,NHS England,31/07/2014,GPMS/APMS and PCTMS,Primary Care & Secondary Dental,BEST M & PARTNER,4414998,"-127,546.84 ", -   ,EX000019743
Department of Health,NHS England,31/07/2014,GPMS/APMS and PCTMS,Primary Care & Secondary Dental,BEST M & PARTNER,4428072," 180,780.91 ", -   ,EX000019744
Department of Health,NHS England,31/07/2014,GPMS/APMS and PCTMS,Primary Care & Secondary Dental,BETHESDA MEDICAL CENTRE,4435336," 143,692.26 ", -   ,KC000020963
Department of Health,NHS England,31/07/2014,GPMS/APMS and PCTMS,Primary Care & Secondary Dental,BETHNAL GREEN HEALTH CENTRE,4369395," 75,365.37 ", -   ,LNA000007809
Department of Health,NHS England,31/07/2014,GPMS/APMS and PCTMS,Primary Care & Secondary Dental,BEVAN,4349963," 39,807.60 ", -   ,STL000006211
Department of Health,NHS England,31/07/2014,GPMS/APMS and PCTMS,Primary Care & Secondary Dental,BEVAN HEALTHCARE CIC,4237790," 96,129.66 ", -   ,BRA000005059
Department of Health,NHS England,31/07/2014,GPMS/APMS and PCTMS,Primary Care & Secondary Dental,BEVERSBROOK MEDICAL CENTRE,4271299," 58,462.26 ", -   ,WL000007030
Department of Health,NHS England,31/07/2014,GPMS/APMS and PCTMS,Primary Care & Secondary Dental,BEWBUSH MEDICAL CENTRE,4370444," 47,047.47 ", -   ,TW000010929
Department of Health,NHS England,31/07/2014,GPMS/APMS and PCTMS,Primary Care & Secondary Dental,BEWDLEY MEDICAL CENTRE,4238000," 176,157.02 ", -   ,WR000007034
Department of Health,NHS England,31/07/2014,GPMS/APMS and PCTMS,Primary Care & Secondary Dental,BEWICK CRESCENT SURGERY,4223007,"-110,367.24 ", -   ,DR000005909
Department of Health,NHS England,31/07/2014,GPMS/APMS and PCTMS,Primary Care & Secondary Dental,BEWICK CRESCENT SURGERY,4238103," 239,241.00 ", -   ,DR000005910
Department of Health,NHS England,31/07/2014,GPMS/APMS and PCTMS,Primary Care & Secondary Dental,BEXLEY GROUP PRACTICE,4224072," 87,919.74 ", -   ,LNW000003912
Department of Health,NHS England,31/07/2014,GPMS/APMS and PCTMS,Primary Care & Secondary Dental,BEXLEY MEDICAL GROUP,4238325," 148,172.32 ", -   ,LNW000003914
Department of Health,NHS England,31/07/2014,GPMS/APMS and PCTMS,Primary Care & Secondary Dental,BHARANI MEDICAL CENTRE,4237730," 157,888.72 ", -   ,BE000007578
Department of Health,NHS England,31/07/2014,GPMS/APMS and PCTMS,Primary Care & Secondary Dental,BHATTACHARJEE S & PARTNER,4415035,"-68,130.84 ", -   ,EX000019771
Department of Health,NHS England,31/07/2014,GPMS/APMS and PCTMS,Primary Care & Secondary Dental,BHATTACHARJEE S & PARTNER,4428078," 107,365.79 ", -   ,EX000019772
Department of Health,NHS England,31/07/2014,GPMS/APMS and PCTMS,Primary Care & Secondary Dental,BIDFORD ON AVON HEALTH CENTRE,4237966," 183,297.53 ", -   ,WA000005878
Department of Health,NHS England,31/07/2014,GPMS/APMS and PCTMS,Primary Care & Secondary Dental,BIDFORD ON AVON HEALTH CENTRE,4335277," 31,149.00 ", -   ,WA000005897
Department of Health,NHS England,31/07/2014,GPMS/APMS and PCTMS,Primary Care & Secondary Dental,BIDWELL & DAVIDSON,4222899,"-35,598.83 ", -   ,DR000005797
Department of Health,NHS England,31/07/2014,GPMS/APMS and PCTMS,Primary Care & Secondary Dental,BIDWELL & DAVIDSON,4222900," 68,931.17 ", -   ,DR000005798
Department of Health,NHS England,31/07/2014,GPMS/APMS and PCTMS,Primary Care & Secondary Dental,BIGGIN HILL SURGERY,4281291," 95,431.91 ", -   ,LNT000003779
Department of Health,NHS England,31/07/2014,GPMS/APMS and PCTMS,Primary Care & Secondary Dental,BILAS & THOMAS,4369628," 36,745.73 ", -   ,WOM000003259
Department of Health,NHS England,31/07/2014,GPMS/APMS and PCTMS,Primary Care & Secondary Dental,BILLET LANE MEDICAL CENTRE,4353667," 28,468.83 ", -   ,LNC000005584
Department of Health,NHS England,31/07/2014,GPMS/APMS and PCTMS,Primary Care & Secondary Dental,BILLINGSHURST SURGERY,4370445," 82,505.11 ", -   ,TW000010931
Department of Health,NHS England,31/07/2014,GPMS/APMS and PCTMS,Primary Care & Secondary Dental,BILSTON URBAN VILLAGE MEDICAL CENTRE,4353731,"-83,812.22 ", -   ,WOM000003260
Department of Health,NHS England,31/07/2014,GPMS/APMS and PCTMS,Primary Care & Secondary Dental,BILSTON URBAN VILLAGE MEDICAL CENTRE,4369629," 132,067.66 ", -   ,WOM000003261
Department of Health,NHS England,31/07/2014,GPMS/APMS and PCTMS,Primary Care & Secondary Dental,BINCOTE ROAD SURGERY,4223563," 51,163.16 ", -   ,LNE000006185
Department of Health,NHS England,31/07/2014,GPMS/APMS and PCTMS,Primary Care & Secondary Dental,BINFIELD ROAD SURGERY,4223410," 63,291.29 ", -   ,LNS000010566
Department of Health,NHS England,31/07/2014,GPMS/APMS and PCTMS,Primary Care & Secondary Dental,BINFIELD SURGERY,4237731," 110,756.98 ", -   ,BE000007580
Department of Health,NHS England,31/07/2014,GPMS/APMS and PCTMS,Primary Care & Secondary Dental,BINGFIELD PRIMARY CARE CENTRE,4428729," 39,846.19 ", -   ,LND000005701
Department of Health,NHS England,31/07/2014,GPMS/APMS and PCTMS,Primary Care & Secondary Dental,BINGFIELD STREET SURGERY,4417932," 31,520.11 ", -   ,LND000005703
Department of Health,NHS England,31/07/2014,GPMS/APMS and PCTMS,Primary Care & Secondary Dental,BINGLEY MEDICAL PRACTICE,4237792," 316,251.29 ", -   ,BRA000005061
Department of Health,NHS England,31/07/2014,GPMS/APMS and PCTMS,Primary Care & Secondary Dental,BIRBECK MEDICAL GROUP,4243789," 124,325.94 ", -   ,CU000005663
Department of Health,NHS England,31/07/2014,GPMS/APMS and PCTMS,Primary Care & Secondary Dental,BIRCHES MEDICAL CENTRE,4181622," 66,383.51 ", -   ,SU000007322
Department of Health,NHS England,31/07/2014,GPMS/APMS and PCTMS,Primary Care & Secondary Dental,BIRCHES MEDICAL CENTRE,4398413," 33,757.95 ", -   ,ROC000003842
Department of Health,NHS England,31/07/2014,GPMS/APMS and PCTMS,Primary Care & Secondary Dental,BIRCHES MEDICAL PRACTICE,4412775," 66,812.32 ", -   ,KHU000007633
Department of Health,NHS England,31/07/2014,GPMS/APMS and PCTMS,Primary Care & Secondary Dental,BIRCHINGTON MEDICAL CENTRE,4292155," 67,809.42 ", -   ,KC000019939
Department of Health,NHS England,31/07/2014,GPMS/APMS and PCTMS,Primary Care & Secondary Dental,BIRCHTREE PRACTICE,4280613,"-45,736.70 ", -   ,MID000005398
Department of Health,NHS England,31/07/2014,GPMS/APMS and PCTMS,Primary Care & Secondary Dental,BIRCHTREE PRACTICE,4292079," 88,992.40 ", -   ,MID000005399
Department of Health,NHS England,31/07/2014,GPMS/APMS and PCTMS,Primary Care & Secondary Dental,BIRCHWOOD MEDICAL CENTRE POOLE,4238029," 73,412.85 ", -   ,DO000007799
Department of Health,NHS England,31/07/2014,GPMS/APMS and PCTMS,Primary Care & Secondary Dental,BIRCHWOOD MEDICAL CENTRE WARRINGTON,4175620," 54,076.74 ", -   ,CH000007924
Department of Health,NHS England,31/07/2014,GPMS/APMS and PCTMS,Primary Care & Secondary Dental,BIRCHWOOD MEDICAL CENTRE WARRINGTON,4337039,"-48,264.46 ", -   ,CH000008166
Department of Health,NHS England,31/07/2014,GPMS/APMS and PCTMS,Primary Care & Secondary Dental,BIRCHWOOD MEDICAL CENTRE WARRINGTON,4337040," 96,195.21 ", -   ,CH000008167
Department of Health,NHS England,31/07/2014,GPMS/APMS and PCTMS,Primary Care & Secondary Dental,BIRCHWOOD MEDICAL PRACTICE BRISTOL,4417495," 42,848.43 ", -   ,BRS000009892
Department of Health,NHS England,31/07/2014,GPMS/APMS and PCTMS,Primary Care & Secondary Dental,BIRCHWOOD MEDICAL PRACTICE HORLEY,4357350," 114,203.90 ", -   ,SY000008779
Department of Health,NHS England,31/07/2014,GPMS/APMS and PCTMS,Primary Care & Secondary Dental,BIRCHWOOD MEDICAL PRACTICE HORLEY,4386525," 41,904.35 ", -   ,SY000009119
Department of Health,NHS England,31/07/2014,GPMS/APMS and PCTMS,Primary Care & Secondary Dental,BIRCHWOOD SURGERY,4418182," 132,555.24 ", -   ,HT000010263
Department of Health,NHS England,31/07/2014,GPMS/APMS and PCTMS,Primary Care & Secondary Dental,BIRD IN EYE SURGERY,4292480," 61,710.52 ", -   ,TE000009077
Department of Health,NHS England,31/07/2014,GPMS/APMS and PCTMS,Primary Care & Secondary Dental,BIRLEY HEALTH CENTRE,4223296,"-69,905.38 ", -   ,SHE000004868
Department of Health,NHS England,31/07/2014,GPMS/APMS and PCTMS,Primary Care & Secondary Dental,BIRLEY HEALTH CENTRE,4223297," 152,453.55 ", -   ,SHE000004869
Department of Health,NHS England,31/07/2014,GPMS/APMS and PCTMS,Primary Care & Secondary Dental,BISHOPGATE MEDICAL CENTRE,4222901,"-115,365.60 ", -   ,DR000005799
Department of Health,NHS England,31/07/2014,GPMS/APMS and PCTMS,Primary Care & Secondary Dental,BISHOPGATE MEDICAL CENTRE,4222902," 242,058.95 ", -   ,DR000005800
Department of Health,NHS England,31/07/2014,GPMS/APMS and PCTMS,Primary Care & Secondary Dental,BISHOPS CASTLE MEDICAL PRACTICE,4356453," 44,144.24 ", -   ,SA000006195
Department of Health,NHS England,31/07/2014,GPMS/APMS and PCTMS,Primary Care & Secondary Dental,BISHOPS WALTHAM SURGERY,4195756,"-74,140.57 ", -   ,SO000017550
Department of Health,NHS England,31/07/2014,GPMS/APMS and PCTMS,Primary Care & Secondary Dental,BISHOPS WALTHAM SURGERY,4195757," 185,489.48 ", -   ,SO000017551
Department of Health,NHS England,31/07/2014,GPMS/APMS and PCTMS,Primary Care & Secondary Dental,BISHOPSTON MEDICAL PRACTICE,4220166," 100,328.01 ", -   ,BRS000009738
Department of Health,NHS England,31/07/2014,GPMS/APMS and PCTMS,Primary Care & Secondary Dental,BITTERNE PARK SURGERY,4370304," 75,273.13 ", -   ,SO000017689
Department of Health,NHS England,31/07/2014,GPMS/APMS and PCTMS,Primary Care & Secondary Dental,BITTERNE SURGERY,4370305," 85,467.58 ", -   ,SO000017691
Department of Health,NHS England,31/07/2014,GPMS/APMS and PCTMS,Primary Care & Secondary Dental,BK JAISWAL,4369500," 30,742.00 ", -   ,LNC000005459
Department of Health,NHS England,31/07/2014,GPMS/APMS and PCTMS,Primary Care & Secondary Dental,BLACK JEB,4400585," 36,190.25 ", -   ,MAN000004450
Department of Health,NHS England,31/07/2014,GPMS/APMS and PCTMS,Primary Care & Secondary Dental,BLACK LONG THOMAS DAS WRIGHT VELTMAN & PARTNERS,4355479," 105,465.54 ", -   ,DE000010692
Department of Health,NHS England,31/07/2014,GPMS/APMS and PCTMS,Primary Care & Secondary Dental,BLACKBROOK SURGERY LISIEUX WAY TAUNTON,4414524," 101,884.26 ", -   ,SM000004637
Department of Health,NHS England,31/07/2014,GPMS/APMS and PCTMS,Primary Care & Secondary Dental,BLACKBURN ROAD MEDICAL PRACTICE,4411265," 39,108.22 ", -   ,LA000011918
Department of Health,NHS England,31/07/2014,GPMS/APMS and PCTMS,Primary Care & Secondary Dental,BLACKDOWN COUNTRY PRACTICE HEMYOCK,4117787," 74,092.04 ", -   ,DN000013240
Department of Health,NHS England,31/07/2014,GPMS/APMS and PCTMS,Primary Care & Secondary Dental,BLACKDOWN COUNTRY PRACTICE HEMYOCK,4433505," 25,405.60 ", -   ,DN000014061
Department of Health,NHS England,31/07/2014,GPMS/APMS and PCTMS,Primary Care & Secondary Dental,BLACKETTS MEDICAL PRACTICE,4222903,"-80,599.65 ", -   ,DR000005801
Department of Health,NHS England,31/07/2014,GPMS/APMS and PCTMS,Primary Care & Secondary Dental,BLACKETTS MEDICAL PRACTICE,4222904," 167,907.55 ", -   ,DR000005802
Department of Health,NHS England,31/07/2014,GPMS/APMS and PCTMS,Primary Care & Secondary Dental,BLACKFIELD HEALTH CENTRE,4370306," 218,676.06 ", -   ,SO000017693
Department of Health,NHS England,31/07/2014,GPMS/APMS and PCTMS,Primary Care & Secondary Dental,BLACKFORD HOUSE MEDICAL CENTRE,4398414," 81,965.62 ", -   ,ROC000003844
Department of Health,NHS England,31/07/2014,GPMS/APMS and PCTMS,Primary Care & Secondary Dental,BLACKFRIARS MEDICAL PRACTICE,4238145," 70,466.77 ", -   ,LNS000010568
Department of Health,NHS England,31/07/2014,GPMS/APMS and PCTMS,Primary Care & Secondary Dental,BLACKMORE HEALTH CENTRE SIDMOUTH,4117789," 132,288.66 ", -   ,DN000013242
Department of Health,NHS England,31/07/2014,GPMS/APMS and PCTMS,Primary Care & Secondary Dental,BLACKMORE HEALTH CENTRE SIDMOUTH,4353740," 31,935.60 ", -   ,DN000013614
Department of Health,NHS England,31/07/2014,GPMS/APMS and PCTMS,Primary Care & Secondary Dental,BLACKTHORN HEALTH CENTRE,4370307," 113,924.77 ", -   ,SO000017695
Department of Health,NHS England,31/07/2014,GPMS/APMS and PCTMS,Primary Care & Secondary Dental,BLACKTHORN MEDICAL CENTRE,4292156," 53,110.58 ", -   ,KC000019941
Department of Health,NHS England,31/07/2014,GPMS/APMS and PCTMS,Primary Care & Secondary Dental,BLENHEIM MEDICAL CENTRE,4221470," 86,551.88 ", -   ,BD000006349
Department of Health,NHS England,31/07/2014,GPMS/APMS and PCTMS,Primary Care & Secondary Dental,BLETCHINGTON ROAD SURGERY,4428592," 63,753.82 ", -   ,OX000006619
Department of Health,NHS England,31/07/2014,GPMS/APMS and PCTMS,Primary Care & Secondary Dental,BLITHEHALE MEDICAL CENTRE,4237618," 82,947.59 ", -   ,LNA000007644
Department of Health,NHS England,31/07/2014,GPMS/APMS and PCTMS,Primary Care & Secondary Dental,BLOOMFIELD MEDICAL CENTRE,4411266," 108,745.99 ", -   ,LA000011920
Department of Health,NHS England,31/07/2014,GPMS/APMS and PCTMS,Primary Care & Secondary Dental,BLOOMSBURY HEALTH CENTRE,4356751,"-30,053.75 ", -   ,BIR000009473
Department of Health,NHS England,31/07/2014,GPMS/APMS and PCTMS,Primary Care & Secondary Dental,BLOOMSBURY HEALTH CENTRE,4370100," 86,963.20 ", -   ,BIR000009474
Department of Health,NHS England,31/07/2014,GPMS/APMS and PCTMS,Primary Care & Secondary Dental,BLOOMSBURY SURGERY,4428730," 51,023.05 ", -   ,LND000005705
Department of Health,NHS England,31/07/2014,GPMS/APMS and PCTMS,Primary Care & Secondary Dental,BOAT HOUSE SURGERY,4237729," 110,824.78 ", -   ,BE000007576
Department of Health,NHS England,31/07/2014,GPMS/APMS and PCTMS,Primary Care & Secondary Dental,BOCKHAMPTON ROAD SURGERY,4369792," 55,850.63 ", -   ,BE000007666
Department of Health,NHS England,31/07/2014,GPMS/APMS and PCTMS,Primary Care & Secondary Dental,BOGNOR MEDICAL PRACTICE,4238363," 91,271.53 ", -   ,TW000010568
Department of Health,NHS England,31/07/2014,GPMS/APMS and PCTMS,Primary Care & Secondary Dental,BOKAHRI AA,4217746," 81,509.29 ", -   ,MAN000004323
Department of Health,NHS England,31/07/2014,GPMS/APMS and PCTMS,Primary Care & Secondary Dental,BOLLINGTON MEDICAL CENTRE,4175619," 54,506.59 ", -   ,CH000007923
Department of Health,NHS England,31/07/2014,GPMS/APMS and PCTMS,Primary Care & Secondary Dental,BOLLINGTON MEDICAL CENTRE,4337037,"-49,234.15 ", -   ,CH000008164
Department of Health,NHS England,31/07/2014,GPMS/APMS and PCTMS,Primary Care & Secondary Dental,BOLLINGTON MEDICAL CENTRE,4337038," 89,319.75 ", -   ,CH000008165
Department of Health,NHS England,31/07/2014,GPMS/APMS and PCTMS,Primary Care & Secondary Dental,BOLTON COMMUNITY PRACTICE,4271326," 147,459.34 ", -   ,WIG000007066
Department of Health,NHS England,31/07/2014,GPMS/APMS and PCTMS,Primary Care & Secondary Dental,BOND MDI & PARTNER,4335547,"-60,862.99 ", -   ,SOP000004216
Department of Health,NHS England,31/07/2014,GPMS/APMS and PCTMS,Primary Care & Secondary Dental,BOND MDI & PARTNER,4349806," 74,161.14 ", -   ,SOP000004217
Department of Health,NHS England,31/07/2014,GPMS/APMS and PCTMS,Primary Care & Secondary Dental,BONDGATE SURGERY,4219771," 89,675.14 ", -   ,NR000003611
Department of Health,NHS England,31/07/2014,GPMS/APMS and PCTMS,Primary Care & Secondary Dental,BONDGATE SURGERY,4428653," 53,898.44 ", -   ,NR000003775
Department of Health,NHS England,31/07/2014,GPMS/APMS and PCTMS,Primary Care & Secondary Dental,BOOTH J T & PARTNERS,4415034," 54,272.98 ", -   ,EX000019770
Department of Health,NHS England,31/07/2014,GPMS/APMS and PCTMS,Primary Care & Secondary Dental,BORDER PRACTICE,4195759,"-48,379.47 ", -   ,SO000017554
Department of Health,NHS England,31/07/2014,GPMS/APMS and PCTMS,Primary Care & Secondary Dental,BORDER PRACTICE,4217552," 133,516.89 ", -   ,SO000017555
Department of Health,NHS England,31/07/2014,GPMS/APMS and PCTMS,Primary Care & Secondary Dental,BOROUGH GREEN MEDICAL PRACTICE,4281793," 89,320.03 ", -   ,KC000019943
Department of Health,NHS England,31/07/2014,GPMS/APMS and PCTMS,Primary Care & Secondary Dental,BOROUGH ROAD & NUNTHORPE MEDICAL GROUP,4280615," 112,066.98 ", -   ,MID000005401
Department of Health,NHS England,31/07/2014,GPMS/APMS and PCTMS,Primary Care & Secondary Dental,BORSTAL VILLAGE,4435263," 28,989.64 ", -   ,KC000020881
Department of Health,NHS England,31/07/2014,GPMS/APMS and PCTMS,Primary Care & Secondary Dental,BOSMERE MEDICAL PRACTICE,4195760,"-133,754.49 ", -   ,SO000017556
Department of Health,NHS England,31/07/2014,GPMS/APMS and PCTMS,Primary Care & Secondary Dental,BOSMERE MEDICAL PRACTICE,4217553," 305,044.34 ", -   ,SO000017557
Department of Health,NHS England,31/07/2014,GPMS/APMS and PCTMS,Primary Care & Secondary Dental,BOTLEY MEDICAL CENTRE,4428593," 74,728.87 ", -   ,OX000006621
Department of Health,NHS England,31/07/2014,GPMS/APMS and PCTMS,Primary Care & Secondary Dental,BOTOLPH COMMUNITY HEALTH CENTRE,4204628," 61,409.02 ", -   ,CB000008593
Department of Health,NHS England,31/07/2014,GPMS/APMS and PCTMS,Primary Care & Secondary Dental,BOUGHTON MEDICAL GROUP,4175621," 55,179.63 ", -   ,CH000007925
Department of Health,NHS England,31/07/2014,GPMS/APMS and PCTMS,Primary Care & Secondary Dental,BOUGHTON MEDICAL GROUP,4337041,"-47,157.24 ", -   ,CH000008168
Department of Health,NHS England,31/07/2014,GPMS/APMS and PCTMS,Primary Care & Secondary Dental,BOUGHTON MEDICAL GROUP,4337042," 86,161.54 ", -   ,CH000008169
Department of Health,NHS England,31/07/2014,GPMS/APMS and PCTMS,Primary Care & Secondary Dental,BOUNCES ROAD SURGERY,4428774," 32,371.71 ", -   ,LNE000006361
Department of Health,NHS England,31/07/2014,GPMS/APMS and PCTMS,Primary Care & Secondary Dental,BOUNDARIES SURGERY,4370309," 34,805.65 ", -   ,SO000017699
Department of Health,NHS England,31/07/2014,GPMS/APMS and PCTMS,Primary Care & Secondary Dental,BOUNDARY HOUSE SURGERY BRACKNELL,4369793," 66,394.92 ", -   ,BE000007670
Department of Health,NHS England,31/07/2014,GPMS/APMS and PCTMS,Primary Care & Secondary Dental,BOUNDARY HOUSE SURGERY LONDON,4223565," 44,846.32 ", -   ,LNE000006187
Department of Health,NHS England,31/07/2014,GPMS/APMS and PCTMS,Primary Care & Secondary Dental,BOUNDS GREEN GROUP PRACTICE,4238257," 135,277.82 ", -   ,LNE000006189
Department of Health,NHS England,31/07/2014,GPMS/APMS and PCTMS,Primary Care & Secondary Dental,BOUNDS GREEN GROUP PRACTICE,4417939," 57,891.75 ", -   ,LNE000006363
Department of Health,NHS England,31/07/2014,GPMS/APMS and PCTMS,Primary Care & Secondary Dental,BOURKE M & PARTNERS,4357352," 66,866.50 ", -   ,SY000008781
Department of Health,NHS England,31/07/2014,GPMS/APMS and PCTMS,Primary Care & Secondary Dental,BOUTPORT MEDICAL CENTRE,4353750," 50,174.71 ", -   ,DN000013620
Department of Health,NHS England,31/07/2014,GPMS/APMS and PCTMS,Primary Care & Secondary Dental,BOVEY TRACEY & CHUDLEIGH PRACTICE,4117797," 124,273.14 ", -   ,DN000013250
Department of Health,NHS England,31/07/2014,GPMS/APMS and PCTMS,Primary Care & Secondary Dental,BOWERS S & PARTNERS,4153831," 31,569.76 ", -   ,LIP000007117
Department of Health,NHS England,31/07/2014,GPMS/APMS and PCTMS,Primary Care & Secondary Dental,BOWERS S & PARTNERS,4335571,"-26,864.95 ", -   ,LIP000007398
Department of Health,NHS England,31/07/2014,GPMS/APMS and PCTMS,Primary Care & Secondary Dental,BOWERS S & PARTNERS,4349824," 58,529.75 ", -   ,LIP000007399
Department of Health,NHS England,31/07/2014,GPMS/APMS and PCTMS,Primary Care & Secondary Dental,BOWES MEDICAL CENTRE,4428775," 25,771.96 ", -   ,LNE000006365
Department of Health,NHS England,31/07/2014,GPMS/APMS and PCTMS,Primary Care & Secondary Dental,BOWLAND MEDICAL PRACTICE,4411468," 64,380.43 ", -   ,MAN000004452
Department of Health,NHS England,31/07/2014,GPMS/APMS and PCTMS,Primary Care & Secondary Dental,BOWLEY C,4400588," 61,067.15 ", -   ,MAN000004454
Department of Health,NHS England,31/07/2014,GPMS/APMS and PCTMS,Primary Care & Secondary Dental,BOWLING GREEN ST SURGERY,4153636," 26,843.05 ", -   ,LD000009821
Department of Health,NHS England,31/07/2014,GPMS/APMS and PCTMS,Primary Care & Secondary Dental,BOWLING HALL MEDICAL PRACTICE,4221584,"-113,577.54 ", -   ,BRA000005062
Department of Health,NHS England,31/07/2014,GPMS/APMS and PCTMS,Primary Care & Secondary Dental,BOWLING HALL MEDICAL PRACTICE,4237793," 377,746.46 ", -   ,BRA000005063
Department of Health,NHS England,31/07/2014,GPMS/APMS and PCTMS,Primary Care & Secondary Dental,BOWTON P A & PARTNER,4428079," 54,500.72 ", -   ,EX000019774
Department of Health,NHS England,31/07/2014,GPMS/APMS and PCTMS,Primary Care & Secondary Dental,BOX SURGERY,4259611," 93,097.89 ", -   ,WL000007032
Department of Health,NHS England,31/07/2014,GPMS/APMS and PCTMS,Primary Care & Secondary Dental,BOXWELL ROAD SURGERY,4418184," 45,612.08 ", -   ,HT000010265
Department of Health,NHS England,31/07/2014,GPMS/APMS and PCTMS,Primary Care & Secondary Dental,BOYATT WOOD SURGERY,4370310," 45,196.42 ", -   ,SO000017701
Department of Health,NHS England,31/07/2014,GPMS/APMS and PCTMS,Primary Care & Secondary Dental,BRACKLEY HEALTH CENTRE,4414896," 39,817.94 ", -   ,NO000006503
Department of Health,NHS England,31/07/2014,GPMS/APMS and PCTMS,Primary Care & Secondary Dental,BRACONDALE MEDICAL CENTRE,4398448," 43,027.01 ", -   ,SPT000002802
Department of Health,NHS England,31/07/2014,GPMS/APMS and PCTMS,Primary Care & Secondary Dental,BRADGATE SURGERY,4219960," 84,862.90 ", -   ,BRS000009521
Department of Health,NHS England,31/07/2014,GPMS/APMS and PCTMS,Primary Care & Secondary Dental,BRADLEY & PARTNERS,4370508," 87,073.00 ", -   ,LNN000005143
Department of Health,NHS England,31/07/2014,GPMS/APMS and PCTMS,Primary Care & Secondary Dental,BRADLEY MEDICAL CENTRE,4369670," 26,104.87 ", -   ,WOM000003347
Department of Health,NHS England,31/07/2014,GPMS/APMS and PCTMS,Primary Care & Secondary Dental,BRADLEY STOKE SURGERY,4219958," 124,581.15 ", -   ,BRS000009519
Department of Health,NHS England,31/07/2014,GPMS/APMS and PCTMS,Primary Care & Secondary Dental,BRADLEY STOKE SURGERY,4417496," 44,435.06 ", -   ,BRS000009893
Department of Health,NHS England,31/07/2014,GPMS/APMS and PCTMS,Primary Care & Secondary Dental,BRADY & PARTNERS,4357495," 87,060.17 ", -   ,LNN000005141
Department of Health,NHS England,31/07/2014,GPMS/APMS and PCTMS,Primary Care & Secondary Dental,BRAILSFORD & HULLAND MEDICAL PRACTICE,4355481," 54,199.81 ", -   ,DE000010694
Department of Health,NHS England,31/07/2014,GPMS/APMS and PCTMS,Primary Care & Secondary Dental,BRAITHWAITE SURGERY,4271327," 45,275.01 ", -   ,WIG000007068
Department of Health,NHS England,31/07/2014,GPMS/APMS and PCTMS,Primary Care & Secondary Dental,BRAMBLYS GRANGE MEDICAL PRACTICE,4370308," 143,263.02 ", -   ,SO000017697
Department of Health,NHS England,31/07/2014,GPMS/APMS and PCTMS,Primary Care & Secondary Dental,BRAMHALL HEALTH CENTRE,4398447," 98,102.45 ", -   ,SPT000002798
Department of Health,NHS England,31/07/2014,GPMS/APMS and PCTMS,Primary Care & Secondary Dental,BRAMHALL PARK MEDICAL CENTRE,4217801," 111,102.05 ", -   ,SPT000002698
Department of Health,NHS England,31/07/2014,GPMS/APMS and PCTMS,Primary Care & Secondary Dental,BRAMPTON MEDICAL PRACTICE,4243791," 135,749.32 ", -   ,CU000005665
Department of Health,NHS England,31/07/2014,GPMS/APMS and PCTMS,Primary Care & Secondary Dental,BRAMPTON MEDICAL PRACTICE,4385619," 39,484.35 ", -   ,CU000005932
Department of Health,NHS England,31/07/2014,GPMS/APMS and PCTMS,Primary Care & Secondary Dental,BRAMPTON MEDICAL PRACTICE,4385952," 30,284.03 ", -   ,CU000006030
Department of Health,NHS England,31/07/2014,GPMS/APMS and PCTMS,Primary Care & Secondary Dental,BRANCH END SURGERY,4219773," 49,720.10 ", -   ,NR000003613
Department of Health,NHS England,31/07/2014,GPMS/APMS and PCTMS,Primary Care & Secondary Dental,BRANCH END SURGERY,4428654," 68,951.33 ", -   ,NR000003777
Department of Health,NHS England,31/07/2014,GPMS/APMS and PCTMS,Primary Care & Secondary Dental,BRANDON MEDICAL PRACTICE,4181624," 58,463.35 ", -   ,SU000007324
Department of Health,NHS England,31/07/2014,GPMS/APMS and PCTMS,Primary Care & Secondary Dental,BRANKSOMEWOOD HEALTHCARE CENTRE,4195758,"-64,605.33 ", -   ,SO000017552
Department of Health,NHS England,31/07/2014,GPMS/APMS and PCTMS,Primary Care & Secondary Dental,BRANKSOMEWOOD HEALTHCARE CENTRE,4217551," 167,360.40 ", -   ,SO000017553
Department of Health,NHS England,31/07/2014,GPMS/APMS and PCTMS,Primary Care & Secondary Dental,BRANN & PARTNERS,4238284," 128,823.01 ", -   ,EX000019339
Department of Health,NHS England,31/07/2014,GPMS/APMS and PCTMS,Primary Care & Secondary Dental,BRANT ROAD SURGERY LINCOLN,4217544," 64,504.20 ", -   ,LL000008726
Department of Health,NHS England,31/07/2014,GPMS/APMS and PCTMS,Primary Care & Secondary Dental,BRAYFORD SQUARE SURGERY,4369451," 39,176.93 ", -   ,LNA000008017
Department of Health,NHS England,31/07/2014,GPMS/APMS and PCTMS,Primary Care & Secondary Dental,BREACH & PARTNERS,4154138," 43,936.62 ", -   ,STL000005965
Department of Health,NHS England,31/07/2014,GPMS/APMS and PCTMS,Primary Care & Secondary Dental,BREACH & PARTNERS,4336597,"-37,554.07 ", -   ,STL000006212
Department of Health,NHS England,31/07/2014,GPMS/APMS and PCTMS,Primary Care & Secondary Dental,BREACH & PARTNERS,4349964," 78,966.29 ", -   ,STL000006213
Department of Health,NHS England,31/07/2014,GPMS/APMS and PCTMS,Primary Care & Secondary Dental,BREDBURY MEDICAL PRACTICE,4204927," 38,945.73 ", -   ,SPT000002700
Department of Health,NHS England,31/07/2014,GPMS/APMS and PCTMS,Primary Care & Secondary Dental,BREDON HILL SURGERY,4238023," 72,588.95 ", -   ,WR000007118
Department of Health,NHS England,31/07/2014,GPMS/APMS and PCTMS,Primary Care & Secondary Dental,BREEZE HILL NEIGHBOURHOOD HEALTH CENTRE,4335653,"-34,257.59 ", -   ,LIP000007551
Department of Health,NHS England,31/07/2014,GPMS/APMS and PCTMS,Primary Care & Secondary Dental,BREEZE HILL NEIGHBOURHOOD HEALTH CENTRE,4349895," 37,424.29 ", -   ,LIP000007552
Department of Health,NHS England,31/07/2014,GPMS/APMS and PCTMS,Primary Care & Secondary Dental,BREMNER & PARTNERS,4153829," 33,116.18 ", -   ,LIP000007115
Department of Health,NHS England,31/07/2014,GPMS/APMS and PCTMS,Primary Care & Secondary Dental,BREMNER & PARTNERS,4335570,"-115,016.55 ", -   ,LIP000007396
Department of Health,NHS England,31/07/2014,GPMS/APMS and PCTMS,Primary Care & Secondary Dental,BREMNER & PARTNERS,4349823," 157,647.39 ", -   ,LIP000007397
Department of Health,NHS England,31/07/2014,GPMS/APMS and PCTMS,Primary Care & Secondary Dental,BRENNAN & PARTNERS,4154301," 47,436.78 ", -   ,BIK000003489
Department of Health,NHS England,31/07/2014,GPMS/APMS and PCTMS,Primary Care & Secondary Dental,BRENNAN & PARTNERS,4336604,"-112,815.06 ", -   ,BIK000003649
Department of Health,NHS England,31/07/2014,GPMS/APMS and PCTMS,Primary Care & Secondary Dental,BRENNAN & PARTNERS,4336606," 150,142.62 ", -   ,BIK000003650
Department of Health,NHS England,31/07/2014,GPMS/APMS and PCTMS,Primary Care & Secondary Dental,BRENT AREA MEDICAL CENTRE ANVIL HOUSE EAST BRENT,4428059," 28,639.44 ", -   ,SM000004641
Department of Health,NHS England,31/07/2014,GPMS/APMS and PCTMS,Primary Care & Secondary Dental,BRETTON MEDICAL PRACTICE,4383897," 112,029.74 ", -   ,CB000008959
Department of Health,NHS England,31/07/2014,GPMS/APMS and PCTMS,Primary Care & Secondary Dental,BRIARWOOD MEDICAL CENTRE,4399949," 55,730.17 ", -   ,LA000011930
Department of Health,NHS England,31/07/2014,GPMS/APMS and PCTMS,Primary Care & Secondary Dental,BRICK LANE SURGERY,4428778," 27,659.25 ", -   ,LNE000006371
Department of Health,NHS England,31/07/2014,GPMS/APMS and PCTMS,Primary Care & Secondary Dental,BRIDGE COTTAGE SURGERY,4418192," 139,883.65 ", -   ,HT000010274
Department of Health,NHS England,31/07/2014,GPMS/APMS and PCTMS,Primary Care & Secondary Dental,BRIDGE HOUSE MEDICAL CENTRE,4416505," 83,511.43 ", -   ,WA000005921
Department of Health,NHS England,31/07/2014,GPMS/APMS and PCTMS,Primary Care & Secondary Dental,BRIDGE HOUSE SURGERY,4223568," 84,118.37 ", -   ,LNE000006191
Department of Health,NHS England,31/07/2014,GPMS/APMS and PCTMS,Primary Care & Secondary Dental,BRIDGE HOUSE SURGERY,4417953," 62,745.05 ", -   ,LNE000006372
Department of Health,NHS England,31/07/2014,GPMS/APMS and PCTMS,Primary Care & Secondary Dental,BRIDGE LANE GROUP PRACTICE,4224315," 111,538.00 ", -   ,LNP000008632
Department of Health,NHS England,31/07/2014,GPMS/APMS and PCTMS,Primary Care & Secondary Dental,BRIDGE MEDICAL CENTRE,4370446," 70,496.29 ", -   ,TW000010933
Department of Health,NHS England,31/07/2014,GPMS/APMS and PCTMS,Primary Care & Secondary Dental,BRIDGE STREET SURGERY,4412779," 65,085.09 ", -   ,KHU000007638
Department of Health,NHS England,31/07/2014,GPMS/APMS and PCTMS,Primary Care & Secondary Dental,BRIDGEGATE MEDICAL CENTRE,4243797," 87,328.62 ", -   ,CU000005671
Department of Health,NHS England,31/07/2014,GPMS/APMS and PCTMS,Primary Care & Secondary Dental,BRIDGEGATE SURGERY,4324009," 85,995.53 ", -   ,NN000011635
Department of Health,NHS England,31/07/2014,GPMS/APMS and PCTMS,Primary Care & Secondary Dental,BRIDGEMARY MEDICAL CENTRE,4195762,"-49,795.85 ", -   ,SO000017560
Department of Health,NHS England,31/07/2014,GPMS/APMS and PCTMS,Primary Care & Secondary Dental,BRIDGEMARY MEDICAL CENTRE,4217555," 121,078.20 ", -   ,SO000017561
Department of Health,NHS England,31/07/2014,GPMS/APMS and PCTMS,Primary Care & Secondary Dental,BRIDGES MEDICAL CENTRE,4238032," 116,163.69 ", -   ,DO000007807
Department of Health,NHS England,31/07/2014,GPMS/APMS and PCTMS,Primary Care & Secondary Dental,BRIDGES MEDICAL PRACTICE,4221688,"-33,294.53 ", -   ,GAT000003644
Department of Health,NHS England,31/07/2014,GPMS/APMS and PCTMS,Primary Care & Secondary Dental,BRIDGES MEDICAL PRACTICE,4221689," 71,771.71 ", -   ,GAT000003645
Department of Health,NHS England,31/07/2014,GPMS/APMS and PCTMS,Primary Care & Secondary Dental,BRIDGEWATER FAMILY MEDICAL PRACTICE,4356455," 45,617.65 ", -   ,SA000006197
Department of Health,NHS England,31/07/2014,GPMS/APMS and PCTMS,Primary Care & Secondary Dental,BRIDGNORTH MEDICAL PRACTICE,4356457," 113,152.85 ", -   ,SA000006199
Department of Health,NHS England,31/07/2014,GPMS/APMS and PCTMS,Primary Care & Secondary Dental,BRIDPORT MEDICAL CENTRE,4238033," 174,872.84 ", -   ,DO000007809
Department of Health,NHS England,31/07/2014,GPMS/APMS and PCTMS,Primary Care & Secondary Dental,BRIERCLIFFE SURGERY,4411461," 61,162.73 ", -   ,LA000012328
Department of Health,NHS England,31/07/2014,GPMS/APMS and PCTMS,Primary Care & Secondary Dental,BRIMINGTON SURGERY,4219542," 77,995.81 ", -   ,DE000010534
Department of Health,NHS England,31/07/2014,GPMS/APMS and PCTMS,Primary Care & Secondary Dental,BRINNINGTON HEALTH CENTRE BRINNINGTON,4217803," 44,630.61 ", -   ,SPT000002704
Department of Health,NHS England,31/07/2014,GPMS/APMS and PCTMS,Primary Care & Secondary Dental,BRINNINGTON HEALTH CENTRE STOCKPORT,4217804," 44,036.78 ", -   ,SPT000002706
Department of Health,NHS England,31/07/2014,GPMS/APMS and PCTMS,Primary Care & Secondary Dental,BRIXTON HILL GROUP PRACTICE,4238147," 103,966.15 ", -   ,LNS000010572
Department of Health,NHS England,31/07/2014,GPMS/APMS and PCTMS,Primary Care & Secondary Dental,BROAD LANE SURGERY,4221780," 38,612.66 ", -   ,COV000003793
Department of Health,NHS England,31/07/2014,GPMS/APMS and PCTMS,Primary Care & Secondary Dental,BROADMEAD MEDICAL CENTRE,4237606," 97,219.83 ", -   ,BRS000009523
Department of Health,NHS England,31/07/2014,GPMS/APMS and PCTMS,Primary Care & Secondary Dental,BROADMEAD SURGERY,4257582," 44,835.08 ", -   ,LNM000007629
Department of Health,NHS England,31/07/2014,GPMS/APMS and PCTMS,Primary Care & Secondary Dental,BROADSHIRES HEALTH CENTRE,4428594," 75,960.84 ", -   ,OX000006625
Department of Health,NHS England,31/07/2014,GPMS/APMS and PCTMS,Primary Care & Secondary Dental,BROADWATER FARM,4238259," 28,158.43 ", -   ,LNE000006193
Department of Health,NHS England,31/07/2014,GPMS/APMS and PCTMS,Primary Care & Secondary Dental,BROADWATER FARM,4417954," 25,006.10 ", -   ,LNE000006373
Department of Health,NHS England,31/07/2014,GPMS/APMS and PCTMS,Primary Care & Secondary Dental,BROADWATER MEDICAL CENTRE,4357283," 87,276.82 ", -   ,TW000010935
Department of Health,NHS England,31/07/2014,GPMS/APMS and PCTMS,Primary Care & Secondary Dental,BROADWAY MEDICAL CENTRE,4411272," 88,307.16 ", -   ,LA000011932
Department of Health,NHS England,31/07/2014,GPMS/APMS and PCTMS,Primary Care & Secondary Dental,BROADWAY PRACTICE,4435264," 96,515.04 ", -   ,KC000020883
Department of Health,NHS England,31/07/2014,GPMS/APMS and PCTMS,Primary Care & Secondary Dental,BROADWAY PRACTICE,4446277,"-59,831.16 ", -   ,KC000020882
Department of Health,NHS England,31/07/2014,GPMS/APMS and PCTMS,Primary Care & Secondary Dental,BROADWAY SURGERY,4354558," 38,634.30 ", -   ,LNB000004887
Department of Health,NHS England,31/07/2014,GPMS/APMS and PCTMS,Primary Care & Secondary Dental,BROCKHURST MEDICAL CENTRE,4370316," 41,077.29 ", -   ,SO000017713
Department of Health,NHS England,31/07/2014,GPMS/APMS and PCTMS,Primary Care & Secondary Dental,BROCKLEY SURGERY,4238149," 38,960.59 ", -   ,LNS000010574
Department of Health,NHS England,31/07/2014,GPMS/APMS and PCTMS,Primary Care & Secondary Dental,BROCKWELL MEDICAL GROUP,4237603," 131,147.84 ", -   ,NR000003617
Department of Health,NHS England,31/07/2014,GPMS/APMS and PCTMS,Primary Care & Secondary Dental,BROCKWELL MEDICAL GROUP,4428656," 45,030.67 ", -   ,NR000003781
Department of Health,NHS England,31/07/2014,GPMS/APMS and PCTMS,Primary Care & Secondary Dental,BROCKWELL PARK,4411198," 56,846.62 ", -   ,LNS000011194
Department of Health,NHS England,31/07/2014,GPMS/APMS and PCTMS,Primary Care & Secondary Dental,BROCKWOOD MEDICAL PRACTICE,4224457," 103,531.00 ", -   ,SY000008661
Department of Health,NHS England,31/07/2014,GPMS/APMS and PCTMS,Primary Care & Secondary Dental,BROCKWOOD MEDICAL PRACTICE,4386528," 30,064.12 ", -   ,SY000009123
Department of Health,NHS England,31/07/2014,GPMS/APMS and PCTMS,Primary Care & Secondary Dental,BRODBIN & PARTNERS,4336619," 39,051.28 ", -   ,BIK000003657
Department of Health,NHS England,31/07/2014,GPMS/APMS and PCTMS,Primary Care & Secondary Dental,BROKEN CROSS SURGERY,4175623," 26,579.39 ", -   ,CH000007927
Department of Health,NHS England,31/07/2014,GPMS/APMS and PCTMS,Primary Care & Secondary Dental,BROKEN CROSS SURGERY,4337046," 46,826.93 ", -   ,CH000008173
Department of Health,NHS England,31/07/2014,GPMS/APMS and PCTMS,Primary Care & Secondary Dental,BROMLEY COMMON PRACTICE,4292117," 60,640.42 ", -   ,LNT000003781
Department of Health,NHS England,31/07/2014,GPMS/APMS and PCTMS,Primary Care & Secondary Dental,BRONDESBURY MEDICAL CENTRE,4238237," 287,746.07 ", -   ,LND000005539
Department of Health,NHS England,31/07/2014,GPMS/APMS and PCTMS,Primary Care & Secondary Dental,BROOK GREEN MEDICAL CENTRE,4369871," 107,856.72 ", -   ,LNM000007831
Department of Health,NHS England,31/07/2014,GPMS/APMS and PCTMS,Primary Care & Secondary Dental,BROOK HEALTH CENTRE,4219172," 79,342.78 ", -   ,NO000006357
Department of Health,NHS England,31/07/2014,GPMS/APMS and PCTMS,Primary Care & Secondary Dental,BROOK HOUSE SURGERY,4370317," 41,478.90 ", -   ,SO000017715
Department of Health,NHS England,31/07/2014,GPMS/APMS and PCTMS,Primary Care & Secondary Dental,BROOK LANE SURGERY,4370318," 105,870.12 ", -   ,SO000017717
Department of Health,NHS England,31/07/2014,GPMS/APMS and PCTMS,Primary Care & Secondary Dental,BROOK MEDICAL CENTRE,4414903," 56,385.70 ", -   ,NO000006510
Department of Health,NHS England,31/07/2014,GPMS/APMS and PCTMS,Primary Care & Secondary Dental,BROOKE ROAD SURGERY,4369402," 30,516.18 ", -   ,LNA000007831
Department of Health,NHS England,31/07/2014,GPMS/APMS and PCTMS,Primary Care & Secondary Dental,BROOKE SURGERY,4217817," 95,453.15 ", -   ,GMK000004064
Department of Health,NHS England,31/07/2014,GPMS/APMS and PCTMS,Primary Care & Secondary Dental,BROOKES & LEE,4153837," 29,100.34 ", -   ,LIP000007123
Department of Health,NHS England,31/07/2014,GPMS/APMS and PCTMS,Primary Care & Secondary Dental,BROOKES & LEE,4335574,"-88,634.48 ", -   ,LIP000007404
Department of Health,NHS England,31/07/2014,GPMS/APMS and PCTMS,Primary Care & Secondary Dental,BROOKES & LEE,4349827," 111,682.03 ", -   ,LIP000007405
Department of Health,NHS England,31/07/2014,GPMS/APMS and PCTMS,Primary Care & Secondary Dental,BROOKFIELD PARK SURGERY,4428732," 26,884.14 ", -   ,LND000005708
Department of Health,NHS England,31/07/2014,GPMS/APMS and PCTMS,Primary Care & Secondary Dental,BROOKFIELD SURGERY,4175624," 38,300.59 ", -   ,CH000007928
Department of Health,NHS England,31/07/2014,GPMS/APMS and PCTMS,Primary Care & Secondary Dental,BROOKFIELD SURGERY,4337047,"-33,418.28 ", -   ,CH000008174
Department of Health,NHS England,31/07/2014,GPMS/APMS and PCTMS,Primary Care & Secondary Dental,BROOKFIELD SURGERY,4337048," 70,831.48 ", -   ,CH000008175
Department of Health,NHS England,31/07/2014,GPMS/APMS and PCTMS,Primary Care & Secondary Dental,BROOKHOUSE MEDICAL CENTRE,4411273," 46,189.83 ", -   ,LA000011934
Department of Health,NHS England,31/07/2014,GPMS/APMS and PCTMS,Primary Care & Secondary Dental,BROOKSIDE GROUP PRACTICE,4369795," 197,879.95 ", -   ,BE000007676
Department of Health,NHS England,31/07/2014,GPMS/APMS and PCTMS,Primary Care & Secondary Dental,BROOKSIDE HEALTH CENTRE,4370319," 150,792.75 ", -   ,SO000017719
Department of Health,NHS England,31/07/2014,GPMS/APMS and PCTMS,Primary Care & Secondary Dental,BROOKSIDE SURGERY,4416507," 32,674.94 ", -   ,WA000005923
Department of Health,NHS England,31/07/2014,GPMS/APMS and PCTMS,Primary Care & Secondary Dental,BROOM LEYS SURGERY,4153638," 68,636.96 ", -   ,LD000009823
Department of Health,NHS England,31/07/2014,GPMS/APMS and PCTMS,Primary Care & Secondary Dental,BROOMHILL SURGERY,4413273," 71,513.61 ", -   ,SHE000005056
Department of Health,NHS England,31/07/2014,GPMS/APMS and PCTMS,Primary Care & Secondary Dental,BROOMWOOD ROAD SURGERY,4292118," 89,513.98 ", -   ,LNT000003783
Department of Health,NHS England,31/07/2014,GPMS/APMS and PCTMS,Primary Care & Secondary Dental,BROSELEY MEDICAL PRACTICE,4356459," 45,611.46 ", -   ,SA000006201
Department of Health,NHS England,31/07/2014,GPMS/APMS and PCTMS,Primary Care & Secondary Dental,BROUGHTON HOUSE SURGERY,4321082," 34,610.36 ", -   ,BU000005852
Department of Health,NHS England,31/07/2014,GPMS/APMS and PCTMS,Primary Care & Secondary Dental,BROW MEDICAL CENTRE,4370447," 45,116.62 ", -   ,TW000010937
Department of Health,NHS England,31/07/2014,GPMS/APMS and PCTMS,Primary Care & Secondary Dental,BROWN B J & PARTNERS,4415040," 108,263.86 ", -   ,EX000019778
